Workbook

Sheet Data sheet
A1: ONE WORKBOOK PER DAY PER MIX DESIGN
A2: BITUMINOUS STREET REPORT PROJECT DATA
A3: TH | D3: ENGINEER: | F3: ms | H3: PAVING CONTRACTOR: | K3: DATE:
A5: SP | D5: CONTRACT: | H5: PLANT IDENTIFICATION: | K5: REPORT#:
C6: =A5 -> SP
A7: LIST ALL S.P.'S ASSOCIATED WITH CONTRACT | C7: =B5 -> 0 | D7: MDR/Rec# | E7: SPEC. | F7: MIX DESIGN | G7: ITEM | I7: UNITS | J7: Price Per Unit | K7: LBS. PER CU FT | L7: LBS PER SY.IN.
L8: =K8/12*9 -> 0.00
L9: =K9/12*9 -> 0.00
L10: 0.00
L11: 0.00
L12: 0.00
L13: 0.00
L14: 0.00
L15: 0.00
L16: 0.00
L17: 0.00
L18: 0.00
L19: 0.00
A21: ONE WORKBOOK PER DAY EDIT DATA IN BLUE BOXES ONLY
A22: MDR/Rec# | B22: ITEM | C22: MIX DESIGN | D22: SPEC. | E22: UNITS | F22: Price Per Ton | H22: LBS. PER CU FT | I22: LBS PER SY.IN. | S22: WEATHER | V22: MIX. TEMP. | Y22: PAID BY
A23: 01-2019-128 | B23: TYPE SP 9.5 WEARING COURSE MIX (3,B) | C23: SPWEA330B | D23: 2360.504 | E23: TON | F23: $50.00 | H23: 161.00 | I23: =H23*0.75 -> 120.75 | J23: T.H. | L23: 1 | M23: LIST ALL S.P.'S ASSOCIATED WITH DAYS PAVING BELOW
I24: 0 | J24: LOW SP: | L24: 1111-11 | S24: RAIN / SNOW | V24: BELOW 32° F | Y24: TON | AA24: TOTAL TONS (PLACED/PRODUCED): | AB24: TOTAL TONS DEDUCTED (WASTE / OVERLOAD): | AC24: TOTAL TONS PAID FOR (THIS REPORT):
I25: 0 | J25: CONTRACT: | L25: 191111 | S25: CLOUDY | V25: 32° F - 40° F | Y25: SQ. YD. | AA25: TOTAL SQUARE YARDS PLACED: | AB25: TOTAL SQUARE YARDS DEDUCTED (REMARKS): | AC25: TOTAL SQUARE YARDS PAID FOR (THIS REPORT):
I26: 0 | J26: ENGINEER: | L26: JON DOE | M26: 1111-11 | S26: PARTLY CLOUDY | V26: 41° F - 50° F
I27: 0 | J27: PAVING CONTRACTOR: | L27: BIT PAVERS | S27: CLEAR | V27: 51° F - 60° F
I28: 0 | J28: PLANT: | L28: BP111 | V28: 61° F - 70° F | AE28: SHEET TOTALS MUST BE THE SAME AMOUNT | AF28: &
I29: 0 | J29: DATE | L29: 2020-08-01 | V29: 71° F - 80° F
I30: 0 | J30: REPORT # | L30: 1 | V30: 81° F - 90° F
I31: 0 | V31: ABOVE 90° F
I32: 0
A33: ENTER ALL MIX DESIGNS IN THE ABOVE ROWS THAT ARE ASSOCIATED WITH THE INDICATED CONTRACT # | S33: LIFT | U33: LANE TYPE | W33: Direction of Travel | Y33: MAINLINE | AF33: =AD35 -> 0 | AG33: =AD36 -> 0 | AH33: =AD37 -> 0 | AI33: =AD38 -> 0
A34: ENTER ITEM IN BLUE BOXES IF NOT LISTED IN THE PULL DOWN BOX ABOVE | S34: L1 | U34: Traffic Lane | W34: NB | AD34: ='Street Report'!C9 -> 0 | AE34: =MIN(FIND({0,1,2,3,4,5,6,7,8,9},AD34&"0123456789")) -> 1 | AF34: =LEFT(AD34,AE34-1) ->  | AG34: =RIGHT(AD34,LEN(AD34)-AE34+1) -> 0 | AH34: =IF(AG34="0",AI34,AG34) -> 0 | AJ34: ='Street Report'!J9 -> 0 | AK34: - | AL34: ='Street Report'!K9 -> 0 | AM34: =AJ34&AK34&AL34 -> 0-0 | AO34: =IF(AM34="0-0",AN34,AM34) -> 0
A35: DO NOT COPY AND PASTE ON THIS SHEET. TYPE IN FIELDS ONLY FROM PROVISION AND PROJECT MIX DESIGN. | S35: L2 | U35: Lt Shoulder | W35: SB | Y35: 12L-CL | Z35: 12 | AD35: ='Street Report'!C10 -> 0 | AE35: =MIN(FIND({0,1,2,3,4,5,6,7,8,9},AD35&"0123456789")) -> 1 | AF35: =LEFT(AD35,AE35-1) ->  | AG35: =RIGHT(AD35,LEN(AD35)-AE35+1) -> 0 | AH35: =IF(AG35="0",AI35,AG35) -> 0 | AJ35: ='Street Report'!J10 -> 0 | AK35: - | AL35: ='Street Report'!K10 -> 0 | AM35: =IF(AJ35<>"",AJ35&AK35&AL35," ") -> 0-0 | AO35: =IF(AM35="0-0",AN35,AM35) -> 0
S36: L3 | U36: Lt Turnlane | W36: EB | Y36: CL-12R | Z36: 12 | AD36: ='Street Report'!C11 -> 0 | AE36: =MIN(FIND({0,1,2,3,4,5,6,7,8,9},AD36&"0123456789")) -> 1 | AG36: 0 | AH36: 0 | AJ36: ='Street Report'!J11 -> 0 | AK36: - | AL36: ='Street Report'!K11 -> 0 | AM36: 0-0 | AO36: 0
S37: L4 | U37: Lt Lane | W37: WB | Y37: 18L-CL | Z37: 18 | AD37: ='Street Report'!C12 -> 0 | AE37: =MIN(FIND({0,1,2,3,4,5,6,7,8,9},AD37&"0123456789")) -> 1 | AG37: 0 | AH37: 0 | AJ37: ='Street Report'!J12 -> 0 | AK37: - | AL37: ='Street Report'!K12 -> 0 | AM37: 0-0 | AO37: 0
B38: EXAMPLE | S38: L5 | U38: Center Lane | Y38: CL-18R | Z38: 18 | AD38: ='Street Report'!C13 -> 0 | AE38: =MIN(FIND({0,1,2,3,4,5,6,7,8,9},AD38&"0123456789")) -> 1 | AG38: 0 | AH38: 0 | AJ38: ='Street Report'!J13 -> 0 | AK38: - | AL38: ='Street Report'!K13 -> 0 | AM38: 0-0 | AO38: 0
A39: 2360.501 | B39: TYPE SP 12.5 WEARING COURSE MIX (3,B) | C39: SPWEB330B | D39: 99-2020-999 | E39: TON | F39: 50 | H39: 149.2 | I39: =H39*0.75 -> 111.9 | S39: L6 | U39: Rt Lane | Y39: 18L-6L | Z39: 12 | AD39: ='Street Report'!C14 -> 0 | AE39: =MIN(FIND({0,1,2,3,4,5,6,7,8,9},AD39&"0123456789")) -> 1 | AG39: 0 | AH39: 0 | AJ39: ='Street Report'!J14 -> 0 | AK39: - | AL39: ='Street Report'!K14 -> 0 | AM39: 0-0 | AO39: 0
U40: Rt Turnlane | Y40: 6R-18R | Z40: 12 | AD40: ='Street Report'!C15 -> 0 | AE40: =MIN(FIND({0,1,2,3,4,5,6,7,8,9},AD40&"0123456789")) -> 1 | AG40: 0 | AH40: 0 | AJ40: ='Street Report'!J15 -> 0 | AK40: - | AL40: ='Street Report'!K15 -> 0 | AM40: 0-0 | AO40: 0
S41: TH | U41: Rt Shoulder | Y41: 24L-12L | Z41: 12 | AD41: ='Street Report'!C16 -> 0 | AE41: =MIN(FIND({0,1,2,3,4,5,6,7,8,9},AD41&"0123456789")) -> 1 | AG41: 0 | AH41: 0 | AJ41: ='Street Report'!J16 -> 0 | AK41: - | AL41: ='Street Report'!K16 -> 0 | AM41: 0-0 | AO41: 0
S42: CSAH | U42: Ramp | Y42: 12R-24R | Z42: 12 | AD42: ='Street Report'!C17 -> 0 | AE42: =MIN(FIND({0,1,2,3,4,5,6,7,8,9},AD42&"0123456789")) -> 1 | AG42: 0 | AH42: 0 | AJ42: ='Street Report'!J17 -> 0 | AK42: - | AL42: ='Street Report'!K17 -> 0 | AM42: 0-0 | AO42: 0
S43: CR | U43: Loop | Y43: 36L-24L | Z43: 12 | AD43: ='Street Report'!C18 -> 0 | AE43: =MIN(FIND({0,1,2,3,4,5,6,7,8,9},AD43&"0123456789")) -> 1 | AG43: 0 | AH43: 0 | AJ43: ='Street Report'!J18 -> 0 | AK43: - | AL43: ='Street Report'!K18 -> 0 | AM43: 0-0 | AO43: 0
A44: 2360.504 | B44: TYPE SP 9.5 WEARING COURSE MIX | C44: SPWEA330B | S44: MS | U44: Shld Bypass | Y44: 24R-36R | Z44: 12 | AD44: ='Street Report'!C19 -> 0 | AE44: =MIN(FIND({0,1,2,3,4,5,6,7,8,9},AD44&"0123456789")) -> 1 | AG44: 0 | AH44: 0 | AJ44: ='Street Report'!J19 -> 0 | AK44: - | AL44: ='Street Report'!K19 -> 0 | AM44: 0-0 | AO44: 0
A45: 2360.509 | B45: TYPE SP 9.5 WEAR CRS MIX | C45: SPWEA340B | S45: MSAH | U45: HOV Lane | Y45: 48L-36L | Z45: 12 | AD45: ='Street Report'!C20 -> 0 | AE45: =MIN(FIND({0,1,2,3,4,5,6,7,8,9},AD45&"0123456789")) -> 1 | AG45: 0 | AH45: 0 | AJ45: ='Street Report'!J20 -> 0 | AK45: - | AL45: ='Street Report'!K20 -> 0 | AM45: 0-0 | AO45: 0
A46: 2360.609 | B46: TYPE SP 9.5 NON WEAR COURSE MIX | C46: SPWEA440B | U46: Crossover | Y46: 36R-48R | Z46: 12 | AD46: ='Street Report'!C21 -> 0 | AE46: =MIN(FIND({0,1,2,3,4,5,6,7,8,9},AD46&"0123456789")) -> 1 | AG46: 0 | AH46: 0 | AJ46: ='Street Report'!J21 -> 0 | AK46: - | AL46: ='Street Report'!K21 -> 0 | AM46: 0-0 | AO46: 0
B47: TYPE SP 9.5 NON WR CRS MIX | C47: SPWEB330B | Y47: 6L-6R | Z47: 12 | AD47: ='Street Report'!C22 -> 0 | AE47: =MIN(FIND({0,1,2,3,4,5,6,7,8,9},AD47&"0123456789")) -> 1 | AG47: 0 | AH47: 0 | AJ47: ='Street Report'!J22 -> 0 | AK47: - | AL47: ='Street Report'!K22 -> 0 | AM47: 0-0 | AO47: 0
B48: TYPE SP 12.5 WEARING COURSE MIX | C48: SPWEB430B | Y48: 20L-12L (8' SHLD) | Z48: 8 | AD48: ='Street Report'!C23 -> 0 | AE48: =MIN(FIND({0,1,2,3,4,5,6,7,8,9},AD48&"0123456789")) -> 1 | AG48: 0 | AH48: 0 | AJ48: ='Street Report'!J23 -> 0 | AK48: - | AL48: ='Street Report'!K23 -> 0 | AM48: 0-0 | AO48: 0
B49: TYPE SP 12.5 WEAR CRS MIX | C49: SPWEB440B | Y49: 22L-12L (10' SHLD) | Z49: 10 | AD49: ='Street Report'!C24 -> 0 | AE49: =MIN(FIND({0,1,2,3,4,5,6,7,8,9},AD49&"0123456789")) -> 1 | AG49: 0 | AH49: 0 | AJ49: ='Street Report'!J24 -> 0 | AK49: - | AL49: ='Street Report'!K24 -> 0 | AM49: 0-0 | AO49: 0
B50: TYPE SP 12.5 NON WEAR COURSE MIX | C50: SPWEB340B | Y50: 12R-20R (8' SHLD) | Z50: 8 | AD50: ='Street Report'!C25 -> 0 | AE50: =MIN(FIND({0,1,2,3,4,5,6,7,8,9},AD50&"0123456789")) -> 1 | AG50: 0 | AH50: 0 | AJ50: ='Street Report'!J25 -> 0 | AK50: - | AL50: ='Street Report'!K25 -> 0 | AM50: 0-0 | AO50: 0
B51: TYPE SP 12.5 NON WR CRS MIX | C51: SPNWA330B | Y51: 12R-22R (10' SHLD) | Z51: 10 | AD51: ='Street Report'!C26 -> 0 | AE51: =MIN(FIND({0,1,2,3,4,5,6,7,8,9},AD51&"0123456789")) -> 1 | AG51: 0 | AH51: 0 | AJ51: ='Street Report'!J26 -> 0 | AK51: - | AL51: ='Street Report'!K26 -> 0 | AM51: 0-0 | AO51: 0
B52: TYPE SP 4.75 WEAR CRS MIX | C52: SPNWA340B | E52: Density and non-density tons tabulation separated by S.P. | Y52: 32L-24L (8' SHLD) | Z52: 8 | AD52: ='Street Report'!C27 -> 0 | AE52: =MIN(FIND({0,1,2,3,4,5,6,7,8,9},AD52&"0123456789")) -> 1 | AG52: 0 | AH52: 0 | AJ52: ='Street Report'!J27 -> 0 | AK52: - | AL52: ='Street Report'!K27 -> 0 | AM52: 0-0 | AO52: 0
B53: TYPE SP 4.75 WEARING COURSE MIX | C53: SPNWA440B | Y53: 34L-24L (10' SHLD) | Z53: 10 | AD53: ='Street Report'!C28 -> 0 | AE53: =MIN(FIND({0,1,2,3,4,5,6,7,8,9},AD53&"0123456789")) -> 1 | AG53: 0 | AH53: 0 | AJ53: ='Street Report'!J28 -> 0 | AK53: - | AL53: ='Street Report'!K28 -> 0 | AM53: 0-0 | AO53: 0
B54: TYPE SP 9.5 BIT MIXTURE FOR PATCHING | C54: SPNWB340B | E54: s.p. | Y54: 24R-32R (8' SHLD) | Z54: 8 | AD54: ='Street Report'!C29 -> 0 | AE54: =MIN(FIND({0,1,2,3,4,5,6,7,8,9},AD54&"0123456789")) -> 1 | AG54: 0 | AH54: 0 | AJ54: ='Street Report'!J29 -> 0 | AK54: - | AL54: ='Street Report'!K29 -> 0 | AM54: 0-0 | AO54: 0
B55: TYPE SP 12.5 BIT MIXTURE FOR PATCHING | C55: SPNWB330B | H55: tons | I55: =C7 -> 0 | J55: =C8 -> 0 | K55: =C9 -> 0 | L55: =C10 -> 0 | M55: =C11 -> 0 | N55: =C12 -> 0 | O55: =C13 -> 0 | P55: =C14 -> 0 | Y55: 24R-34R (10' SHLD) | Z55: 10 | AD55: ='Street Report'!C30 -> 0 | AE55: =MIN(FIND({0,1,2,3,4,5,6,7,8,9},AD55&"0123456789")) -> 1 | AG55: 0 | AH55: 0 | AJ55: ='Street Report'!J30 -> 0 | AK55: - | AL55: ='Street Report'!K30 -> 0 | AM55: 0-0 | AO55: 0
B56: TYPE SP 9.5 BIT MIXTURE PRODUCTION | C56: SPNWB440B | F56: ='Street Report'!B9 -> 0 | H56: ='Street Report'!S9 -> 0.00 | I56: =IFERROR(VLOOKUP(I$55,$F56:$H56,3,FALSE)," ") -> 0 | J56: =IFERROR(VLOOKUP(J$55,$F56:$H56,3,FALSE)," ") -> 0 | K56: =IFERROR(VLOOKUP(K$55,$F56:$H56,3,FALSE)," ") -> 0 | L56: 0 | M56: 0 | N56: 0 | O56: 0 | P56: 0 | Y56: 44L-36L (8' SHLD) | Z56: 8 | AD56: ='Street Report'!C31 -> 0 | AE56: =MIN(FIND({0,1,2,3,4,5,6,7,8,9},AD56&"0123456789")) -> 1 | AG56: 0 | AH56: 0 | AJ56: ='Street Report'!J31 -> 0 | AK56: - | AL56: ='Street Report'!K31 -> 0 | AM56: 0-0 | AO56: 0
B57: TYPE SP 12.5 BIT MIXTURE PRODUCTION | C57: SPNWB430B | F57: ='Street Report'!B10 -> 0 | H57: ='Street Report'!S10 -> 0.00 | I57: =IFERROR(VLOOKUP(I$55,$F57:$H57,3,FALSE)," ") -> 0 | J57: 0 | K57: 0 | L57: 0 | M57: 0 | N57: 0 | O57: 0 | P57: 0 | Y57: 46L-36L (10' SHLD) | Z57: 10 | AD57: ='Street Report'!C32 -> 0 | AE57: =MIN(FIND({0,1,2,3,4,5,6,7,8,9},AD57&"0123456789")) -> 1 | AG57: 0 | AH57: 0 | AJ57: ='Street Report'!J32 -> 0 | AK57: - | AL57: ='Street Report'!K32 -> 0 | AM57: 0-0 | AO57: 0
B58: TYPE SP 9.5 BIT MIX FOR TIGHT BLADE LEV | F58: ='Street Report'!B11 -> 0 | H58: ='Street Report'!S11 -> 0.00 | I58: 0 | J58: 0 | K58: 0 | L58: 0 | M58: 0 | N58: 0 | O58: 0 | P58: 0 | Y58: 36R-44R (8' SHLD) | Z58: 8 | AD58: ='Street Report'!C33 -> 0 | AE58: =MIN(FIND({0,1,2,3,4,5,6,7,8,9},AD58&"0123456789")) -> 1 | AG58: 0 | AH58: 0 | AJ58: ='Street Report'!J33 -> 0 | AK58: - | AL58: ='Street Report'!K33 -> 0 | AM58: 0-0 | AO58: 0
B59: TYPE SP 12.5 BIT MIX FOR TIGHT BLADE LEV | F59: ='Street Report'!B12 -> 0 | H59: ='Street Report'!S12 -> 0.00 | I59: 0 | J59: 0 | K59: 0 | L59: 0 | M59: 0 | N59: 0 | O59: 0 | P59: 0 | Y59: 36R-46R (10' SHLD) | Z59: 10 | AD59: ='Street Report'!C34 -> 0 | AE59: =MIN(FIND({0,1,2,3,4,5,6,7,8,9},AD59&"0123456789")) -> 1 | AG59: 0 | AH59: 0 | AJ59: ='Street Report'!J34 -> 0 | AK59: - | AL59: ='Street Report'!K34 -> 0 | AM59: 0-0 | AO59: 0
B60: TYPE SP 4.75 BIT MIX FOR TIGHT BLADE LEV | F60: ='Street Report'!B13 -> 0 | H60: ='Street Report'!S13 -> 0.00 | I60: 0 | J60: 0 | K60: 0 | L60: 0 | M60: 0 | N60: 0 | O60: 0 | P60: 0 | AD60: ='Street Report'!C35 -> 0 | AE60: =MIN(FIND({0,1,2,3,4,5,6,7,8,9},AD60&"0123456789")) -> 1 | AG60: 0 | AH60: 0 | AJ60: ='Street Report'!J35 -> 0 | AK60: - | AL60: ='Street Report'!K35 -> 0 | AM60: 0-0 | AO60: 0
F61: ='Street Report'!B14 -> 0 | H61: ='Street Report'!S14 -> 0.00 | I61: 0 | J61: 0 | K61: 0 | L61: 0 | M61: 0 | N61: 0 | O61: 0 | P61: 0 | AD61: ='Street Report'!C36 -> 0 | AE61: =MIN(FIND({0,1,2,3,4,5,6,7,8,9},AD61&"0123456789")) -> 1 | AG61: 0 | AH61: 0 | AJ61: ='Street Report'!J36 -> 0 | AK61: - | AL61: ='Street Report'!K36 -> 0 | AM61: 0-0 | AO61: 0
F62: ='Street Report'!B15 -> 0 | H62: ='Street Report'!S15 -> 0.00 | I62: 0 | J62: 0 | K62: 0 | L62: 0 | M62: 0 | N62: 0 | O62: 0 | P62: 0 | AA62: NON-DENSITY TONS SEPARATED BY AREA TYPE
F63: ='Street Report'!B16 -> 0 | H63: ='Street Report'!S16 -> 0.00 | I63: 0 | J63: 0 | K63: 0 | L63: 0 | M63: 0 | N63: 0 | O63: 0 | P63: 0 | S63: CUSTOM WIDTH LANE | AA63: AREA TYPE | AC63: AREA TYPE | AD63: TONS | AE63: SHLD | AF63: ENT. | AG63: MISC. | AH63: PATCH | AJ63: =M27 -> 0 | AK63: =M28 -> 0 | AL63: =M29 -> 0 | AM63: =M30 -> 0 | AO63: =IFERROR(VLOOKUP(AN63,$AB$64:$AH$64,7,0)," ") ->  | AP63: =IFERROR(VLOOKUP(AN63,$AB$65:$AH$65,7,0)," ") ->  | AQ63: =IFERROR(VLOOKUP(AN63,$AB$66:$AH$66,7,0)," ") ->  | AR63: =IFERROR(VLOOKUP(AN63,$AB$67:$AH$67,7,0)," ") ->  | AS63: =IFERROR(VLOOKUP(AN63,$AB$68:$AH$68,7,0)," ") ->  | AT63: =IFERROR(VLOOKUP(AN63,$AB$69:$AH$69,7,0)," ") ->  | AU63: =IFERROR(VLOOKUP(AN63,$AB$70:$AH$70,7,0)," ") ->  | AV63: =IFERROR(VLOOKUP(AN63,$AB$71:$AH$71,7,0)," ") ->  | AW63: =IFERROR(VLOOKUP(AN63,$AB$72:$AH$72,7,0)," ") ->  | AX63: =IFERROR(VLOOKUP(AN63,$AB$73:$AH$73,7,0)," ") ->  | AY63: =IFERROR(VLOOKUP(AN63,$AB$74:$AH$74,7,0)," ") ->  | AZ63: =IFERROR(VLOOKUP(AN63,$AB$75:$AH$75,7,0)," ") ->  | BA63: =IFERROR(VLOOKUP(AN63,$AB$76:$AH$76,7,0)," ") ->  | BB63: =IFERROR(VLOOKUP(AN63,$AB$77:$AH$77,7,0)," ") ->  | BC63: =IFERROR(VLOOKUP(AN63,$AB$78:$AH$78,7,0)," ") ->  | BD63: =SUM(AO63:BC63) -> 0
F64: ='Street Report'!B17 -> 0 | H64: ='Street Report'!S17 -> 0.00 | I64: 0 | J64: 0 | K64: 0 | L64: 0 | M64: 0 | N64: 0 | O64: 0 | P64: 0 | R64: =IFERROR(MAX(ISNUMBER(VALUE(MID('Street Report'!J9,{1,2,3,4,5,6,7,8,9},1)))*{1,2,3,4,5,6,7,8,9})+1," ") -> 1 | S64: =IFERROR(VALUE(LEFT('Street Report'!J9,R64-1))," ") ->  | T64: =IFERROR(TRIM(RIGHT('Street Report'!J9,LEN('Street Report'!J9)-R64+1))," ") ->  | U64: =IFERROR(IF(ISNUMBER(SEARCH("r",T64)),"-1","1")*S64,"0") -> 0 | V64: =IFERROR(VALUE(LEFT('Street Report'!K9,Z64-1))," ") ->  | W64: =IFERROR(TRIM(RIGHT('Street Report'!K9,LEN('Street Report'!K9)-Z64+1))," ") ->  | X64: =IFERROR(IF(ISNUMBER(SEARCH("r",W64)),"-1","1")*V64,"0") -> 0 | Y64: =IFERROR(ABS(X64-U64)," ") -> 0 | Z64: =IFERROR(MAX(ISNUMBER(VALUE(MID('Street Report'!K9,{1,2,3,4,5,6,7,8,9},1)))*{1,2,3,4,5,6,7,8,9})+1," ") -> 1 | AA64: <6' SHOULDER | AB64: ='Street Report'!H44 -> 0 | AC64: ='Street Report'!J44 -> 0 | AD64: ='Street Report'!S44 -> 0 | AE64: =IFERROR(VLOOKUP($AA$64,AC64:AD64,2,FALSE)," ") ->  | AF64: =IFERROR(VLOOKUP($AA$67,AC64:AD64,2,FALSE)," ") ->  | AG64: =IFERROR(VLOOKUP($AA$66,AC64:AD64,2,FALSE)," ") ->  | AH64: =IFERROR(VLOOKUP($AA$65,AC64:AD64,2,FALSE)," ") ->  | AI64: =IFERROR(VLOOKUP($AI$63,AB64:AH64,7,0)," ") ->  | AJ64: =IFERROR(VLOOKUP($AJ$63,AB64:AH64,7,0)," ") ->  | AK64: =IFERROR(VLOOKUP($AK$63,$AB64:$AH64,7,0)," ") ->  | AL64: =IFERROR(VLOOKUP($AL$63,$AB64:$AH64,7,0)," ") ->  | AM64: =IFERROR(VLOOKUP($AM$63,$AB64:$AH64,7,0)," ") ->  | AN64: =M27 -> 0 | AO64: =IFERROR(VLOOKUP(AN64,$AB$64:$AH$64,7,0)," ") ->  | AP64: =IFERROR(VLOOKUP(AN64,$AB$65:$AH$65,7,0)," ") ->  | AQ64: =IFERROR(VLOOKUP(AN64,$AB$66:$AH$66,7,0)," ") ->  | AR64: =IFERROR(VLOOKUP(AN64,$AB$67:$AH$67,7,0)," ") ->  | AS64: =IFERROR(VLOOKUP(AN64,$AB$68:$AH$68,7,0)," ") ->  | AT64: =IFERROR(VLOOKUP(AN64,$AB$69:$AH$69,7,0)," ") ->  | AU64: =IFERROR(VLOOKUP(AN64,$AB$70:$AH$70,7,0)," ") ->  | AV64: =IFERROR(VLOOKUP(AN64,$AB$71:$AH$71,7,0)," ") ->  | AW64: =IFERROR(VLOOKUP(AN64,$AB$72:$AH$72,7,0)," ") ->  | AX64: =IFERROR(VLOOKUP(AN64,$AB$73:$AH$73,7,0)," ") ->  | AY64: =IFERROR(VLOOKUP(AN64,$AB$74:$AH$74,7,0)," ") ->  | AZ64: =IFERROR(VLOOKUP(AN64,$AB$75:$AH$75,7,0)," ") ->  | BA64: =IFERROR(VLOOKUP(AN64,$AB$76:$AH$76,7,0)," ") ->  | BB64: =IFERROR(VLOOKUP(AN64,$AB$77:$AH$77,7,0)," ") ->  | BC64: =IFERROR(VLOOKUP(AN64,$AB$78:$AH$78,7,0)," ") ->  | BD64: =SUM(AO64:BC64) -> 0
F65: ='Street Report'!B18 -> 0 | H65: ='Street Report'!S18 -> 0.00 | I65: 0 | J65: 0 | K65: 0 | L65: 0 | M65: 0 | N65: 0 | O65: 0 | P65: 0 | R65: =MAX(ISNUMBER(VALUE(MID('Street Report'!J10,{1,2,3,4,5,6,7,8,9},1)))*{1,2,3,4,5,6,7,8,9})+1 -> 1 | S65: =IFERROR(VALUE(LEFT('Street Report'!J10,R65-1))," ") ->  | T65: =IFERROR(TRIM(RIGHT('Street Report'!J10,LEN('Street Report'!J10)-R65+1))," ") ->  | U65: =IFERROR(IF(ISNUMBER(SEARCH("r",T65)),"-1","1")*S65,"0") -> 0 | V65: =IFERROR(VALUE(LEFT('Street Report'!K10,Z65-1))," ") ->  | W65: =IFERROR(TRIM(RIGHT('Street Report'!K10,LEN('Street Report'!K10)-Z65+1))," ") ->  | X65: =IFERROR(IF(ISNUMBER(SEARCH("r",W65)),"-1","1")*V65,"0") -> 0 | Y65: =IFERROR(ABS(X65-U65)," ") -> 0 | Z65: =IFERROR(MAX(ISNUMBER(VALUE(MID('Street Report'!K10,{1,2,3,4,5,6,7,8,9},1)))*{1,2,3,4,5,6,7,8,9})+1," ") -> 1 | AA65: PATCHING | AB65: ='Street Report'!H45 -> 0 | AC65: ='Street Report'!J45 -> 0 | AD65: ='Street Report'!S45 -> 0 | AE65: =IFERROR(VLOOKUP($AA$64,AC65:AD65,2,FALSE)," ") ->  | AF65: =IFERROR(VLOOKUP($AA$67,AC65:AD65,2,FALSE)," ") ->  | AG65: =IFERROR(VLOOKUP($AA$66,AC65:AD65,2,FALSE)," ") ->  | AH65: =IFERROR(VLOOKUP($AA$65,AC65:AD65,2,FALSE)," ") ->  | AI65: =IFERROR(VLOOKUP($AI$63,AB65:AH65,7,0)," ") ->  | AJ65: =IFERROR(VLOOKUP($AJ$63,AB65:AH65,7,0)," ") ->  | AK65: =IFERROR(VLOOKUP($AK$63,$AB65:$AH65,7,0)," ") ->  | AL65: =IFERROR(VLOOKUP($AL$63,$AB65:$AH65,7,0)," ") ->  | AM65: =IFERROR(VLOOKUP($AM$63,$AB65:$AH65,7,0)," ") ->  | AN65: 0 | BD65: 0
F66: ='Street Report'!B19 -> 0 | H66: ='Street Report'!S19 -> 0.00 | I66: 0 | J66: 0 | K66: 0 | L66: 0 | M66: 0 | N66: 0 | O66: 0 | P66: 0 | R66: =MAX(ISNUMBER(VALUE(MID('Street Report'!J11,{1,2,3,4,5,6,7,8,9},1)))*{1,2,3,4,5,6,7,8,9})+1 -> 1 | S66: =IFERROR(VALUE(LEFT('Street Report'!J11,R66-1))," ") ->  | T66: =IFERROR(TRIM(RIGHT('Street Report'!J11,LEN('Street Report'!J11)-R66+1))," ") ->  | U66: 0 | V66: =IFERROR(VALUE(LEFT('Street Report'!K11,Z66-1))," ") ->  | W66: =IFERROR(TRIM(RIGHT('Street Report'!K11,LEN('Street Report'!K11)-Z66+1))," ") ->  | X66: 0 | Y66: =IFERROR(ABS(X66-U66)," ") -> 0 | Z66: =IFERROR(MAX(ISNUMBER(VALUE(MID('Street Report'!K11,{1,2,3,4,5,6,7,8,9},1)))*{1,2,3,4,5,6,7,8,9})+1," ") -> 1 | AA66: MISC. | AB66: ='Street Report'!H46 -> 0 | AC66: ='Street Report'!J46 -> 0 | AD66: ='Street Report'!S46 -> 0 | AN66: 0 | BD66: 0
F67: ='Street Report'!B20 -> 0 | H67: ='Street Report'!S20 -> 0.00 | I67: 0 | J67: 0 | K67: 0 | L67: 0 | M67: 0 | N67: 0 | O67: 0 | P67: 0 | R67: =MAX(ISNUMBER(VALUE(MID('Street Report'!J12,{1,2,3,4,5,6,7,8,9},1)))*{1,2,3,4,5,6,7,8,9})+1 -> 1 | S67: =IFERROR(VALUE(LEFT('Street Report'!J12,R67-1))," ") ->  | T67: =IFERROR(TRIM(RIGHT('Street Report'!J12,LEN('Street Report'!J12)-R67+1))," ") ->  | U67: 0 | V67: =IFERROR(VALUE(LEFT('Street Report'!K12,Z67-1))," ") ->  | W67: =IFERROR(TRIM(RIGHT('Street Report'!K12,LEN('Street Report'!K12)-Z67+1))," ") ->  | X67: 0 | Y67: 0 | Z67: =IFERROR(MAX(ISNUMBER(VALUE(MID('Street Report'!K12,{1,2,3,4,5,6,7,8,9},1)))*{1,2,3,4,5,6,7,8,9})+1," ") -> 1 | AA67: ENTRANCE | AB67: ='Street Report'!H47 -> 0 | AC67: ='Street Report'!J47 -> 0 | AD67: ='Street Report'!S47 -> 0 | AN67: 0 | BD67: 0
F68: ='Street Report'!B21 -> 0 | H68: ='Street Report'!S21 -> 0.00 | I68: 0 | J68: 0 | K68: 0 | L68: 0 | M68: 0 | N68: 0 | O68: 0 | P68: 0 | R68: =MAX(ISNUMBER(VALUE(MID('Street Report'!J13,{1,2,3,4,5,6,7,8,9},1)))*{1,2,3,4,5,6,7,8,9})+1 -> 1 | S68: =IFERROR(VALUE(LEFT('Street Report'!J13,R68-1))," ") ->  | T68: =IFERROR(TRIM(RIGHT('Street Report'!J13,LEN('Street Report'!J13)-R68+1))," ") ->  | U68: 0 | V68: =IFERROR(VALUE(LEFT('Street Report'!K13,Z68-1))," ") ->  | W68: =IFERROR(TRIM(RIGHT('Street Report'!K13,LEN('Street Report'!K13)-Z68+1))," ") ->  | X68: 0 | Y68: 0 | Z68: =IFERROR(MAX(ISNUMBER(VALUE(MID('Street Report'!K13,{1,2,3,4,5,6,7,8,9},1)))*{1,2,3,4,5,6,7,8,9})+1," ") -> 1 | AB68: ='Street Report'!H48 -> 0 | AC68: ='Street Report'!J48 -> 0 | AD68: ='Street Report'!S48 -> 0 | AN68: 0
F69: ='Street Report'!B22 -> 0 | H69: ='Street Report'!S22 -> 0.00 | I69: 0 | J69: 0 | K69: 0 | L69: 0 | M69: 0 | N69: 0 | O69: 0 | P69: 0 | R69: =MAX(ISNUMBER(VALUE(MID('Street Report'!J14,{1,2,3,4,5,6,7,8,9},1)))*{1,2,3,4,5,6,7,8,9})+1 -> 1 | S69: =IFERROR(VALUE(LEFT('Street Report'!J14,R69-1))," ") ->  | T69: =IFERROR(TRIM(RIGHT('Street Report'!J14,LEN('Street Report'!J14)-R69+1))," ") ->  | U69: 0 | V69: =IFERROR(VALUE(LEFT('Street Report'!K14,Z69-1))," ") ->  | W69: =IFERROR(TRIM(RIGHT('Street Report'!K14,LEN('Street Report'!K14)-Z69+1))," ") ->  | X69: 0 | Y69: 0 | Z69: =IFERROR(MAX(ISNUMBER(VALUE(MID('Street Report'!K14,{1,2,3,4,5,6,7,8,9},1)))*{1,2,3,4,5,6,7,8,9})+1," ") -> 1 | AB69: ='Street Report'!H49 -> 0 | AC69: ='Street Report'!J49 -> 0 | AD69: ='Street Report'!S49 -> 0 | AF69: =IFERROR(VLOOKUP($AA$67,AC69:AD69,2,FALSE)," ") -> 
F70: ='Street Report'!B23 -> 0 | H70: ='Street Report'!S23 -> 0.00 | I70: 0 | J70: 0 | K70: 0 | L70: 0 | M70: 0 | N70: 0 | O70: 0 | P70: 0 | R70: =MAX(ISNUMBER(VALUE(MID('Street Report'!J15,{1,2,3,4,5,6,7,8,9},1)))*{1,2,3,4,5,6,7,8,9})+1 -> 1 | S70: =IFERROR(VALUE(LEFT('Street Report'!J15,R70-1))," ") ->  | T70: =IFERROR(TRIM(RIGHT('Street Report'!J15,LEN('Street Report'!J15)-R70+1))," ") ->  | U70: 0 | V70: =IFERROR(VALUE(LEFT('Street Report'!K15,Z70-1))," ") ->  | W70: =IFERROR(TRIM(RIGHT('Street Report'!K15,LEN('Street Report'!K15)-Z70+1))," ") ->  | X70: 0 | Y70: 0 | Z70: =IFERROR(MAX(ISNUMBER(VALUE(MID('Street Report'!K15,{1,2,3,4,5,6,7,8,9},1)))*{1,2,3,4,5,6,7,8,9})+1," ") -> 1 | AB70: ='Street Report'!H50 -> 0 | AC70: ='Street Report'!J50 -> 0 | AD70: ='Street Report'!S50 -> 0
F71: ='Street Report'!B24 -> 0 | H71: ='Street Report'!S24 -> 0.00 | I71: 0 | J71: 0 | K71: 0 | L71: 0 | M71: 0 | N71: 0 | O71: 0 | P71: 0 | R71: =MAX(ISNUMBER(VALUE(MID('Street Report'!J16,{1,2,3,4,5,6,7,8,9},1)))*{1,2,3,4,5,6,7,8,9})+1 -> 1 | S71: =IFERROR(VALUE(LEFT('Street Report'!J16,R71-1))," ") ->  | T71: =IFERROR(TRIM(RIGHT('Street Report'!J16,LEN('Street Report'!J16)-R71+1))," ") ->  | U71: 0 | V71: =IFERROR(VALUE(LEFT('Street Report'!K16,Z71-1))," ") ->  | W71: =IFERROR(TRIM(RIGHT('Street Report'!K16,LEN('Street Report'!K16)-Z71+1))," ") ->  | X71: 0 | Y71: 0 | Z71: =IFERROR(MAX(ISNUMBER(VALUE(MID('Street Report'!K16,{1,2,3,4,5,6,7,8,9},1)))*{1,2,3,4,5,6,7,8,9})+1," ") -> 1 | AB71: ='Street Report'!H51 -> 0 | AC71: ='Street Report'!J51 -> 0 | AD71: ='Street Report'!S51 -> 0
F72: ='Street Report'!B25 -> 0 | H72: ='Street Report'!S25 -> 0.00 | I72: 0 | J72: 0 | K72: 0 | L72: 0 | M72: 0 | N72: 0 | O72: 0 | P72: 0 | R72: =MAX(ISNUMBER(VALUE(MID('Street Report'!J17,{1,2,3,4,5,6,7,8,9},1)))*{1,2,3,4,5,6,7,8,9})+1 -> 1 | S72: =IFERROR(VALUE(LEFT('Street Report'!J17,R72-1))," ") ->  | T72: =IFERROR(TRIM(RIGHT('Street Report'!J17,LEN('Street Report'!J17)-R72+1))," ") ->  | U72: 0 | V72: =IFERROR(VALUE(LEFT('Street Report'!K17,Z72-1))," ") ->  | W72: =IFERROR(TRIM(RIGHT('Street Report'!K17,LEN('Street Report'!K17)-Z72+1))," ") ->  | X72: 0 | Y72: 0 | Z72: =IFERROR(MAX(ISNUMBER(VALUE(MID('Street Report'!K17,{1,2,3,4,5,6,7,8,9},1)))*{1,2,3,4,5,6,7,8,9})+1," ") -> 1 | AB72: ='Street Report'!H52 -> 0 | AC72: ='Street Report'!J52 -> 0 | AD72: ='Street Report'!S52 -> 0
F73: ='Street Report'!B26 -> 0 | H73: ='Street Report'!S26 -> 0.00 | I73: 0 | J73: 0 | K73: 0 | L73: 0 | M73: 0 | N73: 0 | O73: 0 | P73: 0 | R73: =MAX(ISNUMBER(VALUE(MID('Street Report'!J18,{1,2,3,4,5,6,7,8,9},1)))*{1,2,3,4,5,6,7,8,9})+1 -> 1 | S73: =IFERROR(VALUE(LEFT('Street Report'!J18,R73-1))," ") ->  | T73: =IFERROR(TRIM(RIGHT('Street Report'!J18,LEN('Street Report'!J18)-R73+1))," ") ->  | U73: 0 | V73: =IFERROR(VALUE(LEFT('Street Report'!K18,Z73-1))," ") ->  | W73: =IFERROR(TRIM(RIGHT('Street Report'!K18,LEN('Street Report'!K18)-Z73+1))," ") ->  | X73: 0 | Y73: 0 | Z73: =IFERROR(MAX(ISNUMBER(VALUE(MID('Street Report'!K18,{1,2,3,4,5,6,7,8,9},1)))*{1,2,3,4,5,6,7,8,9})+1," ") -> 1 | AB73: ='Street Report'!H53 -> 0 | AC73: ='Street Report'!J53 -> 0 | AD73: ='Street Report'!S53 -> 0
F74: ='Street Report'!B27 -> 0 | H74: ='Street Report'!S27 -> 0.00 | I74: 0 | J74: 0 | K74: 0 | L74: 0 | M74: 0 | N74: 0 | O74: 0 | P74: 0 | R74: =MAX(ISNUMBER(VALUE(MID('Street Report'!J19,{1,2,3,4,5,6,7,8,9},1)))*{1,2,3,4,5,6,7,8,9})+1 -> 1 | S74: =IFERROR(VALUE(LEFT('Street Report'!J19,R74-1))," ") ->  | T74: =IFERROR(TRIM(RIGHT('Street Report'!J19,LEN('Street Report'!J19)-R74+1))," ") ->  | U74: 0 | V74: =IFERROR(VALUE(LEFT('Street Report'!K19,Z74-1))," ") ->  | W74: =IFERROR(TRIM(RIGHT('Street Report'!K19,LEN('Street Report'!K19)-Z74+1))," ") ->  | X74: 0 | Y74: 0 | Z74: =IFERROR(MAX(ISNUMBER(VALUE(MID('Street Report'!K19,{1,2,3,4,5,6,7,8,9},1)))*{1,2,3,4,5,6,7,8,9})+1," ") -> 1 | AB74: ='Street Report'!H54 -> 0 | AC74: ='Street Report'!J54 -> 0 | AD74: ='Street Report'!S54 -> 0
F75: ='Street Report'!B28 -> 0 | H75: ='Street Report'!S28 -> 0.00 | I75: 0 | J75: 0 | K75: 0 | L75: 0 | M75: 0 | N75: 0 | O75: 0 | P75: 0 | R75: =MAX(ISNUMBER(VALUE(MID('Street Report'!J20,{1,2,3,4,5,6,7,8,9},1)))*{1,2,3,4,5,6,7,8,9})+1 -> 1 | S75: =IFERROR(VALUE(LEFT('Street Report'!J20,R75-1))," ") ->  | T75: =IFERROR(TRIM(RIGHT('Street Report'!J20,LEN('Street Report'!J20)-R75+1))," ") ->  | U75: 0 | V75: =IFERROR(VALUE(LEFT('Street Report'!K20,Z75-1))," ") ->  | W75: =IFERROR(TRIM(RIGHT('Street Report'!K20,LEN('Street Report'!K20)-Z75+1))," ") ->  | X75: 0 | Y75: 0 | Z75: =IFERROR(MAX(ISNUMBER(VALUE(MID('Street Report'!K20,{1,2,3,4,5,6,7,8,9},1)))*{1,2,3,4,5,6,7,8,9})+1," ") -> 1 | AB75: ='Street Report'!H55 -> 0 | AC75: ='Street Report'!J55 -> 0 | AD75: ='Street Report'!S55 -> 0
F76: ='Street Report'!B29 -> 0 | H76: ='Street Report'!S29 -> 0.00 | I76: 0 | J76: 0 | K76: 0 | L76: 0 | M76: 0 | N76: 0 | O76: 0 | P76: 0 | R76: =MAX(ISNUMBER(VALUE(MID('Street Report'!J21,{1,2,3,4,5,6,7,8,9},1)))*{1,2,3,4,5,6,7,8,9})+1 -> 1 | S76: =IFERROR(VALUE(LEFT('Street Report'!J21,R76-1))," ") ->  | T76: =IFERROR(TRIM(RIGHT('Street Report'!J21,LEN('Street Report'!J21)-R76+1))," ") ->  | U76: 0 | V76: =IFERROR(VALUE(LEFT('Street Report'!K21,Z76-1))," ") ->  | W76: =IFERROR(TRIM(RIGHT('Street Report'!K21,LEN('Street Report'!K21)-Z76+1))," ") ->  | X76: 0 | Y76: 0 | Z76: =IFERROR(MAX(ISNUMBER(VALUE(MID('Street Report'!K21,{1,2,3,4,5,6,7,8,9},1)))*{1,2,3,4,5,6,7,8,9})+1," ") -> 1 | AB76: ='Street Report'!H56 -> 0 | AC76: ='Street Report'!J56 -> 0 | AD76: ='Street Report'!S56 -> 0
F77: ='Street Report'!B30 -> 0 | H77: ='Street Report'!S30 -> 0.00 | I77: 0 | J77: 0 | K77: 0 | L77: 0 | M77: 0 | N77: 0 | O77: 0 | P77: 0 | R77: =MAX(ISNUMBER(VALUE(MID('Street Report'!J22,{1,2,3,4,5,6,7,8,9},1)))*{1,2,3,4,5,6,7,8,9})+1 -> 1 | S77: =IFERROR(VALUE(LEFT('Street Report'!J22,R77-1))," ") ->  | T77: =IFERROR(TRIM(RIGHT('Street Report'!J22,LEN('Street Report'!J22)-R77+1))," ") ->  | U77: 0 | V77: =IFERROR(VALUE(LEFT('Street Report'!K22,Z77-1))," ") ->  | W77: =IFERROR(TRIM(RIGHT('Street Report'!K22,LEN('Street Report'!K22)-Z77+1))," ") ->  | X77: 0 | Y77: 0 | Z77: =IFERROR(MAX(ISNUMBER(VALUE(MID('Street Report'!K22,{1,2,3,4,5,6,7,8,9},1)))*{1,2,3,4,5,6,7,8,9})+1," ") -> 1 | AB77: ='Street Report'!H57 -> 0 | AC77: ='Street Report'!J57 -> 0 | AD77: ='Street Report'!S57 -> 0
F78: ='Street Report'!B31 -> 0 | H78: ='Street Report'!S31 -> 0.00 | I78: 0 | J78: 0 | K78: 0 | L78: 0 | M78: 0 | N78: 0 | O78: 0 | P78: 0 | R78: =MAX(ISNUMBER(VALUE(MID('Street Report'!J23,{1,2,3,4,5,6,7,8,9},1)))*{1,2,3,4,5,6,7,8,9})+1 -> 1 | S78: =IFERROR(VALUE(LEFT('Street Report'!J23,R78-1))," ") ->  | T78: =IFERROR(TRIM(RIGHT('Street Report'!J23,LEN('Street Report'!J23)-R78+1))," ") ->  | U78: 0 | V78: =IFERROR(VALUE(LEFT('Street Report'!K23,Z78-1))," ") ->  | W78: =IFERROR(TRIM(RIGHT('Street Report'!K23,LEN('Street Report'!K23)-Z78+1))," ") ->  | X78: 0 | Y78: 0 | Z78: =IFERROR(MAX(ISNUMBER(VALUE(MID('Street Report'!K23,{1,2,3,4,5,6,7,8,9},1)))*{1,2,3,4,5,6,7,8,9})+1," ") -> 1 | AB78: ='Street Report'!H58 -> 0 | AC78: ='Street Report'!J58 -> 0 | AD78: ='Street Report'!S58 -> 0
F79: ='Street Report'!B32 -> 0 | H79: ='Street Report'!S32 -> 0.00 | I79: 0 | J79: 0 | K79: 0 | L79: 0 | M79: 0 | N79: 0 | O79: 0 | P79: 0 | R79: =MAX(ISNUMBER(VALUE(MID('Street Report'!J24,{1,2,3,4,5,6,7,8,9},1)))*{1,2,3,4,5,6,7,8,9})+1 -> 1 | S79: =IFERROR(VALUE(LEFT('Street Report'!J24,R79-1))," ") ->  | T79: =IFERROR(TRIM(RIGHT('Street Report'!J24,LEN('Street Report'!J24)-R79+1))," ") ->  | U79: 0 | V79: =IFERROR(VALUE(LEFT('Street Report'!K24,Z79-1))," ") ->  | W79: =IFERROR(TRIM(RIGHT('Street Report'!K24,LEN('Street Report'!K24)-Z79+1))," ") ->  | X79: 0 | Y79: 0 | Z79: =IFERROR(MAX(ISNUMBER(VALUE(MID('Street Report'!K24,{1,2,3,4,5,6,7,8,9},1)))*{1,2,3,4,5,6,7,8,9})+1," ") -> 1 | AB79: ='Street Report'!H59 -> 0 | AD79: TOTAL | AE79: =SUM(AE64:AE78) -> 0 | AF79: =SUM(AF64:AF78) -> 0 | AG79: 0 | AH79: =SUM(AH64:AH78) -> 0 | AI79: =SUM(AI64:AI78) -> 0 | AJ79: =SUM(AJ64:AJ78) -> 0 | AK79: 0 | AL79: 0 | AM79: 0
F80: ='Street Report'!B33 -> 0 | H80: ='Street Report'!S33 -> 0.00 | I80: 0 | J80: 0 | K80: 0 | L80: 0 | M80: 0 | N80: 0 | O80: 0 | P80: 0 | R80: =MAX(ISNUMBER(VALUE(MID('Street Report'!J25,{1,2,3,4,5,6,7,8,9},1)))*{1,2,3,4,5,6,7,8,9})+1 -> 1 | S80: =IFERROR(VALUE(LEFT('Street Report'!J25,R80-1))," ") ->  | T80: =IFERROR(TRIM(RIGHT('Street Report'!J25,LEN('Street Report'!J25)-R80+1))," ") ->  | U80: 0 | V80: =IFERROR(VALUE(LEFT('Street Report'!K25,Z80-1))," ") ->  | W80: =IFERROR(TRIM(RIGHT('Street Report'!K25,LEN('Street Report'!K25)-Z80+1))," ") ->  | X80: 0 | Y80: 0 | Z80: =IFERROR(MAX(ISNUMBER(VALUE(MID('Street Report'!K25,{1,2,3,4,5,6,7,8,9},1)))*{1,2,3,4,5,6,7,8,9})+1," ") -> 1
F81: ='Street Report'!B34 -> 0 | H81: ='Street Report'!S34 -> 0.00 | I81: 0 | J81: 0 | K81: 0 | L81: 0 | M81: 0 | N81: 0 | O81: 0 | P81: 0 | R81: =MAX(ISNUMBER(VALUE(MID('Street Report'!J26,{1,2,3,4,5,6,7,8,9},1)))*{1,2,3,4,5,6,7,8,9})+1 -> 1 | S81: =IFERROR(VALUE(LEFT('Street Report'!J26,R81-1))," ") ->  | T81: =IFERROR(TRIM(RIGHT('Street Report'!J26,LEN('Street Report'!J26)-R81+1))," ") ->  | U81: 0 | V81: =IFERROR(VALUE(LEFT('Street Report'!K26,Z81-1))," ") ->  | W81: =IFERROR(TRIM(RIGHT('Street Report'!K26,LEN('Street Report'!K26)-Z81+1))," ") ->  | X81: 0 | Y81: 0 | Z81: =IFERROR(MAX(ISNUMBER(VALUE(MID('Street Report'!K26,{1,2,3,4,5,6,7,8,9},1)))*{1,2,3,4,5,6,7,8,9})+1," ") -> 1 | AA81: NON-DENSITY TONS SEPARATED BY AREA TYPE | AI81: Density SY | AJ81: ='Street Report'!R37 -> 0
F82: ='Street Report'!B35 -> 0 | H82: ='Street Report'!S35 -> 0.00 | I82: 0 | J82: 0 | K82: 0 | L82: 0 | M82: 0 | N82: 0 | O82: 0 | P82: 0 | R82: =MAX(ISNUMBER(VALUE(MID('Street Report'!J27,{1,2,3,4,5,6,7,8,9},1)))*{1,2,3,4,5,6,7,8,9})+1 -> 1 | S82: =IFERROR(VALUE(LEFT('Street Report'!J27,R82-1))," ") ->  | T82: =IFERROR(TRIM(RIGHT('Street Report'!J27,LEN('Street Report'!J27)-R82+1))," ") ->  | U82: 0 | V82: =IFERROR(VALUE(LEFT('Street Report'!K27,Z82-1))," ") ->  | W82: =IFERROR(TRIM(RIGHT('Street Report'!K27,LEN('Street Report'!K27)-Z82+1))," ") ->  | X82: 0 | Y82: 0 | Z82: =IFERROR(MAX(ISNUMBER(VALUE(MID('Street Report'!K27,{1,2,3,4,5,6,7,8,9},1)))*{1,2,3,4,5,6,7,8,9})+1," ") -> 1 | AA82: AREA TYPE | AC82: AREA TYPE | AD82: SY YDS | AE82: SHLD | AF82: ENT. | AG82: MISC. | AH82: PATCH | AI82: Non-density SY | AJ82: ='Street Report'!R59 -> 0
F83: ='Street Report'!B36 -> 0 | H83: ='Street Report'!S36 -> 0.00 | I83: 0 | J83: 0 | K83: 0 | L83: 0 | M83: 0 | N83: 0 | O83: 0 | P83: 0 | R83: =MAX(ISNUMBER(VALUE(MID('Street Report'!J28,{1,2,3,4,5,6,7,8,9},1)))*{1,2,3,4,5,6,7,8,9})+1 -> 1 | S83: =IFERROR(VALUE(LEFT('Street Report'!J28,R83-1))," ") ->  | T83: =IFERROR(TRIM(RIGHT('Street Report'!J28,LEN('Street Report'!J28)-R83+1))," ") ->  | U83: 0 | V83: =IFERROR(VALUE(LEFT('Street Report'!K28,Z83-1))," ") ->  | W83: =IFERROR(TRIM(RIGHT('Street Report'!K28,LEN('Street Report'!K28)-Z83+1))," ") ->  | X83: 0 | Y83: 0 | Z83: =IFERROR(MAX(ISNUMBER(VALUE(MID('Street Report'!K28,{1,2,3,4,5,6,7,8,9},1)))*{1,2,3,4,5,6,7,8,9})+1," ") -> 1 | AA83: <6' SHOULDER | AB83: ='Street Report'!H63 -> 0 | AC83: ='Street Report'!J44 -> 0 | AD83: ='Street Report'!R44 -> 0 | AE83: =IFERROR(VLOOKUP($AA$64,AC83:AD83,2,FALSE)," ") ->  | AF83: =IFERROR(VLOOKUP($AA$67,AC83:AD83,2,FALSE)," ") ->  | AG83: =IFERROR(VLOOKUP($AA$66,AC83:AD83,2,FALSE)," ") ->  | AH83: =IFERROR(VLOOKUP($AA$65,AC83:AD83,2,FALSE)," ") ->  | AI83: Patching SY | AJ83: =AH98 -> 0
E84: denseity tons | H84: =SUM(H56:H83) -> 0.00 | I84: =SUM(I56:I83) -> 0.00 | J84: 0.00 | K84: 0.00 | L84: 0.00 | M84: =SUM(M56:M83) -> 0.00 | N84: =SUM(N56:N83) -> 0.00 | O84: =SUM(O56:O83) -> 0.00 | P84: 0.00 | R84: =MAX(ISNUMBER(VALUE(MID('Street Report'!J29,{1,2,3,4,5,6,7,8,9},1)))*{1,2,3,4,5,6,7,8,9})+1 -> 1 | S84: =IFERROR(VALUE(LEFT('Street Report'!J29,R84-1))," ") ->  | T84: =IFERROR(TRIM(RIGHT('Street Report'!J29,LEN('Street Report'!J29)-R84+1))," ") ->  | U84: 0 | V84: =IFERROR(VALUE(LEFT('Street Report'!K29,Z84-1))," ") ->  | W84: =IFERROR(TRIM(RIGHT('Street Report'!K29,LEN('Street Report'!K29)-Z84+1))," ") ->  | X84: 0 | Y84: 0 | Z84: =IFERROR(MAX(ISNUMBER(VALUE(MID('Street Report'!K29,{1,2,3,4,5,6,7,8,9},1)))*{1,2,3,4,5,6,7,8,9})+1," ") -> 1 | AA84: PATCHING | AB84: ='Street Report'!H64 -> 0 | AC84: ='Street Report'!J45 -> 0 | AD84: ='Street Report'!R45 -> 0 | AE84: =IFERROR(VLOOKUP($AA$64,AC84:AD84,2,FALSE)," ") ->  | AF84: =IFERROR(VLOOKUP($AA$67,AC84:AD84,2,FALSE)," ") ->  | AG84: =IFERROR(VLOOKUP($AA$66,AC84:AD84,2,FALSE)," ") ->  | AH84: =IFERROR(VLOOKUP($AA$65,AC84:AD84,2,FALSE)," ") ->  | AI84: TOTAL = | AJ84: =MROUND(AJ81+AJ82-AJ83,(1+(MOD(AJ81+AJ82-AJ83*10^(1),10)=5))/10^0) -> 0.00
F85: ='Street Report'!H44 -> 0 | H85: ='Street Report'!S44 -> 0.00 | I85: =IFERROR(IF('Street Report'!$J44="PATCHING","",VLOOKUP(I$55,$F85:$H85,3,FALSE))," ") -> 0 | J85: =IFERROR(IF('Street Report'!$J44="PATCHING","",VLOOKUP(J$55,$F85:$H85,3,FALSE))," ") -> 0 | K85: =IFERROR(IF('Street Report'!$J44="PATCHING","",VLOOKUP(K$55,$F85:$H85,3,FALSE))," ") -> 0 | L85: =IFERROR(IF('Street Report'!$J44="PATCHING","",VLOOKUP(L$55,$F85:$H85,3,FALSE))," ") -> 0 | M85: =IFERROR(IF('Street Report'!$J44="PATCHING","",VLOOKUP(M$55,$F85:$H85,3,FALSE))," ") -> 0 | N85: =IFERROR(IF('Street Report'!$J44="PATCHING","",VLOOKUP(N$55,$F85:$H85,3,FALSE))," ") -> 0 | O85: =IFERROR(IF('Street Report'!$J44="PATCHING","",VLOOKUP(O$55,$F85:$H85,3,FALSE))," ") -> 0 | P85: =IFERROR(IF('Street Report'!$J44="PATCHING","",VLOOKUP(P$55,$F85:$H85,3,FALSE))," ") -> 0 | R85: =MAX(ISNUMBER(VALUE(MID('Street Report'!J30,{1,2,3,4,5,6,7,8,9},1)))*{1,2,3,4,5,6,7,8,9})+1 -> 1 | S85: =IFERROR(VALUE(LEFT('Street Report'!J30,R85-1))," ") ->  | T85: =IFERROR(TRIM(RIGHT('Street Report'!J30,LEN('Street Report'!J30)-R85+1))," ") ->  | U85: 0 | V85: =IFERROR(VALUE(LEFT('Street Report'!K30,Z85-1))," ") ->  | W85: =IFERROR(TRIM(RIGHT('Street Report'!K30,LEN('Street Report'!K30)-Z85+1))," ") ->  | X85: 0 | Y85: 0 | Z85: =IFERROR(MAX(ISNUMBER(VALUE(MID('Street Report'!K30,{1,2,3,4,5,6,7,8,9},1)))*{1,2,3,4,5,6,7,8,9})+1," ") -> 1 | AA85: MISC. | AB85: ='Street Report'!H65 -> 0 | AC85: ='Street Report'!J46 -> 0 | AD85: ='Street Report'!R46 -> 0
F86: ='Street Report'!H45 -> 0 | H86: ='Street Report'!S45 -> 0.00 | I86: =IFERROR(IF('Street Report'!$J45="PATCHING","",VLOOKUP(I$55,$F86:$H86,3,FALSE))," ") -> 0 | J86: =IFERROR(IF('Street Report'!$J45="PATCHING","",VLOOKUP(J$55,$F86:$H86,3,FALSE))," ") -> 0 | K86: =IFERROR(IF('Street Report'!$J45="PATCHING","",VLOOKUP(K$55,$F86:$H86,3,FALSE))," ") -> 0 | L86: =IFERROR(IF('Street Report'!$J45="PATCHING","",VLOOKUP(L$55,$F86:$H86,3,FALSE))," ") -> 0 | M86: =IFERROR(IF('Street Report'!$J45="PATCHING","",VLOOKUP(M$55,$F86:$H86,3,FALSE))," ") -> 0 | N86: =IFERROR(IF('Street Report'!$J45="PATCHING","",VLOOKUP(N$55,$F86:$H86,3,FALSE))," ") -> 0 | O86: =IFERROR(IF('Street Report'!$J45="PATCHING","",VLOOKUP(O$55,$F86:$H86,3,FALSE))," ") -> 0 | P86: =IFERROR(IF('Street Report'!$J45="PATCHING","",VLOOKUP(P$55,$F86:$H86,3,FALSE))," ") -> 0 | R86: =MAX(ISNUMBER(VALUE(MID('Street Report'!J31,{1,2,3,4,5,6,7,8,9},1)))*{1,2,3,4,5,6,7,8,9})+1 -> 1 | S86: =IFERROR(VALUE(LEFT('Street Report'!J31,R86-1))," ") ->  | T86: =IFERROR(TRIM(RIGHT('Street Report'!J31,LEN('Street Report'!J31)-R86+1))," ") ->  | U86: 0 | V86: =IFERROR(VALUE(LEFT('Street Report'!K31,Z86-1))," ") ->  | W86: =IFERROR(TRIM(RIGHT('Street Report'!K31,LEN('Street Report'!K31)-Z86+1))," ") ->  | X86: 0 | Y86: 0 | Z86: =IFERROR(MAX(ISNUMBER(VALUE(MID('Street Report'!K31,{1,2,3,4,5,6,7,8,9},1)))*{1,2,3,4,5,6,7,8,9})+1," ") -> 1 | AA86: ENTRANCE | AB86: ='Street Report'!H66 -> 0 | AC86: ='Street Report'!J47 -> 0 | AD86: ='Street Report'!R47 -> 0
F87: ='Street Report'!H46 -> 0 | H87: ='Street Report'!S46 -> 0.00 | I87: =IFERROR(IF('Street Report'!$J46="PATCHING","",VLOOKUP(I$55,$F87:$H87,3,FALSE))," ") -> 0 | J87: =IFERROR(IF('Street Report'!$J46="PATCHING","",VLOOKUP(J$55,$F87:$H87,3,FALSE))," ") -> 0 | K87: =IFERROR(IF('Street Report'!$J46="PATCHING","",VLOOKUP(K$55,$F87:$H87,3,FALSE))," ") -> 0 | L87: =IFERROR(IF('Street Report'!$J46="PATCHING","",VLOOKUP(L$55,$F87:$H87,3,FALSE))," ") -> 0 | M87: =IFERROR(IF('Street Report'!$J46="PATCHING","",VLOOKUP(M$55,$F87:$H87,3,FALSE))," ") -> 0 | N87: =IFERROR(IF('Street Report'!$J46="PATCHING","",VLOOKUP(N$55,$F87:$H87,3,FALSE))," ") -> 0 | O87: =IFERROR(IF('Street Report'!$J46="PATCHING","",VLOOKUP(O$55,$F87:$H87,3,FALSE))," ") -> 0 | P87: =IFERROR(IF('Street Report'!$J46="PATCHING","",VLOOKUP(P$55,$F87:$H87,3,FALSE))," ") -> 0 | R87: =MAX(ISNUMBER(VALUE(MID('Street Report'!J32,{1,2,3,4,5,6,7,8,9},1)))*{1,2,3,4,5,6,7,8,9})+1 -> 1 | S87: =IFERROR(VALUE(LEFT('Street Report'!J32,R87-1))," ") ->  | T87: =IFERROR(TRIM(RIGHT('Street Report'!J32,LEN('Street Report'!J32)-R87+1))," ") ->  | U87: 0 | V87: =IFERROR(VALUE(LEFT('Street Report'!K32,Z87-1))," ") ->  | W87: =IFERROR(TRIM(RIGHT('Street Report'!K32,LEN('Street Report'!K32)-Z87+1))," ") ->  | X87: 0 | Y87: 0 | Z87: =IFERROR(MAX(ISNUMBER(VALUE(MID('Street Report'!K32,{1,2,3,4,5,6,7,8,9},1)))*{1,2,3,4,5,6,7,8,9})+1," ") -> 1 | AB87: ='Street Report'!H67 -> 0 | AC87: ='Street Report'!J48 -> 0 | AD87: ='Street Report'!R48 -> 0
F88: ='Street Report'!H47 -> 0 | H88: ='Street Report'!S47 -> 0.00 | I88: =IFERROR(IF('Street Report'!$J47="PATCHING","",VLOOKUP(I$55,$F88:$H88,3,FALSE))," ") -> 0 | J88: =IFERROR(IF('Street Report'!$J47="PATCHING","",VLOOKUP(J$55,$F88:$H88,3,FALSE))," ") -> 0 | K88: =IFERROR(IF('Street Report'!$J47="PATCHING","",VLOOKUP(K$55,$F88:$H88,3,FALSE))," ") -> 0 | L88: =IFERROR(IF('Street Report'!$J47="PATCHING","",VLOOKUP(L$55,$F88:$H88,3,FALSE))," ") -> 0 | M88: =IFERROR(IF('Street Report'!$J47="PATCHING","",VLOOKUP(M$55,$F88:$H88,3,FALSE))," ") -> 0 | N88: =IFERROR(IF('Street Report'!$J47="PATCHING","",VLOOKUP(N$55,$F88:$H88,3,FALSE))," ") -> 0 | O88: =IFERROR(IF('Street Report'!$J47="PATCHING","",VLOOKUP(O$55,$F88:$H88,3,FALSE))," ") -> 0 | P88: =IFERROR(IF('Street Report'!$J47="PATCHING","",VLOOKUP(P$55,$F88:$H88,3,FALSE))," ") -> 0 | R88: =MAX(ISNUMBER(VALUE(MID('Street Report'!J33,{1,2,3,4,5,6,7,8,9},1)))*{1,2,3,4,5,6,7,8,9})+1 -> 1 | S88: =IFERROR(VALUE(LEFT('Street Report'!J33,R88-1))," ") ->  | T88: =IFERROR(TRIM(RIGHT('Street Report'!J33,LEN('Street Report'!J33)-R88+1))," ") ->  | U88: 0 | V88: =IFERROR(VALUE(LEFT('Street Report'!K33,Z88-1))," ") ->  | W88: =IFERROR(TRIM(RIGHT('Street Report'!K33,LEN('Street Report'!K33)-Z88+1))," ") ->  | X88: 0 | Y88: 0 | Z88: =IFERROR(MAX(ISNUMBER(VALUE(MID('Street Report'!K33,{1,2,3,4,5,6,7,8,9},1)))*{1,2,3,4,5,6,7,8,9})+1," ") -> 1 | AB88: ='Street Report'!H68 -> 0 | AC88: ='Street Report'!J49 -> 0 | AD88: ='Street Report'!R49 -> 0 | AF88: =IFERROR(VLOOKUP($AA$67,AC88:AD88,2,FALSE)," ") -> 
F89: ='Street Report'!H48 -> 0 | H89: ='Street Report'!S48 -> 0.00 | I89: =IFERROR(IF('Street Report'!$J48="PATCHING","",VLOOKUP(I$55,$F89:$H89,3,FALSE))," ") -> 0 | J89: =IFERROR(IF('Street Report'!$J48="PATCHING","",VLOOKUP(J$55,$F89:$H89,3,FALSE))," ") -> 0 | K89: =IFERROR(IF('Street Report'!$J48="PATCHING","",VLOOKUP(K$55,$F89:$H89,3,FALSE))," ") -> 0 | L89: =IFERROR(IF('Street Report'!$J48="PATCHING","",VLOOKUP(L$55,$F89:$H89,3,FALSE))," ") -> 0 | M89: =IFERROR(IF('Street Report'!$J48="PATCHING","",VLOOKUP(M$55,$F89:$H89,3,FALSE))," ") -> 0 | N89: =IFERROR(IF('Street Report'!$J48="PATCHING","",VLOOKUP(N$55,$F89:$H89,3,FALSE))," ") -> 0 | O89: =IFERROR(IF('Street Report'!$J48="PATCHING","",VLOOKUP(O$55,$F89:$H89,3,FALSE))," ") -> 0 | P89: =IFERROR(IF('Street Report'!$J48="PATCHING","",VLOOKUP(P$55,$F89:$H89,3,FALSE))," ") -> 0 | R89: =MAX(ISNUMBER(VALUE(MID('Street Report'!J34,{1,2,3,4,5,6,7,8,9},1)))*{1,2,3,4,5,6,7,8,9})+1 -> 1 | S89: =IFERROR(VALUE(LEFT('Street Report'!J34,R89-1))," ") ->  | T89: =IFERROR(TRIM(RIGHT('Street Report'!J34,LEN('Street Report'!J34)-R89+1))," ") ->  | U89: 0 | V89: =IFERROR(VALUE(LEFT('Street Report'!K34,Z89-1))," ") ->  | W89: =IFERROR(TRIM(RIGHT('Street Report'!K34,LEN('Street Report'!K34)-Z89+1))," ") ->  | X89: 0 | Y89: 0 | Z89: =IFERROR(MAX(ISNUMBER(VALUE(MID('Street Report'!K34,{1,2,3,4,5,6,7,8,9},1)))*{1,2,3,4,5,6,7,8,9})+1," ") -> 1 | AB89: ='Street Report'!H69 -> 0 | AC89: ='Street Report'!J50 -> 0 | AD89: ='Street Report'!R50 -> 0 | AF89: =IFERROR(VLOOKUP($AA$67,AC89:AD89,2,FALSE)," ") -> 
F90: ='Street Report'!H49 -> 0 | H90: ='Street Report'!S49 -> 0.00 | I90: =IFERROR(IF('Street Report'!$J49="PATCHING","",VLOOKUP(I$55,$F90:$H90,3,FALSE))," ") -> 0 | J90: =IFERROR(IF('Street Report'!$J49="PATCHING","",VLOOKUP(J$55,$F90:$H90,3,FALSE))," ") -> 0 | K90: =IFERROR(IF('Street Report'!$J49="PATCHING","",VLOOKUP(K$55,$F90:$H90,3,FALSE))," ") -> 0 | L90: =IFERROR(IF('Street Report'!$J49="PATCHING","",VLOOKUP(L$55,$F90:$H90,3,FALSE))," ") -> 0 | M90: =IFERROR(IF('Street Report'!$J49="PATCHING","",VLOOKUP(M$55,$F90:$H90,3,FALSE))," ") -> 0 | N90: =IFERROR(IF('Street Report'!$J49="PATCHING","",VLOOKUP(N$55,$F90:$H90,3,FALSE))," ") -> 0 | O90: =IFERROR(IF('Street Report'!$J49="PATCHING","",VLOOKUP(O$55,$F90:$H90,3,FALSE))," ") -> 0 | P90: =IFERROR(IF('Street Report'!$J49="PATCHING","",VLOOKUP(P$55,$F90:$H90,3,FALSE))," ") -> 0 | R90: =MAX(ISNUMBER(VALUE(MID('Street Report'!J35,{1,2,3,4,5,6,7,8,9},1)))*{1,2,3,4,5,6,7,8,9})+1 -> 1 | S90: =IFERROR(VALUE(LEFT('Street Report'!J35,R90-1))," ") ->  | T90: =IFERROR(TRIM(RIGHT('Street Report'!J35,LEN('Street Report'!J35)-R90+1))," ") ->  | U90: 0 | V90: =IFERROR(VALUE(LEFT('Street Report'!K35,Z90-1))," ") ->  | W90: =IFERROR(TRIM(RIGHT('Street Report'!K35,LEN('Street Report'!K35)-Z90+1))," ") ->  | X90: 0 | Y90: 0 | Z90: =IFERROR(MAX(ISNUMBER(VALUE(MID('Street Report'!K35,{1,2,3,4,5,6,7,8,9},1)))*{1,2,3,4,5,6,7,8,9})+1," ") -> 1 | AB90: ='Street Report'!H70 -> 0 | AC90: ='Street Report'!J51 -> 0 | AD90: ='Street Report'!R51 -> 0
F91: ='Street Report'!H50 -> 0 | H91: ='Street Report'!S50 -> 0.00 | I91: =IFERROR(IF('Street Report'!$J50="PATCHING","",VLOOKUP(I$55,$F91:$H91,3,FALSE))," ") -> 0 | J91: =IFERROR(IF('Street Report'!$J50="PATCHING","",VLOOKUP(J$55,$F91:$H91,3,FALSE))," ") -> 0 | K91: =IFERROR(IF('Street Report'!$J50="PATCHING","",VLOOKUP(K$55,$F91:$H91,3,FALSE))," ") -> 0 | L91: =IFERROR(IF('Street Report'!$J50="PATCHING","",VLOOKUP(L$55,$F91:$H91,3,FALSE))," ") -> 0 | M91: =IFERROR(IF('Street Report'!$J50="PATCHING","",VLOOKUP(M$55,$F91:$H91,3,FALSE))," ") -> 0 | N91: =IFERROR(IF('Street Report'!$J50="PATCHING","",VLOOKUP(N$55,$F91:$H91,3,FALSE))," ") -> 0 | O91: =IFERROR(IF('Street Report'!$J50="PATCHING","",VLOOKUP(O$55,$F91:$H91,3,FALSE))," ") -> 0 | P91: =IFERROR(IF('Street Report'!$J50="PATCHING","",VLOOKUP(P$55,$F91:$H91,3,FALSE))," ") -> 0 | R91: =MAX(ISNUMBER(VALUE(MID('Street Report'!J36,{1,2,3,4,5,6,7,8,9},1)))*{1,2,3,4,5,6,7,8,9})+1 -> 1 | S91: =IFERROR(VALUE(LEFT('Street Report'!J36,R91-1))," ") ->  | T91: =IFERROR(TRIM(RIGHT('Street Report'!J36,LEN('Street Report'!J36)-R91+1))," ") ->  | U91: 0 | V91: =IFERROR(VALUE(LEFT('Street Report'!K36,Z91-1))," ") ->  | W91: =IFERROR(TRIM(RIGHT('Street Report'!K36,LEN('Street Report'!K36)-Z91+1))," ") ->  | X91: 0 | Y91: 0 | Z91: =IFERROR(MAX(ISNUMBER(VALUE(MID('Street Report'!K36,{1,2,3,4,5,6,7,8,9},1)))*{1,2,3,4,5,6,7,8,9})+1," ") -> 1 | AB91: ='Street Report'!H71 -> 0 | AC91: ='Street Report'!J52 -> 0 | AD91: ='Street Report'!R52 -> 0
F92: ='Street Report'!H51 -> 0 | H92: ='Street Report'!S51 -> 0.00 | I92: =IFERROR(IF('Street Report'!$J51="PATCHING","",VLOOKUP(I$55,$F92:$H92,3,FALSE))," ") -> 0 | J92: =IFERROR(IF('Street Report'!$J51="PATCHING","",VLOOKUP(J$55,$F92:$H92,3,FALSE))," ") -> 0 | K92: =IFERROR(IF('Street Report'!$J51="PATCHING","",VLOOKUP(K$55,$F92:$H92,3,FALSE))," ") -> 0 | L92: =IFERROR(IF('Street Report'!$J51="PATCHING","",VLOOKUP(L$55,$F92:$H92,3,FALSE))," ") -> 0 | M92: =IFERROR(IF('Street Report'!$J51="PATCHING","",VLOOKUP(M$55,$F92:$H92,3,FALSE))," ") -> 0 | N92: =IFERROR(IF('Street Report'!$J51="PATCHING","",VLOOKUP(N$55,$F92:$H92,3,FALSE))," ") -> 0 | O92: =IFERROR(IF('Street Report'!$J51="PATCHING","",VLOOKUP(O$55,$F92:$H92,3,FALSE))," ") -> 0 | P92: =IFERROR(IF('Street Report'!$J51="PATCHING","",VLOOKUP(P$55,$F92:$H92,3,FALSE))," ") -> 0 | AB92: ='Street Report'!H72 -> 0 | AC92: ='Street Report'!J53 -> 0 | AD92: ='Street Report'!R53 -> 0
F93: ='Street Report'!H52 -> 0 | H93: ='Street Report'!S52 -> 0.00 | I93: =IFERROR(IF('Street Report'!$J52="PATCHING","",VLOOKUP(I$55,$F93:$H93,3,FALSE))," ") -> 0 | J93: =IFERROR(IF('Street Report'!$J52="PATCHING","",VLOOKUP(J$55,$F93:$H93,3,FALSE))," ") -> 0 | K93: =IFERROR(IF('Street Report'!$J52="PATCHING","",VLOOKUP(K$55,$F93:$H93,3,FALSE))," ") -> 0 | L93: =IFERROR(IF('Street Report'!$J52="PATCHING","",VLOOKUP(L$55,$F93:$H93,3,FALSE))," ") -> 0 | M93: =IFERROR(IF('Street Report'!$J52="PATCHING","",VLOOKUP(M$55,$F93:$H93,3,FALSE))," ") -> 0 | N93: =IFERROR(IF('Street Report'!$J52="PATCHING","",VLOOKUP(N$55,$F93:$H93,3,FALSE))," ") -> 0 | O93: =IFERROR(IF('Street Report'!$J52="PATCHING","",VLOOKUP(O$55,$F93:$H93,3,FALSE))," ") -> 0 | P93: =IFERROR(IF('Street Report'!$J52="PATCHING","",VLOOKUP(P$55,$F93:$H93,3,FALSE))," ") -> 0 | AB93: ='Street Report'!H73 -> 0 | AC93: ='Street Report'!J54 -> 0 | AD93: ='Street Report'!R54 -> 0
F94: ='Street Report'!H53 -> 0 | H94: ='Street Report'!S53 -> 0.00 | I94: =IFERROR(IF('Street Report'!$J53="PATCHING","",VLOOKUP(I$55,$F94:$H94,3,FALSE))," ") -> 0 | J94: =IFERROR(IF('Street Report'!$J53="PATCHING","",VLOOKUP(J$55,$F94:$H94,3,FALSE))," ") -> 0 | K94: =IFERROR(IF('Street Report'!$J53="PATCHING","",VLOOKUP(K$55,$F94:$H94,3,FALSE))," ") -> 0 | L94: =IFERROR(IF('Street Report'!$J53="PATCHING","",VLOOKUP(L$55,$F94:$H94,3,FALSE))," ") -> 0 | M94: =IFERROR(IF('Street Report'!$J53="PATCHING","",VLOOKUP(M$55,$F94:$H94,3,FALSE))," ") -> 0 | N94: =IFERROR(IF('Street Report'!$J53="PATCHING","",VLOOKUP(N$55,$F94:$H94,3,FALSE))," ") -> 0 | O94: =IFERROR(IF('Street Report'!$J53="PATCHING","",VLOOKUP(O$55,$F94:$H94,3,FALSE))," ") -> 0 | P94: =IFERROR(IF('Street Report'!$J53="PATCHING","",VLOOKUP(P$55,$F94:$H94,3,FALSE))," ") -> 0 | AB94: ='Street Report'!H74 -> 0 | AC94: ='Street Report'!J55 -> 0 | AD94: ='Street Report'!R55 -> 0
F95: ='Street Report'!H54 -> 0 | H95: ='Street Report'!S54 -> 0.00 | I95: =IFERROR(IF('Street Report'!$J54="PATCHING","",VLOOKUP(I$55,$F95:$H95,3,FALSE))," ") -> 0 | J95: =IFERROR(IF('Street Report'!$J54="PATCHING","",VLOOKUP(J$55,$F95:$H95,3,FALSE))," ") -> 0 | K95: =IFERROR(IF('Street Report'!$J54="PATCHING","",VLOOKUP(K$55,$F95:$H95,3,FALSE))," ") -> 0 | L95: =IFERROR(IF('Street Report'!$J54="PATCHING","",VLOOKUP(L$55,$F95:$H95,3,FALSE))," ") -> 0 | M95: =IFERROR(IF('Street Report'!$J54="PATCHING","",VLOOKUP(M$55,$F95:$H95,3,FALSE))," ") -> 0 | N95: =IFERROR(IF('Street Report'!$J54="PATCHING","",VLOOKUP(N$55,$F95:$H95,3,FALSE))," ") -> 0 | O95: =IFERROR(IF('Street Report'!$J54="PATCHING","",VLOOKUP(O$55,$F95:$H95,3,FALSE))," ") -> 0 | P95: =IFERROR(IF('Street Report'!$J54="PATCHING","",VLOOKUP(P$55,$F95:$H95,3,FALSE))," ") -> 0 | Q95: REVIEW CHART | AB95: ='Street Report'!H75 -> 0 | AC95: ='Street Report'!J56 -> 0 | AD95: ='Street Report'!R56 -> 0
F96: ='Street Report'!H55 -> 0 | H96: ='Street Report'!S55 -> 0.00 | I96: =IFERROR(IF('Street Report'!$J55="PATCHING","",VLOOKUP(I$55,$F96:$H96,3,FALSE))," ") -> 0 | J96: =IFERROR(IF('Street Report'!$J55="PATCHING","",VLOOKUP(J$55,$F96:$H96,3,FALSE))," ") -> 0 | K96: =IFERROR(IF('Street Report'!$J55="PATCHING","",VLOOKUP(K$55,$F96:$H96,3,FALSE))," ") -> 0 | L96: =IFERROR(IF('Street Report'!$J55="PATCHING","",VLOOKUP(L$55,$F96:$H96,3,FALSE))," ") -> 0 | M96: =IFERROR(IF('Street Report'!$J55="PATCHING","",VLOOKUP(M$55,$F96:$H96,3,FALSE))," ") -> 0 | N96: =IFERROR(IF('Street Report'!$J55="PATCHING","",VLOOKUP(N$55,$F96:$H96,3,FALSE))," ") -> 0 | O96: =IFERROR(IF('Street Report'!$J55="PATCHING","",VLOOKUP(O$55,$F96:$H96,3,FALSE))," ") -> 0 | P96: =IFERROR(IF('Street Report'!$J55="PATCHING","",VLOOKUP(P$55,$F96:$H96,3,FALSE))," ") -> 0 | AB96: ='Street Report'!H76 -> 0 | AC96: ='Street Report'!J57 -> 0 | AD96: ='Street Report'!R57 -> 0
F97: ='Street Report'!H56 -> 0 | H97: ='Street Report'!S56 -> 0.00 | I97: =IFERROR(IF('Street Report'!$J56="PATCHING","",VLOOKUP(I$55,$F97:$H97,3,FALSE))," ") -> 0 | J97: =IFERROR(IF('Street Report'!$J56="PATCHING","",VLOOKUP(J$55,$F97:$H97,3,FALSE))," ") -> 0 | K97: =IFERROR(IF('Street Report'!$J56="PATCHING","",VLOOKUP(K$55,$F97:$H97,3,FALSE))," ") -> 0 | L97: =IFERROR(IF('Street Report'!$J56="PATCHING","",VLOOKUP(L$55,$F97:$H97,3,FALSE))," ") -> 0 | M97: =IFERROR(IF('Street Report'!$J56="PATCHING","",VLOOKUP(M$55,$F97:$H97,3,FALSE))," ") -> 0 | N97: =IFERROR(IF('Street Report'!$J56="PATCHING","",VLOOKUP(N$55,$F97:$H97,3,FALSE))," ") -> 0 | O97: =IFERROR(IF('Street Report'!$J56="PATCHING","",VLOOKUP(O$55,$F97:$H97,3,FALSE))," ") -> 0 | P97: =IFERROR(IF('Street Report'!$J56="PATCHING","",VLOOKUP(P$55,$F97:$H97,3,FALSE))," ") -> 0 | Q97: SP | R97: DENSITY | S97: NON DENSITY | AB97: ='Street Report'!H77 -> 0 | AC97: ='Street Report'!J58 -> 0 | AD97: ='Street Report'!R58 -> 0
F98: ='Street Report'!H57 -> 0 | H98: ='Street Report'!S57 -> 0.00 | I98: =IFERROR(IF('Street Report'!$J57="PATCHING","",VLOOKUP(I$55,$F98:$H98,3,FALSE))," ") -> 0 | J98: =IFERROR(IF('Street Report'!$J57="PATCHING","",VLOOKUP(J$55,$F98:$H98,3,FALSE))," ") -> 0 | K98: =IFERROR(IF('Street Report'!$J57="PATCHING","",VLOOKUP(K$55,$F98:$H98,3,FALSE))," ") -> 0 | L98: =IFERROR(IF('Street Report'!$J57="PATCHING","",VLOOKUP(L$55,$F98:$H98,3,FALSE))," ") -> 0 | M98: =IFERROR(IF('Street Report'!$J57="PATCHING","",VLOOKUP(M$55,$F98:$H98,3,FALSE))," ") -> 0 | N98: =IFERROR(IF('Street Report'!$J57="PATCHING","",VLOOKUP(N$55,$F98:$H98,3,FALSE))," ") -> 0 | O98: =IFERROR(IF('Street Report'!$J57="PATCHING","",VLOOKUP(O$55,$F98:$H98,3,FALSE))," ") -> 0 | P98: =IFERROR(IF('Street Report'!$J57="PATCHING","",VLOOKUP(P$55,$F98:$H98,3,FALSE))," ") -> 0 | Q98: =I101 -> 0 | R98: =I84 -> 0.00 | S98: =I100 -> 0.00 | AB98: ='Street Report'!H78 -> 0 | AD98: TOTAL | AE98: =SUM(AE83:AE97) -> 0 | AF98: =SUM(AF83:AF97) -> 0 | AG98: 0 | AH98: =SUM(AH83:AH97) -> 0
F99: ='Street Report'!H58 -> 0 | H99: ='Street Report'!S58 -> 0.00 | I99: =IFERROR(IF('Street Report'!$J58="PATCHING","",VLOOKUP(I$55,$F99:$H99,3,FALSE))," ") -> 0 | J99: =IFERROR(IF('Street Report'!$J58="PATCHING","",VLOOKUP(J$55,$F99:$H99,3,FALSE))," ") -> 0 | K99: =IFERROR(IF('Street Report'!$J58="PATCHING","",VLOOKUP(K$55,$F99:$H99,3,FALSE))," ") -> 0 | L99: =IFERROR(IF('Street Report'!$J58="PATCHING","",VLOOKUP(L$55,$F99:$H99,3,FALSE))," ") -> 0 | M99: =IFERROR(IF('Street Report'!$J58="PATCHING","",VLOOKUP(M$55,$F99:$H99,3,FALSE))," ") -> 0 | N99: =IFERROR(IF('Street Report'!$J58="PATCHING","",VLOOKUP(N$55,$F99:$H99,3,FALSE))," ") -> 0 | O99: =IFERROR(IF('Street Report'!$J58="PATCHING","",VLOOKUP(O$55,$F99:$H99,3,FALSE))," ") -> 0 | P99: =IFERROR(IF('Street Report'!$J58="PATCHING","",VLOOKUP(P$55,$F99:$H99,3,FALSE))," ") -> 0 | Q99: =J101 -> 0 | R99: =J84 -> 0.00 | S99: =J100 -> 0.00
E100: nondensity | H100: =SUM(H85:H99) -> 0.00 | I100: =SUM(I85:I99) -> 0.00 | J100: 0.00 | K100: 0.00 | L100: 0.00 | M100: 0.00 | N100: =SUM(N85:N99) -> 0.00 | O100: =SUM(O85:O99) -> 0.00 | P100: 0.00 | Q100: =K101 -> 0 | R100: =K84 -> 0.00 | S100: =K100 -> 0.00
H101: =H55 -> tons | I101: =I55 -> 0 | J101: 0 | K101: 0 | L101: 0 | M101: 0 | N101: =N55 -> 0 | O101: 0 | P101: 0 | Q101: =L101 -> 0 | R101: =L84 -> 0.00 | S101: =L100 -> 0.00
F102: total = | H102: =H100+H84 -> 0.00 | I102: =I100+I84 -> 0.00 | J102: 0.00 | K102: 0.00 | L102: 0.00 | M102: 0.00 | N102: =N100+N84 -> 0.00 | O102: 0.00 | P102: 0.00 | Q102: =M101 -> 0 | R102: =M84 -> 0.00 | S102: =M100 -> 0.00
Q103: =N101 -> 0 | R103: =N84 -> 0.00 | S103: =N100 -> 0.00
Q104: =O101 -> 0 | R104: =O84 -> 0.00 | S104: =O100 -> 0.00
Q105: =P101 -> 0 | R105: =P84 -> 0.00 | S105: =P100 -> 0.00
A107: All BLUE cells in the workbook are editable by the User. | F107: If any errors occur, please use the email link below to send a copy of the Bituminous Street Report. Please add a brief description of the error and your contact information. Thank you.
G110: mathew.selin@state.mn.us

Sheet Street Report
B2: DAILY STREET REPORT FOR BITUMINOUS PLANT MIX USE SEPARATE DAILY STREET REPORT FOR EACH MIXTURE TYPE
B4: ENGINEER: | F4: ='Data sheet'!E3 -> 0 | H4: ITEM: | I4: =IFERROR(VLOOKUP(L5,'Data sheet'!D8:L20,4,FALSE)," ") ->  | J4: =IFERROR(VLOOKUP(I5,'Data sheet'!#REF!,7,FALSE)," ") ->  | K4: CALCULATED YIELD (LBS. PER SY.IN.): | M4: =IFERROR((VLOOKUP(L5,'Data sheet'!D8:L20,8,FALSE)*0.75)," ") ->  | N4: UNIT: | O4: =IFERROR(VLOOKUP(L5,'Data sheet'!D8:L20,6,FALSE)," ") ->  | P4: WEATHER: | T4: DATE: | U4: ='Data sheet'!L3 -> 00:00:00
B5: CONTRACT: | F5: ='Data sheet'!E5 -> 0 | H5: MIX DESIGN: | J5: =IFERROR(VLOOKUP(L5,'Data sheet'!D8:L20,3,FALSE)," ") ->  | K5: ‼MDR/REC#:‼ | N5: PRICE: | O5: =IFERROR(VLOOKUP(L5,'Data sheet'!D8:L20,7,FALSE)," ") ->  | P5: TEMP: | T5: REP#: | U5: ='Data sheet'!L5 -> 0
B6: PAVING CONTRACTOR: | F6: ='Data sheet'!I3 -> 0 | H6: MAINLINE, TURNLANES, AND SHOULDERS OVER 6' WIDE (COMPACTION BY MAX. DENSITY)
B7: PLANT INDENTIFICATION: | F7: ='Data sheet'!I5 -> 0
B8: S.P. | C8: ROUTE SYSTEM | D8: ROUTE NO. | E8: LIFT | F8: LANE TYPE | H8: DIRECTION OF TRAVEL | I8: STANDARD CENTERLINE OFFSET | J8: CUSTOM OFFSET LEFT BOUNDARY EXAMPLE: 11L OR 12R | K8: CUSTOM OFFSET RIGHT BOUNDARY EXAMPLE: CL OR 20R | L8: ALIGNMENT NAME (IF APPLICABLE) | M8: BEGIN STATION | N8: END STATION | O8: LANE WIDTH | P8: CUSTOM LANE WIDTH | Q8: LENGTH (FT.) | R8: AREA (S.Y.) | S8: MIXTURE PLACED (TONS) | T8: PLAN THICKNESS (INCHES) | U8: YIELD (LBS./S.Y.) (Ex2000/D) | V8: OVER/ UNDER RUN
O9: =IFERROR(VLOOKUP(I9,'Drop Downs'!$D$4:$E$28,2,FALSE)," ") ->  | P9: =IFERROR('Data sheet'!Y64," ") -> 0.00 | Q9: =ABS(N9-M9) -> 0 | R9: =IFERROR(IF(O9=" ",(P9*Q9/9),(O9*Q9/9))," ") -> 0 | U9: =IFERROR(S9*2000/R9/T9," ") ->  | V9: =IFERROR(S9-($M$4*R9*T9/2000)," ") -> 
O10: =IFERROR(VLOOKUP(I10,'Drop Downs'!$D$4:$E$28,2,FALSE)," ") ->  | P10: =IFERROR('Data sheet'!Y65," ") -> 0.00 | Q10: =ABS(N10-M10) -> 0 | R10: =IFERROR(IF(O10=" ",(P10*Q10/9),(O10*Q10/9))," ") -> 0 | U10: =IFERROR(S10*2000/R10/T10," ") -> 
O11: =IFERROR(VLOOKUP(I11,'Drop Downs'!$D$4:$E$28,2,FALSE)," ") ->  | P11: =IFERROR('Data sheet'!Y66," ") -> 0.00 | Q11: =ABS(N11-M11) -> 0 | R11: 0 | U11: =IFERROR(S11*2000/R11/T11," ") ->  | V11: =IFERROR(S11-($M$4*R11*T11/2000)," ") -> 
O12: =IFERROR(VLOOKUP(I12,'Drop Downs'!$D$4:$E$28,2,FALSE)," ") ->  | P12: =IFERROR('Data sheet'!Y67," ") -> 0.00 | Q12: 0 | R12: 0
O13: =IFERROR(VLOOKUP(I13,'Drop Downs'!$D$4:$E$28,2,FALSE)," ") ->  | P13: =IFERROR('Data sheet'!Y68," ") -> 0.00 | Q13: 0 | R13: 0
O14: =IFERROR(VLOOKUP(I14,'Drop Downs'!$D$4:$E$28,2,FALSE)," ") ->  | P14: =IFERROR('Data sheet'!Y69," ") -> 0.00 | Q14: 0 | R14: 0
O15: =IFERROR(VLOOKUP(I15,'Drop Downs'!$D$4:$E$28,2,FALSE)," ") ->  | P15: =IFERROR('Data sheet'!Y70," ") -> 0.00 | Q15: 0 | R15: 0
O16: =IFERROR(VLOOKUP(I16,'Drop Downs'!$D$4:$E$28,2,FALSE)," ") ->  | P16: =IFERROR('Data sheet'!Y71," ") -> 0.00 | Q16: 0 | R16: 0
O17: =IFERROR(VLOOKUP(I17,'Drop Downs'!$D$4:$E$28,2,FALSE)," ") ->  | P17: =IFERROR('Data sheet'!Y72," ") -> 0.00 | Q17: 0 | R17: 0
O18: =IFERROR(VLOOKUP(I18,'Drop Downs'!$D$4:$E$28,2,FALSE)," ") ->  | P18: =IFERROR('Data sheet'!Y73," ") -> 0.00 | Q18: 0 | R18: 0
O19: =IFERROR(VLOOKUP(I19,'Drop Downs'!$D$4:$E$28,2,FALSE)," ") ->  | P19: =IFERROR('Data sheet'!Y74," ") -> 0.00 | Q19: 0 | R19: 0
O20: =IFERROR(VLOOKUP(I20,'Drop Downs'!$D$4:$E$28,2,FALSE)," ") ->  | P20: =IFERROR('Data sheet'!Y75," ") -> 0.00 | Q20: 0 | R20: 0
O21: =IFERROR(VLOOKUP(I21,'Drop Downs'!$D$4:$E$28,2,FALSE)," ") ->  | P21: =IFERROR('Data sheet'!Y76," ") -> 0.00 | Q21: 0 | R21: 0
O22: =IFERROR(VLOOKUP(I22,'Drop Downs'!$D$4:$E$28,2,FALSE)," ") ->  | P22: =IFERROR('Data sheet'!Y77," ") -> 0.00 | Q22: 0 | R22: 0
O23: =IFERROR(VLOOKUP(I23,'Drop Downs'!$D$4:$E$28,2,FALSE)," ") ->  | P23: =IFERROR('Data sheet'!Y78," ") -> 0.00 | Q23: 0 | R23: 0
O24: =IFERROR(VLOOKUP(I24,'Drop Downs'!$D$4:$E$28,2,FALSE)," ") ->  | P24: =IFERROR('Data sheet'!Y79," ") -> 0.00 | Q24: 0 | R24: 0 | U24: =IFERROR(S24*2000/R24/T24," ") -> 
O25: =IFERROR(VLOOKUP(I25,'Drop Downs'!$D$4:$E$28,2,FALSE)," ") ->  | P25: =IFERROR('Data sheet'!Y80," ") -> 0.00 | Q25: 0 | R25: 0
O26: =IFERROR(VLOOKUP(I26,'Drop Downs'!$D$4:$E$28,2,FALSE)," ") ->  | P26: =IFERROR('Data sheet'!Y81," ") -> 0.00 | Q26: 0 | R26: 0
O27: =IFERROR(VLOOKUP(I27,'Drop Downs'!$D$4:$E$28,2,FALSE)," ") ->  | P27: =IFERROR('Data sheet'!Y82," ") -> 0.00 | Q27: 0 | R27: 0
O28: =IFERROR(VLOOKUP(I28,'Drop Downs'!$D$4:$E$28,2,FALSE)," ") ->  | P28: =IFERROR('Data sheet'!Y83," ") -> 0.00 | Q28: 0 | R28: 0
O29: =IFERROR(VLOOKUP(I29,'Drop Downs'!$D$4:$E$28,2,FALSE)," ") ->  | P29: =IFERROR('Data sheet'!Y84," ") -> 0.00 | Q29: 0 | R29: 0
O30: =IFERROR(VLOOKUP(I30,'Drop Downs'!$D$4:$E$28,2,FALSE)," ") ->  | P30: =IFERROR('Data sheet'!Y85," ") -> 0.00 | Q30: 0 | R30: 0
O31: =IFERROR(VLOOKUP(I31,'Drop Downs'!$D$4:$E$28,2,FALSE)," ") ->  | P31: =IFERROR('Data sheet'!Y86," ") -> 0.00 | Q31: 0 | R31: 0
O32: =IFERROR(VLOOKUP(I32,'Drop Downs'!$D$4:$E$28,2,FALSE)," ") ->  | P32: =IFERROR('Data sheet'!Y87," ") -> 0.00 | Q32: 0 | R32: 0
O33: =IFERROR(VLOOKUP(I33,'Drop Downs'!$D$4:$E$28,2,FALSE)," ") ->  | P33: =IFERROR('Data sheet'!Y88," ") -> 0.00 | Q33: 0 | R33: 0
O34: =IFERROR(VLOOKUP(I34,'Drop Downs'!$D$4:$E$28,2,FALSE)," ") ->  | P34: =IFERROR('Data sheet'!Y89," ") -> 0.00 | Q34: =ABS(N34-M34) -> 0 | R34: 0
O35: =IFERROR(VLOOKUP(I35,'Drop Downs'!$D$4:$E$28,2,FALSE)," ") ->  | P35: =IFERROR('Data sheet'!Y90," ") -> 0.00 | Q35: 0 | R35: 0
O36: =IFERROR(VLOOKUP(I36,'Drop Downs'!$D$4:$E$28,2,FALSE)," ") ->  | P36: =IFERROR('Data sheet'!Y91," ") -> 0.00 | Q36: 0 | R36: 0 | V36: =IFERROR(S36-($M$4*R36*T36/2000)," ") -> 
M37: MAINLINE & TURNLANE DENSITY TOTALS | R37: =SUM(R9:R36) -> 0 | S37: =SUM(S9:S36) -> 0.00 | U37: =IFERROR(AVERAGE(U9:U36)," ") ->  | V37: =SUM(V9:V36) -> 0.00
B39: TACK APPLIED (UNADJUSTED FOR TEMPERATURE) | H39: ROAD CONNECTIONS, ENTRANCES, AND SHOULDERS LESS THAN 6' WIDE (ORDINARY COMPACTION)
B41: INVOICE NO. | H41: S.P. | I41: STATION R.P. | J41: AREA TYPE | K41: AVERAGE RADIUS (ENTRANCES) | L41: LENGTH (FT.) (ENTRANCES) | M41: WIDTH (FT.) (ENTRANCES) | N41: BEGIN STATION (6FT.>SHLD.) | O41: END STATION (6FT.>SHLD.) | P41: WIDTH (FT.) | Q41: LENGTH (FT.) | R41: AREA (S.Y.) | S41: MIXTURE PLACED (TONS) | T41: PLAN THICKNESS (INCHES) | U41: YIELD (LBS./S.Y.) (EX2000/D) | V41: OVER/ UNDER RUN
B42: GALLONS APPLIED
B43: AREA (S.Y.) | E43: =R37+R59 -> 0.00
B44: APPLICATION RATE | E44: =IFERROR(E42/E43," ") ->  | Q44: =ABS(N44-O44) -> 0 | R44: =((P44*Q44)+((L44*M44)+((K44^2*0.2146)*2)))/9 -> 0 | U44: =IFERROR(S44*2000/R44/T44," ") ->  | V44: =IFERROR(S44-($M$4*R44*T44/2000)," ") -> 
Q45: 0 | R45: =((P45*Q45)+((L45*M45)+((K45^2*0.2146)*2)))/9 -> 0 | U45: =IFERROR(S45*2000/R45/T45," ") -> 
Q46: 0 | R46: =((P46*Q46)+((L46*M46)+((K46^2*0.2146)*2)))/9 -> 0
B47: NOTES | Q47: 0 | R47: 0
Q48: 0 | R48: 0
Q49: 0 | R49: 0
Q50: 0 | R50: 0
Q51: 0 | R51: 0
Q52: 0 | R52: 0
Q53: 0 | R53: 0
Q54: 0 | R54: 0
Q55: 0 | R55: 0
Q56: =ABS(N56-O56) -> 0 | R56: 0
Q57: 0 | R57: 0
Q58: 0 | R58: 0
B59: INTELLIGENT COMPACTTION AND THERMAL PROFILING EQUIPMENT REPORT (DOCUMENT EQUPIMENT ON PROJECT AND BREAKDOWN TIMES) | L59: ROAD CONNECTION, ENTRANCE, & <6' SHOULDER TOTALS | R59: =SUM(R44:R58) -> 0 | S59: ='Data sheet'!AE79+'Data sheet'!AF79+'Data sheet'!AG79 -> 0.00 | U59: =IFERROR(AVERAGE(U44:U58)," ") ->  | V59: =SUM(V44:V58) -> 0.00
J60: S.P. | K60: DENSITY TONS | L60: NON-DENSITY TONS | M60: TOTAL TONS | Q60: SHEET TOTAL | S60: =$S$59+$S$37 -> 0.00
J62: ='Data sheet'!C7 -> 0 | K62: =IFERROR(VLOOKUP($J62,'Data sheet'!$Q$98:$S$105,2,FALSE)," ") -> 0.00 | L62: =IFERROR(VLOOKUP($J62,'Data sheet'!$Q$98:$S$105,3,FALSE)," ") -> 0.00 | M62: =SUM(K62:L62) -> 0.00
B63: EQUIPMENT TYPE | D63: UNIT # | E63: OPERATIONAL (Y/N) | G63: BEGIN TIME | I63: END TIME | J63: ='Data sheet'!C8 -> 0 | K63: =IFERROR(VLOOKUP($J63,'Data sheet'!$Q$98:$S$105,2,FALSE)," ") -> 0.00 | L63: =IFERROR(VLOOKUP($J63,'Data sheet'!$Q$98:$S$105,3,FALSE)," ") -> 0.00 | M63: =SUM(K63:L63) -> 0.00 | S63: =IF(U63="TON",'Data sheet'!$AA$24,'Data sheet'!$AA$25) -> TOTAL SQUARE YARDS PLACED: | T63: =IF(O4="sq. yd.",R37+R59,'Tape '!L4) -> 1910.00 | U63: =O4 -> 
J64: ='Data sheet'!C9 -> 0 | K64: =IFERROR(VLOOKUP($J64,'Data sheet'!$Q$98:$S$105,2,FALSE)," ") -> 0.00 | L64: =IFERROR(VLOOKUP($J64,'Data sheet'!$Q$98:$S$105,3,FALSE)," ") -> 0.00 | M64: =SUM(K64:L64) -> 0.00 | S64: =IF(U64="TON",'Data sheet'!$AB$24," ") ->  | T64: =IF($U$64="TON",'Tape '!$L$5+'Tape '!$P$5," ") ->  | U64: =IF(O4="TON","TON"," ") -> 
J65: ='Data sheet'!C10 -> 0 | K65: =IFERROR(VLOOKUP($J65,'Data sheet'!$Q$98:$S$105,2,FALSE)," ") -> 0.00 | L65: =IFERROR(VLOOKUP($J65,'Data sheet'!$Q$98:$S$105,3,FALSE)," ") -> 0.00 | M65: 0.00 | S65: TOTAL PATCHING TONS (PLACED): | T65: ='Data sheet'!AH79 -> 0.00 | U65: TON
J66: ='Data sheet'!C11 -> 0 | K66: =IFERROR(VLOOKUP($J66,'Data sheet'!$Q$98:$S$105,2,FALSE)," ") -> 0.00 | L66: =IFERROR(VLOOKUP($J66,'Data sheet'!$Q$98:$S$105,3,FALSE)," ") -> 0.00 | M66: 0.00 | S66: =IF(U66="TON",'Data sheet'!$AC$24,'Data sheet'!$AC$25) -> TOTAL SQUARE YARDS PAID FOR (THIS REPORT): | T66: =IF(O4="sq. yd.",'Data sheet'!AJ84,'Tape '!L4-T64-T65) ->  | U66: =$O$4 -> 
J67: ='Data sheet'!C12 -> 0 | K67: =IFERROR(VLOOKUP($J67,'Data sheet'!$Q$98:$S$105,2,FALSE)," ") -> 0.00 | L67: =IFERROR(VLOOKUP($J67,'Data sheet'!$Q$98:$S$105,3,FALSE)," ") -> 0.00 | M67: =SUM(K67:L67) -> 0.00 | Q67: =IF(O4="sq. yd.", "LESS PATCHING SQ. YD."," ") -> 
J68: ='Data sheet'!C13 -> 0 | K68: =IFERROR(VLOOKUP($J68,'Data sheet'!$Q$98:$S$105,2,FALSE)," ") -> 0.00 | L68: =IFERROR(VLOOKUP($J68,'Data sheet'!$Q$98:$S$105,3,FALSE)," ") -> 0.00 | M68: 0.00
J69: ='Data sheet'!C14 -> 0 | K69: =IFERROR(VLOOKUP($J69,'Data sheet'!$Q$98:$S$105,2,FALSE)," ") -> 0.00 | L69: =IFERROR(VLOOKUP($J69,'Data sheet'!$Q$98:$S$105,3,FALSE)," ") -> 0.00 | M69: 0.00
L70: SHEET TOTAL | M70: =SUM(M62:M69) -> 0.00
Q71: STREET INSPECTOR

Sheet Tape
B3: S.P.: | C3: ='Data sheet'!B5 -> 0 | D3: T.H.: | E3: ='Data sheet'!B3 -> 0 | G3: REPORT #: | H3: ='Data sheet'!L5 -> 0 | J3: DATE: | K3: ='Data sheet'!L3 -> 00:00:00 | U3: ='Street Report'!Q69 -> 0
C4: TYPE OF MIXTURE: | D4: ='Street Report'!I4 ->  | J4: SHEET TOTAL: | L4: =X76 -> 1910.00
C5: STARTING LOAD # : | D5: 1 | G5: 0 | J5: OVERLOAD TOTAL: | L5: =SUM(E$7:E$76,I$7:I$76,M$7:M$76,Q$7:Q$76,U$7:U$76,Y$7:Y$76) -> 0.00 | M5: STREET/PLANT WASTE: | U5: STEET INSPECTOR
B6: LOAD NO. | C6: NET TONS | D6: SUB TOTAL | E6: OVERLOAD | F6: LOAD NO. | G6: NET TONS | H6: SUB TOTAL | I6: OVERLOAD | J6: LOAD NO. | K6: NET TONS | L6: SUB TOTAL | M6: OVERLOAD | N6: LOAD NO. | O6: NET TONS | P6: SUB TOTAL | Q6: OVERLOAD | R6: LOAD NO. | S6: NET TONS | T6: SUB TOTAL | U6: OVERLOAD | V6: LOAD NO. | W6: NET TONS | X6: SUB TOTAL | Y6: OVERLOAD
B7: =D5 -> 1 | C7: 1910.00 | D7: =C7 -> 1910.00 | F7: =IF(B76=" "," ",B76+1) -> 71 | H7: =G7+D76 -> 1910.00 | J7: =IF(F76=" "," ",F76+1) -> 141 | L7: =K7+H76 -> 1910.00 | N7: =IF(J76=" "," ",J76+1) -> 211 | P7: =O7+L76 -> 1910.00 | R7: =IF(N76=" "," ",N76+1) -> 281 | T7: =S7+P76 -> 1910.00 | V7: =IF(R76=" "," ",R76+1) -> 351 | X7: =W7+T76 -> 1910.00
B8: =IF(B7=" "," ",B7+1) -> 2 | D8: =D7+C8 -> 1910.00 | F8: =IF(F7=" "," ",F7+1) -> 72 | H8: =H7+G8 -> 1910.00 | J8: =IF(J7=" "," ",J7+1) -> 142 | L8: =L7+K8 -> 1910.00 | N8: =IF(N7=" "," ",N7+1) -> 212 | P8: =P7+O8 -> 1910.00 | R8: =IF(R7=" "," ",R7+1) -> 282 | T8: =T7+S8 -> 1910.00 | V8: =IF(V7=" "," ",V7+1) -> 352 | X8: =X7+W8 -> 1910.00
B9: 3 | D9: 1910.00 | F9: 73 | H9: 1910.00 | J9: 143 | L9: 1910.00 | N9: 213 | P9: 1910.00 | R9: 283 | T9: 1910.00 | V9: 353 | X9: 1910.00
B10: 4 | D10: 1910.00 | F10: 74 | H10: 1910.00 | J10: 144 | L10: 1910.00 | N10: 214 | P10: 1910.00 | R10: 284 | T10: 1910.00 | V10: 354 | X10: 1910.00
B11: 5 | D11: 1910.00 | F11: 75 | H11: 1910.00 | J11: 145 | L11: 1910.00 | N11: 215 | P11: 1910.00 | R11: 285 | T11: 1910.00 | V11: 355 | X11: 1910.00
B12: 6 | D12: 1910.00 | F12: 76 | H12: 1910.00 | J12: 146 | L12: 1910.00 | N12: 216 | P12: 1910.00 | R12: 286 | T12: 1910.00 | V12: 356 | X12: 1910.00
B13: 7 | D13: 1910.00 | F13: 77 | H13: 1910.00 | J13: 147 | L13: 1910.00 | N13: 217 | P13: 1910.00 | R13: 287 | T13: 1910.00 | V13: 357 | X13: 1910.00
B14: 8 | D14: 1910.00 | F14: 78 | H14: 1910.00 | J14: 148 | L14: 1910.00 | N14: 218 | P14: 1910.00 | R14: 288 | T14: 1910.00 | V14: 358 | X14: 1910.00
B15: 9 | D15: 1910.00 | F15: 79 | H15: 1910.00 | J15: 149 | L15: 1910.00 | N15: 219 | P15: 1910.00 | R15: 289 | T15: 1910.00 | V15: 359 | X15: 1910.00
B16: 10 | D16: 1910.00 | F16: 80 | H16: 1910.00 | J16: 150 | L16: 1910.00 | N16: 220 | P16: 1910.00 | R16: 290 | T16: 1910.00 | V16: 360 | X16: 1910.00
B17: 11 | D17: 1910.00 | F17: 81 | H17: 1910.00 | J17: 151 | L17: 1910.00 | N17: 221 | P17: 1910.00 | R17: 291 | T17: 1910.00 | V17: 361 | X17: 1910.00
B18: 12 | D18: 1910.00 | F18: 82 | H18: 1910.00 | J18: 152 | L18: 1910.00 | N18: 222 | P18: 1910.00 | R18: 292 | T18: 1910.00 | V18: 362 | X18: 1910.00
B19: 13 | D19: 1910.00 | F19: 83 | H19: 1910.00 | J19: 153 | L19: 1910.00 | N19: 223 | P19: 1910.00 | R19: 293 | T19: 1910.00 | V19: 363 | X19: 1910.00
B20: 14 | D20: 1910.00 | F20: 84 | H20: 1910.00 | J20: 154 | L20: 1910.00 | N20: 224 | P20: 1910.00 | R20: 294 | T20: 1910.00 | V20: 364 | X20: 1910.00
B21: 15 | D21: 1910.00 | F21: 85 | H21: 1910.00 | J21: 155 | L21: 1910.00 | N21: 225 | P21: 1910.00 | R21: 295 | T21: 1910.00 | V21: 365 | X21: 1910.00
B22: 16 | D22: 1910.00 | F22: 86 | H22: 1910.00 | J22: 156 | L22: 1910.00 | N22: 226 | P22: 1910.00 | R22: 296 | T22: 1910.00 | V22: 366 | X22: 1910.00
B23: 17 | D23: 1910.00 | F23: 87 | H23: 1910.00 | J23: 157 | L23: 1910.00 | N23: 227 | P23: 1910.00 | R23: 297 | T23: 1910.00 | V23: 367 | X23: 1910.00
B24: 18 | D24: 1910.00 | F24: 88 | H24: 1910.00 | J24: 158 | L24: 1910.00 | N24: 228 | P24: 1910.00 | R24: 298 | T24: 1910.00 | V24: 368 | X24: 1910.00
B25: 19 | D25: 1910.00 | F25: 89 | H25: 1910.00 | J25: 159 | L25: 1910.00 | N25: 229 | P25: 1910.00 | R25: 299 | T25: 1910.00 | V25: 369 | X25: 1910.00
B26: 20 | D26: 1910.00 | F26: 90 | H26: 1910.00 | J26: 160 | L26: 1910.00 | N26: 230 | P26: 1910.00 | R26: 300 | T26: 1910.00 | V26: 370 | X26: 1910.00
B27: 21 | D27: 1910.00 | F27: 91 | H27: 1910.00 | J27: 161 | L27: 1910.00 | N27: 231 | P27: 1910.00 | R27: 301 | T27: 1910.00 | V27: 371 | X27: 1910.00
B28: 22 | D28: 1910.00 | F28: 92 | H28: 1910.00 | J28: 162 | L28: 1910.00 | N28: 232 | P28: 1910.00 | R28: 302 | T28: 1910.00 | V28: 372 | X28: 1910.00
B29: 23 | D29: 1910.00 | F29: 93 | H29: 1910.00 | J29: 163 | L29: 1910.00 | N29: 233 | P29: 1910.00 | R29: 303 | T29: 1910.00 | V29: 373 | X29: 1910.00
B30: 24 | D30: 1910.00 | F30: 94 | H30: 1910.00 | J30: 164 | L30: 1910.00 | N30: 234 | P30: 1910.00 | R30: 304 | T30: 1910.00 | V30: 374 | X30: 1910.00
B31: 25 | D31: 1910.00 | F31: 95 | H31: 1910.00 | J31: 165 | L31: 1910.00 | N31: 235 | P31: 1910.00 | R31: 305 | T31: 1910.00 | V31: 375 | X31: 1910.00
B32: 26 | D32: 1910.00 | F32: 96 | H32: 1910.00 | J32: 166 | L32: 1910.00 | N32: 236 | P32: 1910.00 | R32: 306 | T32: 1910.00 | V32: 376 | X32: 1910.00
B33: 27 | D33: 1910.00 | F33: 97 | H33: 1910.00 | J33: 167 | L33: 1910.00 | N33: 237 | P33: 1910.00 | R33: 307 | T33: 1910.00 | V33: 377 | X33: 1910.00
B34: 28 | D34: 1910.00 | F34: 98 | H34: 1910.00 | J34: 168 | L34: 1910.00 | N34: 238 | P34: 1910.00 | R34: 308 | T34: 1910.00 | V34: 378 | X34: 1910.00
B35: 29 | D35: 1910.00 | F35: 99 | H35: 1910.00 | J35: 169 | L35: 1910.00 | N35: 239 | P35: 1910.00 | R35: 309 | T35: 1910.00 | V35: 379 | X35: 1910.00
B36: 30 | D36: 1910.00 | F36: 100 | H36: 1910.00 | J36: 170 | L36: 1910.00 | N36: 240 | P36: 1910.00 | R36: 310 | T36: 1910.00 | V36: 380 | X36: 1910.00
B37: 31 | D37: 1910.00 | F37: 101 | H37: 1910.00 | J37: 171 | L37: 1910.00 | N37: 241 | P37: 1910.00 | R37: 311 | T37: 1910.00 | V37: 381 | X37: 1910.00
B38: 32 | D38: 1910.00 | F38: 102 | H38: 1910.00 | J38: 172 | L38: 1910.00 | N38: 242 | P38: 1910.00 | R38: 312 | T38: 1910.00 | V38: 382 | X38: 1910.00
B39: 33 | D39: 1910.00 | F39: 103 | H39: 1910.00 | J39: 173 | L39: 1910.00 | N39: 243 | P39: 1910.00 | R39: 313 | T39: 1910.00 | V39: 383 | X39: 1910.00
B40: =IF(B39=" "," ",B39+1) -> 34 | D40: =D39+C40 -> 1910.00 | F40: =IF(F39=" "," ",F39+1) -> 104 | H40: =H39+G40 -> 1910.00 | J40: =IF(J39=" "," ",J39+1) -> 174 | L40: =L39+K40 -> 1910.00 | N40: 244 | P40: 1910.00 | R40: 314 | T40: 1910.00 | V40: 384 | X40: 1910.00
B41: 35 | D41: 1910.00 | F41: 105 | H41: 1910.00 | J41: 175 | L41: 1910.00 | N41: 245 | P41: 1910.00 | R41: 315 | T41: 1910.00 | V41: 385 | X41: 1910.00
B42: 36 | D42: 1910.00 | F42: 106 | H42: 1910.00 | J42: 176 | L42: 1910.00 | N42: 246 | P42: 1910.00 | R42: 316 | T42: 1910.00 | V42: 386 | X42: 1910.00
B43: 37 | D43: 1910.00 | F43: 107 | H43: 1910.00 | J43: 177 | L43: 1910.00 | N43: 247 | P43: 1910.00 | R43: 317 | T43: 1910.00 | V43: 387 | X43: 1910.00
B44: 38 | D44: 1910.00 | F44: 108 | H44: 1910.00 | J44: 178 | L44: 1910.00 | N44: 248 | P44: 1910.00 | R44: 318 | T44: 1910.00 | V44: 388 | X44: 1910.00
B45: 39 | D45: 1910.00 | F45: 109 | H45: 1910.00 | J45: 179 | L45: 1910.00 | N45: 249 | P45: 1910.00 | R45: 319 | T45: 1910.00 | V45: 389 | X45: 1910.00
B46: 40 | D46: 1910.00 | F46: 110 | H46: 1910.00 | J46: 180 | L46: 1910.00 | N46: 250 | P46: 1910.00 | R46: 320 | T46: 1910.00 | V46: 390 | X46: 1910.00
B47: 41 | D47: 1910.00 | F47: 111 | H47: 1910.00 | J47: 181 | L47: 1910.00 | N47: 251 | P47: 1910.00 | R47: 321 | T47: 1910.00 | V47: 391 | X47: 1910.00
B48: 42 | D48: 1910.00 | F48: 112 | H48: 1910.00 | J48: 182 | L48: 1910.00 | N48: 252 | P48: 1910.00 | R48: 322 | T48: 1910.00 | V48: 392 | X48: 1910.00
B49: 43 | D49: 1910.00 | F49: 113 | H49: 1910.00 | J49: 183 | L49: 1910.00 | N49: 253 | P49: 1910.00 | R49: 323 | T49: 1910.00 | V49: 393 | X49: 1910.00
B50: 44 | D50: 1910.00 | F50: 114 | H50: 1910.00 | J50: 184 | L50: 1910.00 | N50: 254 | P50: 1910.00 | R50: 324 | T50: 1910.00 | V50: 394 | X50: 1910.00
B51: 45 | D51: 1910.00 | F51: 115 | H51: 1910.00 | J51: 185 | L51: 1910.00 | N51: 255 | P51: 1910.00 | R51: 325 | T51: 1910.00 | V51: 395 | X51: 1910.00
B52: 46 | D52: 1910.00 | F52: 116 | H52: 1910.00 | J52: 186 | L52: 1910.00 | N52: 256 | P52: 1910.00 | R52: 326 | T52: 1910.00 | V52: 396 | X52: 1910.00
B53: 47 | D53: 1910.00 | F53: 117 | H53: 1910.00 | J53: 187 | L53: 1910.00 | N53: 257 | P53: 1910.00 | R53: 327 | T53: 1910.00 | V53: 397 | X53: 1910.00
B54: 48 | D54: 1910.00 | F54: 118 | H54: 1910.00 | J54: 188 | L54: 1910.00 | N54: 258 | P54: 1910.00 | R54: 328 | T54: 1910.00 | V54: 398 | X54: 1910.00
B55: 49 | D55: 1910.00 | F55: 119 | H55: 1910.00 | J55: 189 | L55: 1910.00 | N55: 259 | P55: 1910.00 | R55: 329 | T55: 1910.00 | V55: 399 | X55: 1910.00
B56: 50 | D56: 1910.00 | F56: 120 | H56: 1910.00 | J56: 190 | L56: 1910.00 | N56: 260 | P56: 1910.00 | R56: 330 | T56: 1910.00 | V56: 400 | X56: 1910.00
B57: 51 | D57: 1910.00 | F57: 121 | H57: 1910.00 | J57: 191 | L57: 1910.00 | N57: 261 | P57: 1910.00 | R57: 331 | T57: 1910.00 | V57: 401 | X57: 1910.00
B58: 52 | D58: 1910.00 | F58: 122 | H58: 1910.00 | J58: 192 | L58: 1910.00 | N58: 262 | P58: 1910.00 | R58: 332 | T58: 1910.00 | V58: 402 | X58: 1910.00
B59: 53 | D59: 1910.00 | F59: 123 | H59: 1910.00 | J59: 193 | L59: 1910.00 | N59: 263 | P59: 1910.00 | R59: 333 | T59: 1910.00 | V59: 403 | X59: 1910.00
B60: 54 | D60: 1910.00 | F60: 124 | H60: 1910.00 | J60: 194 | L60: 1910.00 | N60: 264 | P60: 1910.00 | R60: 334 | T60: 1910.00 | V60: 404 | X60: 1910.00
B61: 55 | D61: 1910.00 | F61: 125 | H61: 1910.00 | J61: 195 | L61: 1910.00 | N61: 265 | P61: 1910.00 | R61: 335 | T61: 1910.00 | V61: 405 | X61: 1910.00
B62: 56 | D62: 1910.00 | F62: 126 | H62: 1910.00 | J62: 196 | L62: 1910.00 | N62: 266 | P62: 1910.00 | R62: 336 | T62: 1910.00 | V62: 406 | X62: 1910.00
B63: 57 | D63: 1910.00 | F63: 127 | H63: 1910.00 | J63: 197 | L63: 1910.00 | N63: 267 | P63: 1910.00 | R63: 337 | T63: 1910.00 | V63: 407 | X63: 1910.00
B64: 58 | D64: 1910.00 | F64: 128 | H64: 1910.00 | J64: 198 | L64: 1910.00 | N64: 268 | P64: 1910.00 | R64: 338 | T64: 1910.00 | V64: 408 | X64: 1910.00
B65: 59 | D65: 1910.00 | F65: 129 | H65: 1910.00 | J65: 199 | L65: 1910.00 | N65: 269 | P65: 1910.00 | R65: 339 | T65: 1910.00 | V65: 409 | X65: 1910.00
B66: 60 | D66: 1910.00 | F66: 130 | H66: 1910.00 | J66: 200 | L66: 1910.00 | N66: 270 | P66: 1910.00 | R66: 340 | T66: 1910.00 | V66: 410 | X66: 1910.00
B67: 61 | D67: 1910.00 | F67: 131 | H67: 1910.00 | J67: 201 | L67: 1910.00 | N67: 271 | P67: 1910.00 | R67: 341 | T67: 1910.00 | V67: 411 | X67: 1910.00
B68: 62 | D68: 1910.00 | F68: 132 | H68: 1910.00 | J68: 202 | L68: 1910.00 | N68: 272 | P68: 1910.00 | R68: 342 | T68: 1910.00 | V68: 412 | X68: 1910.00
B69: 63 | D69: 1910.00 | F69: 133 | H69: 1910.00 | J69: 203 | L69: 1910.00 | N69: 273 | P69: 1910.00 | R69: 343 | T69: 1910.00 | V69: 413 | X69: 1910.00
B70: 64 | D70: 1910.00 | F70: 134 | H70: 1910.00 | J70: 204 | L70: 1910.00 | N70: 274 | P70: 1910.00 | R70: 344 | T70: 1910.00 | V70: 414 | X70: 1910.00
B71: 65 | D71: 1910.00 | F71: 135 | H71: 1910.00 | J71: 205 | L71: 1910.00 | N71: 275 | P71: 1910.00 | R71: 345 | T71: 1910.00 | V71: 415 | X71: 1910.00
B72: 66 | D72: 1910.00 | F72: 136 | H72: 1910.00 | J72: 206 | L72: 1910.00 | N72: 276 | P72: 1910.00 | R72: 346 | T72: 1910.00 | V72: 416 | X72: 1910.00
B73: 67 | D73: 1910.00 | F73: 137 | H73: 1910.00 | J73: 207 | L73: 1910.00 | N73: 277 | P73: 1910.00 | R73: 347 | T73: 1910.00 | V73: 417 | X73: 1910.00
B74: 68 | D74: 1910.00 | F74: 138 | H74: 1910.00 | J74: 208 | L74: 1910.00 | N74: 278 | P74: 1910.00 | R74: 348 | T74: 1910.00 | V74: 418 | X74: 1910.00
B75: 69 | D75: 1910.00 | F75: 139 | H75: 1910.00 | J75: 209 | L75: 1910.00 | N75: 279 | P75: 1910.00 | R75: 349 | T75: 1910.00 | V75: 419 | X75: 1910.00
B76: 70 | D76: 1910.00 | F76: 140 | H76: 1910.00 | J76: 210 | L76: 1910.00 | M76: 0.00 | N76: 280 | O76: 0 | P76: 1910.00 | Q76: 0.00 | R76: 350 | S76: 0 | T76: 1910.00 | U76: 0.00 | V76: 420 | W76: 0 | X76: 1910.00 | Y76: 0.00
AE101: ='Tape '!L5+'Tape '!$M$5 -> 

Sheet IC-106
D1: Minnesota Department of Transportation (MnDOT) | Q1: Start Row | S1: High Accuracy PMTP?
Q2: 11
E3: THIS IS NOT AN IC-106 FORM. THIS FORM ALLOWS THE USER TO COPY AND PAST DATA ONTO THE IC-106 FORM. | K3: COPY CELLS D12 TO N39 AND PASTE "VALUES" ONTO PROJECT IC-106 FORM | Q3: FALSE
Q4: FALSE
B9: Data Lot Number | C9: Filter Group Name | D9: Inspector Input
D10: For overnight paving enter first day only | E10: Route System | F10: Route No. | G10: Material | H10: Lift | I10: Do not include shoulders | K10: Divided Highway (Yes) | L10: Divided Highways Only | M10: Use ROVER to determine stations
D11: Paving Date (MM/DD/YY) | I11: Centerline Offset | J11: Custom Centerline Offset | L11: Direction of Travel | M11: Data Lot Start Station | N11: Data Lot End Station | Q11: Route System | R11: Material | S11: Lift | T11: Centerline offsets | V11: Region No. | W11: Direction | Y11: Divided
B12: =IF(ISBLANK(D12),"",TEXT(1,"00")) -> 01 | C12: =IF(COUNTA(D12:J12)<6,"",IF(ISBLANK(J12),CONCATENATE(TEXT(D12,"MMDDYY "),E12,F12,X12,G12,X12,H12,X12,I12,Y12),CONCATENATE(TEXT(D12,"MMDDYY "),E12,F12,X12,G12,X12,H12,X12,J12,Y12))) -> 010000 00--0-0 | D12: ='Data sheet'!$L$3 -> 00:00:00 | E12: ='Street Report'!C9 -> 0 | F12: ='Street Report'!D9 -> 0 | H12: ='Street Report'!E9 -> 0 | I12: ='Street Report'!I9 -> 0 | J12: ='Data sheet'!AO34 -> 0 | L12: =IF(K12="yes",'Street Report'!H9," ") ->  | M12: ='Street Report'!M9 -> 0+00 | N12: ='Street Report'!N9 -> 0+00 | Q12: TH | R12: HMA | S12: L1 | V12: 1 | W12: NB | X12: =IF(ISBLANK(D12),"","-") -> - | Y12: =IF(K12="Yes",CONCATENATE(X12,L12),"") ->  | Z12: IC-106 Form by Advanced Materials & Technology
B13: =IF(ISBLANK(D13),"",TEXT(B12+1,"00")) -> 02 | C13: 010000 00--0-0 | D13: ='Data sheet'!$L$3 -> 00:00:00 | E13: ='Street Report'!C10 -> 0 | F13: ='Street Report'!D10 -> 0 | H13: ='Street Report'!E10 -> 0 | I13: ='Street Report'!I10 -> 0 | J13: ='Data sheet'!AO35 -> 0 | L13: =IF(K13="yes",'Street Report'!H10," ") ->  | M13: ='Street Report'!M10 -> 0+00 | N13: ='Street Report'!N10 -> 0+00 | Q13: CSAH | R13: WMA | S13: L2 | T13: 12L-CL | V13: 2 | W13: SB | X13: -
B14: =IF(ISBLANK(D14),"",TEXT(B13+1,"00")) -> 03 | C14: 010000 00--0-0 | D14: ='Data sheet'!$L$3 -> 00:00:00 | E14: ='Street Report'!C11 -> 0 | F14: ='Street Report'!D11 -> 0 | H14: ='Street Report'!E11 -> 0 | I14: ='Street Report'!I11 -> 0 | J14: ='Data sheet'!AO36 -> 0 | L14: =IF(K14="yes",'Street Report'!H11," ") ->  | M14: ='Street Report'!M11 -> 0+00 | N14: ='Street Report'!N11 -> 0+00 | Q14: CR | R14: CIR | S14: L3 | T14: CL-12R | V14: 3 | W14: EB | X14: -
B15: 04 | C15: 010000 00--0-0 | D15: ='Data sheet'!$L$3 -> 00:00:00 | E15: ='Street Report'!C12 -> 0 | F15: ='Street Report'!D12 -> 0 | H15: ='Street Report'!E12 -> 0 | I15: ='Street Report'!I12 -> 0 | J15: ='Data sheet'!AO37 -> 0 | L15: =IF(K15="yes",'Street Report'!H12," ") ->  | M15: ='Street Report'!M12 -> 0+00 | N15: ='Street Report'!N12 -> 0+00 | Q15: MS | R15: LVL | S15: L4 | T15: 18L-CL | V15: 4 | W15: WB | X15: - | Z15: Click on the link above to open an IC-106 form. Create a project specific IC-106 form. Once created you will continue to update that form.
B16: 05 | C16: 010000 00--0-0 | D16: ='Data sheet'!$L$3 -> 00:00:00 | E16: ='Street Report'!C13 -> 0 | F16: ='Street Report'!D13 -> 0 | H16: ='Street Report'!E13 -> 0 | I16: ='Street Report'!I13 -> 0 | J16: ='Data sheet'!AO38 -> 0 | L16: =IF(K16="yes",'Street Report'!H13," ") ->  | M16: ='Street Report'!M13 -> 0+00 | N16: ='Street Report'!N13 -> 0+00 | Q16: MSAH | R16: UTBWC | S16: L5 | T16: CL-18R | V16: 5 | X16: -
B17: 06 | C17: 010000 00--0-0 | D17: ='Data sheet'!$L$3 -> 00:00:00 | E17: ='Street Report'!C14 -> 0 | F17: ='Street Report'!D14 -> 0 | H17: ='Street Report'!E14 -> 0 | I17: ='Street Report'!I14 -> 0 | J17: ='Data sheet'!AO39 -> 0 | L17: =IF(K17="yes",'Street Report'!H14," ") ->  | M17: ='Street Report'!M14 -> 0+00 | N17: ='Street Report'!N14 -> 0+00 | R17: SFDR-I | S17: L6 | T17: 6R-18R | V17: 6 | X17: -
B18: 07 | C18: 010000 00--0-0 | D18: ='Data sheet'!$L$3 -> 00:00:00 | E18: ='Street Report'!C15 -> 0 | F18: ='Street Report'!D15 -> 0 | H18: ='Street Report'!E15 -> 0 | I18: ='Street Report'!I15 -> 0 | J18: ='Data sheet'!AO40 -> 0 | L18: =IF(K18="yes",'Street Report'!H15," ") ->  | M18: ='Street Report'!M15 -> 0+00 | N18: ='Street Report'!N15 -> 0+00 | R18: SFDR-P | T18: 18L-6L | V18: 7 | X18: -
B19: 08 | C19: 010000 00--0-0 | D19: ='Data sheet'!$L$3 -> 00:00:00 | E19: ='Street Report'!C16 -> 0 | F19: ='Street Report'!D16 -> 0 | H19: ='Street Report'!E16 -> 0 | I19: ='Street Report'!I16 -> 0 | J19: ='Data sheet'!AO41 -> 0 | L19: =IF(K19="yes",'Street Report'!H16," ") ->  | M19: ='Street Report'!M16 -> 0+00 | N19: ='Street Report'!N16 -> 0+00 | R19: SMA | T19: 24L-12L | V19: 8 | X19: -
B20: 09 | C20: 010000 00--0-0 | D20: ='Data sheet'!$L$3 -> 00:00:00 | E20: ='Street Report'!C17 -> 0 | F20: ='Street Report'!D17 -> 0 | H20: ='Street Report'!E17 -> 0 | I20: ='Street Report'!I17 -> 0 | J20: ='Data sheet'!AO42 -> 0 | L20: =IF(K20="yes",'Street Report'!H17," ") ->  | M20: ='Street Report'!M17 -> 0+00 | N20: ='Street Report'!N17 -> 0+00 | R20: CCPR | T20: 12R-24R | V20: 9 | W20: Yes/No | X20: -
B21: 10 | C21: 010000 00--0-0 | D21: ='Data sheet'!$L$3 -> 00:00:00 | E21: ='Street Report'!C18 -> 0 | F21: ='Street Report'!D18 -> 0 | H21: ='Street Report'!E18 -> 0 | I21: ='Street Report'!I18 -> 0 | J21: ='Data sheet'!AO43 -> 0 | L21: =IF(K21="yes",'Street Report'!H18," ") ->  | M21: ='Street Report'!M18 -> 0+00 | N21: ='Street Report'!N18 -> 0+00 | T21: 36L-24L | V21: 10 | W21: Yes | X21: -
B22: 11 | C22: 010000 00--0-0 | D22: ='Data sheet'!$L$3 -> 00:00:00 | E22: ='Street Report'!C19 -> 0 | F22: ='Street Report'!D19 -> 0 | H22: ='Street Report'!E19 -> 0 | I22: ='Street Report'!I19 -> 0 | J22: ='Data sheet'!AO44 -> 0 | L22: =IF(K22="yes",'Street Report'!H19," ") ->  | M22: ='Street Report'!M19 -> 0+00 | N22: ='Street Report'!N19 -> 0+00 | T22: 24R-36R | V22: 11 | X22: -
B23: 12 | C23: 010000 00--0-0 | D23: ='Data sheet'!$L$3 -> 00:00:00 | E23: ='Street Report'!C20 -> 0 | F23: ='Street Report'!D20 -> 0 | H23: ='Street Report'!E20 -> 0 | I23: ='Street Report'!I20 -> 0 | J23: ='Data sheet'!AO45 -> 0 | L23: =IF(K23="yes",'Street Report'!H20," ") ->  | M23: ='Street Report'!M20 -> 0+00 | N23: ='Street Report'!N20 -> 0+00 | T23: 48L-36L | V23: 12 | W23: Yes | X23: -
B24: 13 | C24: 010000 00--0-0 | D24: ='Data sheet'!$L$3 -> 00:00:00 | E24: ='Street Report'!C21 -> 0 | F24: ='Street Report'!D21 -> 0 | H24: ='Street Report'!E21 -> 0 | I24: ='Street Report'!I21 -> 0 | J24: ='Data sheet'!AO46 -> 0 | L24: =IF(K24="yes",'Street Report'!H21," ") ->  | M24: ='Street Report'!M21 -> 0+00 | N24: ='Street Report'!N21 -> 0+00 | T24: 36R-48R | V24: 13 | W24: No | X24: -
B25: 14 | C25: 010000 00--0-0 | D25: ='Data sheet'!$L$3 -> 00:00:00 | E25: ='Street Report'!C22 -> 0 | F25: ='Street Report'!D22 -> 0 | H25: ='Street Report'!E22 -> 0 | I25: ='Street Report'!I22 -> 0 | J25: ='Data sheet'!AO47 -> 0 | L25: =IF(K25="yes",'Street Report'!H22," ") ->  | M25: ='Street Report'!M22 -> 0+00 | N25: ='Street Report'!N22 -> 0+00 | T25: 6L-6R | V25: 14 | X25: -
B26: 15 | C26: 010000 00--0-0 | D26: ='Data sheet'!$L$3 -> 00:00:00 | E26: ='Street Report'!C23 -> 0 | F26: ='Street Report'!D23 -> 0 | H26: ='Street Report'!E23 -> 0 | I26: ='Street Report'!I23 -> 0 | J26: ='Data sheet'!AO48 -> 0 | L26: =IF(K26="yes",'Street Report'!H23," ") ->  | M26: ='Street Report'!M23 -> 0+00 | N26: ='Street Report'!N23 -> 0+00 | T26: 12L-12R | V26: 15 | X26: -
B27: 16 | C27: 010000 00--0-0 | D27: ='Data sheet'!$L$3 -> 00:00:00 | E27: ='Street Report'!C24 -> 0 | F27: ='Street Report'!D24 -> 0 | H27: ='Street Report'!E24 -> 0 | I27: ='Street Report'!I24 -> 0 | J27: ='Data sheet'!AO49 -> 0 | L27: =IF(K27="yes",'Street Report'!H24," ") ->  | M27: ='Street Report'!M24 -> 0+00 | N27: ='Street Report'!N24 -> 0+00 | T27: 24L-24R | X27: -
B28: 17 | C28: 010000 00--0-0 | D28: ='Data sheet'!$L$3 -> 00:00:00 | E28: ='Street Report'!C25 -> 0 | F28: ='Street Report'!D25 -> 0 | H28: ='Street Report'!E25 -> 0 | I28: ='Street Report'!I25 -> 0 | J28: ='Data sheet'!AO50 -> 0 | L28: =IF(K28="yes",'Street Report'!H25," ") ->  | M28: ='Street Report'!M25 -> 0+00 | N28: ='Street Report'!N25 -> 0+00 | X28: -
B29: 18 | C29: 010000 00--0-0 | D29: ='Data sheet'!$L$3 -> 00:00:00 | E29: ='Street Report'!C26 -> 0 | F29: ='Street Report'!D26 -> 0 | H29: ='Street Report'!E26 -> 0 | I29: ='Street Report'!I26 -> 0 | J29: ='Data sheet'!AO51 -> 0 | L29: =IF(K29="yes",'Street Report'!H26," ") ->  | M29: ='Street Report'!M26 -> 0+00 | N29: ='Street Report'!N26 -> 0+00 | X29: -
B30: 19 | C30: 010000 00--0-0 | D30: ='Data sheet'!$L$3 -> 00:00:00 | E30: ='Street Report'!C27 -> 0 | F30: ='Street Report'!D27 -> 0 | H30: ='Street Report'!E27 -> 0 | I30: ='Street Report'!I27 -> 0 | J30: ='Data sheet'!AO52 -> 0 | L30: =IF(K30="yes",'Street Report'!H27," ") ->  | M30: ='Street Report'!M27 -> 0+00 | N30: ='Street Report'!N27 -> 0+00 | X30: -
B31: 20 | C31: 010000 00--0-0 | D31: ='Data sheet'!$L$3 -> 00:00:00 | E31: ='Street Report'!C28 -> 0 | F31: ='Street Report'!D28 -> 0 | H31: ='Street Report'!E28 -> 0 | I31: ='Street Report'!I28 -> 0 | J31: ='Data sheet'!AO53 -> 0 | L31: =IF(K31="yes",'Street Report'!H28," ") ->  | M31: ='Street Report'!M28 -> 0+00 | N31: ='Street Report'!N28 -> 0+00 | X31: -
B32: 21 | C32: 010000 00--0-0 | D32: ='Data sheet'!$L$3 -> 00:00:00 | E32: ='Street Report'!C29 -> 0 | F32: ='Street Report'!D29 -> 0 | H32: ='Street Report'!E29 -> 0 | I32: ='Street Report'!I29 -> 0 | J32: ='Data sheet'!AO54 -> 0 | L32: =IF(K32="yes",'Street Report'!H29," ") ->  | M32: ='Street Report'!M29 -> 0+00 | N32: ='Street Report'!N29 -> 0+00 | X32: -
B33: 22 | C33: 010000 00--0-0 | D33: ='Data sheet'!$L$3 -> 00:00:00 | E33: ='Street Report'!C30 -> 0 | F33: ='Street Report'!D30 -> 0 | H33: ='Street Report'!E30 -> 0 | I33: ='Street Report'!I30 -> 0 | J33: ='Data sheet'!AO55 -> 0 | L33: =IF(K33="yes",'Street Report'!H30," ") ->  | M33: ='Street Report'!M30 -> 0+00 | N33: ='Street Report'!N30 -> 0+00 | X33: -
B34: 23 | C34: 010000 00--0-0 | D34: ='Data sheet'!$L$3 -> 00:00:00 | E34: ='Street Report'!C31 -> 0 | F34: ='Street Report'!D31 -> 0 | H34: ='Street Report'!E31 -> 0 | I34: ='Street Report'!I31 -> 0 | J34: ='Data sheet'!AO56 -> 0 | L34: =IF(K34="yes",'Street Report'!H31," ") ->  | M34: ='Street Report'!M31 -> 0+00 | N34: ='Street Report'!N31 -> 0+00 | X34: -
B35: 24 | C35: 010000 00--0-0 | D35: ='Data sheet'!$L$3 -> 00:00:00 | E35: ='Street Report'!C32 -> 0 | F35: ='Street Report'!D32 -> 0 | H35: ='Street Report'!E32 -> 0 | I35: ='Street Report'!I32 -> 0 | J35: ='Data sheet'!AO57 -> 0 | L35: =IF(K35="yes",'Street Report'!H32," ") ->  | M35: ='Street Report'!M32 -> 0+00 | N35: ='Street Report'!N32 -> 0+00 | X35: -
B36: 25 | C36: 010000 00--0-0 | D36: ='Data sheet'!$L$3 -> 00:00:00 | E36: ='Street Report'!C33 -> 0 | F36: ='Street Report'!D33 -> 0 | H36: ='Street Report'!E33 -> 0 | I36: ='Street Report'!I33 -> 0 | J36: ='Data sheet'!AO58 -> 0 | L36: =IF(K36="yes",'Street Report'!H33," ") ->  | M36: ='Street Report'!M33 -> 0+00 | N36: ='Street Report'!N33 -> 0+00 | X36: -
B37: 26 | C37: 010000 00--0-0 | D37: ='Data sheet'!$L$3 -> 00:00:00 | E37: ='Street Report'!C34 -> 0 | F37: ='Street Report'!D34 -> 0 | H37: ='Street Report'!E34 -> 0 | I37: ='Street Report'!I34 -> 0 | J37: ='Data sheet'!AO59 -> 0 | L37: =IF(K37="yes",'Street Report'!H34," ") ->  | M37: ='Street Report'!M34 -> 0+00 | N37: ='Street Report'!N34 -> 0+00 | X37: -
B38: 27 | C38: 010000 00--0-0 | D38: ='Data sheet'!$L$3 -> 00:00:00 | E38: ='Street Report'!C35 -> 0 | F38: ='Street Report'!D35 -> 0 | H38: ='Street Report'!E35 -> 0 | I38: ='Street Report'!I35 -> 0 | J38: ='Data sheet'!AO60 -> 0 | L38: =IF(K38="yes",'Street Report'!H35," ") ->  | M38: ='Street Report'!M35 -> 0+00 | N38: ='Street Report'!N35 -> 0+00 | X38: -
B39: 28 | C39: 010000 00--0-0 | D39: ='Data sheet'!$L$3 -> 00:00:00 | E39: ='Street Report'!C36 -> 0 | F39: ='Street Report'!D36 -> 0 | H39: ='Street Report'!E36 -> 0 | I39: ='Street Report'!I36 -> 0 | J39: ='Data sheet'!AO61 -> 0 | L39: =IF(K39="yes",'Street Report'!H36," ") ->  | M39: ='Street Report'!M36 -> 0+00 | N39: ='Street Report'!N36 -> 0+00 | X39: -

Sheet Core Stationing
A1: MN_DOT_AASHTOWare Project Support <AASHTOWareProjectSupport.DOT@state.mn.us> | H1: Bituminous Core Stationing with Formatted Locations | AJ1: Asphalt
H2: =IF(R8="Yes","including Longitudinal Joint Density","") -> including Longitudinal Joint Density | Y2: Drop Down Box Lists | AB2: County | AG2: Show | AH2: Type | AI2: Mix | AJ2: Binder | AM2: Lane | AN2: Density
F3: 2019-09-20 | Y3: Project | Z3: Road Type | AA3: LJD? | AB3: Number | AC3: County | AD3: Tons | AE3: Lots | AF3: Direction | AG3: Companion Cores? | AH3: of | AI3: Type | AJ3: Grade | AK3: L | AL3: Direction | AM3: Type | AN3: Determination
Y4: SP | Z4: TH | AA4: Yes | AD4: 0.1 | AE4: 0 | AF4: =IF(J10<K10,1,IF(J10=K10,0,IF(J10>K10,-1,"NOT"))) -> 0 | AG4: All | AH4: Joint | AJ4: A= PG 52-34 | AK4: L1
F5: ='Data sheet'!A5 -> SP | G5: ='Data sheet'!B5 -> 0 | J5: ='Data sheet'!A3 -> TH | L5: ='Data sheet'!B3 -> 0 | N5: Engineer | O5: ='Data sheet'!E3 -> 0 | Y5: SAP | Z5: CSAH | AA5: No | AB5: 1 | AC5: Aitkin | AD5: 1 | AE5: 1 | AF5: 0 | AG5: 1 per Lot | AI5: SPWEA230 | AJ5: B= PG 58-28 | AK5: L2 | AL5: NB | AM5: Traffic Lane | AN5: No
F6: Contractor | G6: ='Data sheet'!I3 -> 0 | J6: Plant | L6: ='Data sheet'!I5 -> 0 | Y6: CP | Z6: CR | AB6: 2 | AC6: Anoka | AD6: 601 | AE6: 2 | AF6: 0 | AG6: No | AH6: Confined | AI6: SPWEA240 | AJ6: C= PG 58-34 | AK6: L3 | AL6: SB | AM6: Lt Shoulder | AN6: Yes
Y7: MP | Z7: MSAH | AB7: 3 | AC7: Becker | AD7: 1001 | AE7: 3 | AF7: 0 | AH7: Unconfined | AI7: SPWEA330 | AJ7: E= PG 64-28 | AK7: L4 | AL7: EB | AM7: Lt Turn Lane 2
B8: Route | C8: Lift | D8: Lane Type | E8: Direction of Travel | F8: Standard Centerline Offset | G8: Custom Offset Left Boundary (Example: 11L, 12R) | H8: Custom Offset Right Boundary (Example: CL, 20R) | I8: Alignment Name (If Applicable) | J8: Begin Station | K8: End Station | L8: Lane Width | M8: Custom Lane Width | Q8: Longitudinal Joint Density Project? | R8: Yes | S8: Date Paved | T8: ='Data sheet'!L3 -> 00:00:00 | Z8: MS | AB8: 4 | AC8: Beltrami | AD8: 1601 | AE8: 4 | AF8: 0 | AI8: SPWEA340 | AJ8: F= PG 64-34 | AK8: L5 | AL8: WB | AM8: Lt Turn Lane
J9: (ft) | K9: (ft) | L9: (ft) | Q9: 1% Density Reduction? | R9: No | S9: REPORT # | T9: ='Data sheet'!L5 -> 0 | AB9: 5 | AC9: Benton | AD9: 2601 | AE9: 5 | AF9: 0 | AI9: SPWEA430 | AJ9: H= PG 70-28 | AK9: L6 | AM9: Lt Lane
B10: ='Street Report'!C9 -> 0 | C10: ='Street Report'!E9 -> 0 | D10: ='Street Report'!F9 -> 0 | E10: ='Street Report'!H9 -> 0 | F10: ='Street Report'!I9 -> 0 | G10: ='Street Report'!J9 -> 0 | H10: =IFERROR('Street Report'!K9," ") -> 0 | I10: ='Street Report'!L9 -> 0 | J10: ='Street Report'!M9 -> 0+00 | K10: ='Street Report'!N9 -> 0+00 | L10: ='Street Report'!O9 ->  | M10: ='Street Report'!P9 -> 0.00 | S10: Date Cored | AB10: 6 | AC10: Big Stone | AD10: 4601 | AE10: 6 | AF10: 0 | AI10: SPWEA440 | AJ10: I= PG 70-34 | AK10: L7 | AM10: Lt Center
B11: ='Street Report'!C10 -> 0 | C11: ='Street Report'!E10 -> 0 | D11: ='Street Report'!F10 -> 0 | E11: ='Street Report'!H10 -> 0 | F11: ='Street Report'!I10 -> 0 | G11: ='Street Report'!J10 -> 0 | H11: ='Street Report'!K10 -> 0 | I11: ='Street Report'!L10 -> 0 | J11: ='Street Report'!M10 -> 0+00 | K11: ='Street Report'!N10 -> 0+00 | L11: ='Street Report'!O10 ->  | M11: ='Street Report'!P10 -> 0.00 | O11: Total Density Tons Paved | Q11: ='Street Report'!S37 -> 0.00 | AB11: 7 | AC11: Blue Earth | AD11: 5501 | AE11: 7 | AF11: 0 | AI11: SPWEA530 | AJ11: L= PG 64-22 | AM11: Center Lane
B12: ='Street Report'!C11 -> 0 | C12: ='Street Report'!E11 -> 0 | D12: ='Street Report'!F11 -> 0 | E12: ='Street Report'!H11 -> 0 | F12: ='Street Report'!I11 -> 0 | G12: ='Street Report'!J11 -> 0 | H12: ='Street Report'!K11 -> 0 | I12: ='Street Report'!L11 -> 0 | J12: ='Street Report'!M11 -> 0+00 | K12: ='Street Report'!N11 -> 0+00 | L12: ='Street Report'!O11 ->  | M12: ='Street Report'!P11 -> 0.00 | O12: Tons Per Lot | Q12: =IFERROR(Q11/Q14,"") ->  | S12: MDR/Rec# | T12: ='Street Report'!L5 -> 0 | AB12: 8 | AC12: Brown | AD12: 6401 | AE12: 8 | AF12: 0 | AI12: SPWEA540 | AJ12: M= PG 49-34 | AM12: Rt Center
B13: ='Street Report'!C12 -> 0 | C13: ='Street Report'!E12 -> 0 | D13: ='Street Report'!F12 -> 0 | E13: ='Street Report'!H12 -> 0 | F13: ='Street Report'!I12 -> 0 | G13: ='Street Report'!J12 -> 0 | H13: ='Street Report'!K12 -> 0 | I13: ='Street Report'!L12 -> 0 | J13: ='Street Report'!M12 -> 0+00 | K13: ='Street Report'!N12 -> 0+00 | L13: ='Street Report'!O12 ->  | M13: ='Street Report'!P12 -> 0.00 | O13: Lots Used for Calcuations | Q13: =IFERROR(IF(ISNUMBER(Q15)=TRUE,Q15,IF(ISNUMBER(Q11)=TRUE,IF($Q$11>0,VLOOKUP(Q11,AD5:AE14,2),0),0)),"") -> 0 | S13: Bid Price/Ton | T13: ='Street Report'!O5 ->  | AB13: 9 | AC13: Carlton | AD13: 7301 | AE13: 9 | AF13: 0 | AI13: SPWEB230 | AJ13: C= PG 58-34 (PMB) | AM13: RT Lane
B14: ='Street Report'!C13 -> 0 | C14: ='Street Report'!E13 -> 0 | D14: ='Street Report'!F13 -> 0 | E14: ='Street Report'!H13 -> 0 | F14: ='Street Report'!I13 -> 0 | G14: ='Street Report'!J13 -> 0 | H14: ='Street Report'!K13 -> 0 | I14: ='Street Report'!L13 -> 0 | J14: ='Street Report'!M13 -> 0+00 | K14: ='Street Report'!N13 -> 0+00 | L14: ='Street Report'!O13 ->  | M14: ='Street Report'!P13 -> 0.00 | O14: Lots Required | Q14: =IFERROR(VLOOKUP(Q11,AD4:AE14,2),"") ->  | AB14: 10 | AC14: Carver | AD14: 8201 | AE14: 10 | AI14: SPWEB240 | AJ14: E= PG 64-28 (PMB) | AM14: Rt Turn Lane
B15: ='Street Report'!C14 -> 0 | C15: ='Street Report'!E14 -> 0 | D15: ='Street Report'!F14 -> 0 | E15: ='Street Report'!H14 -> 0 | F15: ='Street Report'!I14 -> 0 | G15: ='Street Report'!J14 -> 0 | H15: ='Street Report'!K14 -> 0 | I15: ='Street Report'!L14 -> 0 | J15: ='Street Report'!M14 -> 0+00 | K15: ='Street Report'!N14 -> 0+00 | L15: ='Street Report'!O14 ->  | M15: ='Street Report'!P14 -> 0.00 | O15: Over-ride # Lots | AB15: 11 | AC15: Cass | AI15: SPWEB330 | AJ15: F= PG 64-34 (PMB) | AM15: Rt Turn Lane 2
B16: ='Street Report'!C15 -> 0 | C16: ='Street Report'!E15 -> 0 | D16: ='Street Report'!F15 -> 0 | E16: ='Street Report'!H15 -> 0 | F16: ='Street Report'!I15 -> 0 | G16: ='Street Report'!J15 -> 0 | H16: ='Street Report'!K15 -> 0 | I16: ='Street Report'!L15 -> 0 | J16: ='Street Report'!M15 -> 0+00 | K16: ='Street Report'!N15 -> 0+00 | L16: ='Street Report'!O15 ->  | M16: ='Street Report'!P15 -> 0.00 | AB16: 12 | AC16: Chippewa | AI16: SPWEB340 | AJ16: H= PG 70-28 (PMB) | AM16: Rt Shoulder
B17: ='Street Report'!C16 -> 0 | C17: ='Street Report'!E16 -> 0 | D17: ='Street Report'!F16 -> 0 | E17: ='Street Report'!H16 -> 0 | F17: ='Street Report'!I16 -> 0 | G17: ='Street Report'!J16 -> 0 | H17: ='Street Report'!K16 -> 0 | I17: ='Street Report'!L16 -> 0 | J17: ='Street Report'!M16 -> 0+00 | K17: ='Street Report'!N16 -> 0+00 | L17: ='Street Report'!O16 ->  | M17: ='Street Report'!P16 -> 0.00 | R17: Mix Spec | T17: 2360 | AB17: 13 | AC17: Chisago | AI17: SPWEB430 | AJ17: A= PG 52S-34 (MSCR) | AM17: Ramp
B18: ='Street Report'!C17 -> 0 | C18: ='Street Report'!E17 -> 0 | D18: ='Street Report'!F17 -> 0 | E18: ='Street Report'!H17 -> 0 | F18: ='Street Report'!I17 -> 0 | G18: ='Street Report'!J17 -> 0 | H18: ='Street Report'!K17 -> 0 | I18: ='Street Report'!L17 -> 0 | J18: ='Street Report'!M17 -> 0+00 | K18: ='Street Report'!N17 -> 0+00 | L18: ='Street Report'!O17 ->  | M18: ='Street Report'!P17 -> 0.00 | O18: Test Companion | R18: Mix Type | T18: =VLOOKUP('Street Report'!L5,'Data sheet'!D8:L19,3,FALSE) ->  | AB18: 14 | AC18: Clay | AI18: SPWEB440 | AJ18: B= PG 58S-28 (MSCR) | AM18: Loop
B19: ='Street Report'!C18 -> 0 | C19: ='Street Report'!E18 -> 0 | D19: ='Street Report'!F18 -> 0 | E19: ='Street Report'!H18 -> 0 | F19: ='Street Report'!I18 -> 0 | G19: ='Street Report'!J18 -> 0 | H19: ='Street Report'!K18 -> 0 | I19: ='Street Report'!L18 -> 0 | J19: ='Street Report'!M18 -> 0+00 | K19: ='Street Report'!N18 -> 0+00 | L19: ='Street Report'!O18 ->  | M19: ='Street Report'!P18 -> 0.00 | O19: Cores Shown? | P19: 1 per Lot | R19: Asphalt Binder Grade | T19: C= PG 58H-34 (MSCR) | AB19: 15 | AC19: Clearwater | AI19: SPWEB530 | AJ19: C= PG 58H-34 (MSCR) | AM19: Shoulder Bypass
B20: ='Street Report'!C19 -> 0 | C20: ='Street Report'!E19 -> 0 | D20: ='Street Report'!F19 -> 0 | E20: ='Street Report'!H19 -> 0 | F20: ='Street Report'!I19 -> 0 | G20: ='Street Report'!J19 -> 0 | H20: ='Street Report'!K19 -> 0 | I20: ='Street Report'!L19 -> 0 | J20: ='Street Report'!M19 -> 0+00 | K20: ='Street Report'!N19 -> 0+00 | L20: ='Street Report'!O19 ->  | M20: ='Street Report'!P19 -> 0.00 | R20: Total Area Paved (yd2) | T20: =IFERROR($L$129/9,"") -> 0 | AB20: 16 | AC20: Cook | AI20: SPWEB540 | AJ20: E= PG 58H-28 (MSCR) | AM20: HOV Lane
B21: ='Street Report'!C20 -> 0 | C21: ='Street Report'!E20 -> 0 | D21: ='Street Report'!F20 -> 0 | E21: ='Street Report'!H20 -> 0 | F21: ='Street Report'!I20 -> 0 | G21: ='Street Report'!J20 -> 0 | H21: ='Street Report'!K20 -> 0 | I21: ='Street Report'!L20 -> 0 | J21: ='Street Report'!M20 -> 0+00 | K21: ='Street Report'!N20 -> 0+00 | L21: ='Street Report'!O20 ->  | M21: ='Street Report'!P20 -> 0.00 | AB21: 17 | AC21: Cottonwood | AI21: SPWEC230 | AJ21: F= PG 58V-34 (MSCR) | AM21: Crossover
B22: ='Street Report'!C21 -> 0 | C22: ='Street Report'!E21 -> 0 | D22: ='Street Report'!F21 -> 0 | E22: ='Street Report'!H21 -> 0 | F22: ='Street Report'!I21 -> 0 | G22: ='Street Report'!J21 -> 0 | H22: ='Street Report'!K21 -> 0 | I22: ='Street Report'!L21 -> 0 | J22: ='Street Report'!M21 -> 0+00 | K22: ='Street Report'!N21 -> 0+00 | L22: ='Street Report'!O21 ->  | M22: ='Street Report'!P21 -> 0.00 | AB22: 18 | AC22: Crow Wing | AI22: SPWEC240 | AJ22: H= PG 58V-28 (MSCR)
B23: ='Street Report'!C22 -> 0 | C23: ='Street Report'!E22 -> 0 | D23: ='Street Report'!F22 -> 0 | E23: ='Street Report'!H22 -> 0 | F23: ='Street Report'!I22 -> 0 | G23: ='Street Report'!J22 -> 0 | H23: ='Street Report'!K22 -> 0 | I23: ='Street Report'!L22 -> 0 | J23: ='Street Report'!M22 -> 0+00 | K23: ='Street Report'!N22 -> 0+00 | L23: ='Street Report'!O22 ->  | M23: ='Street Report'!P22 -> 0.00 | AB23: 19 | AC23: Dakota | AI23: SPWEC330 | AJ23: I= PG 58E-34 (MSCR)
B24: ='Street Report'!C23 -> 0 | C24: ='Street Report'!E23 -> 0 | D24: ='Street Report'!F23 -> 0 | E24: ='Street Report'!H23 -> 0 | F24: ='Street Report'!I23 -> 0 | G24: ='Street Report'!J23 -> 0 | H24: ='Street Report'!K23 -> 0 | I24: ='Street Report'!L23 -> 0 | J24: ='Street Report'!M23 -> 0+00 | K24: ='Street Report'!N23 -> 0+00 | L24: ='Street Report'!O23 ->  | M24: ='Street Report'!P23 -> 0.00 | O24: ='Street Report'!J60 -> S.P. | P24: ='Street Report'!K60 -> DENSITY TONS | Q24: ='Street Report'!L60 -> NON-DENSITY TONS | R24: ='Street Report'!M60 -> TOTAL TONS | AB24: 20 | AC24: Dodge | AI24: SPWEC340 | AJ24: L= PG 64S-22 (MSCR)
B25: ='Street Report'!C24 -> 0 | C25: ='Street Report'!E24 -> 0 | D25: ='Street Report'!F24 -> 0 | E25: ='Street Report'!H24 -> 0 | F25: ='Street Report'!I24 -> 0 | G25: ='Street Report'!J24 -> 0 | H25: ='Street Report'!K24 -> 0 | I25: ='Street Report'!L24 -> 0 | J25: ='Street Report'!M24 -> 0+00 | K25: ='Street Report'!N24 -> 0+00 | L25: ='Street Report'!O24 ->  | M25: ='Street Report'!P24 -> 0.00 | AB25: 21 | AC25: Douglas | AI25: SPWEC430 | AJ25: M= PG 49S-34 (MSCR)
B26: ='Street Report'!C25 -> 0 | C26: ='Street Report'!E25 -> 0 | D26: ='Street Report'!F25 -> 0 | E26: ='Street Report'!H25 -> 0 | F26: ='Street Report'!I25 -> 0 | G26: ='Street Report'!J25 -> 0 | H26: ='Street Report'!K25 -> 0 | I26: ='Street Report'!L25 -> 0 | J26: ='Street Report'!M25 -> 0+00 | K26: ='Street Report'!N25 -> 0+00 | L26: ='Street Report'!O25 ->  | M26: ='Street Report'!P25 -> 0.00 | O26: ='Data sheet'!C7 -> 0 | P26: ='Street Report'!K62 -> 0.00 | Q26: ='Street Report'!L62 -> 0.00 | R26: ='Street Report'!M62 -> 0.00 | AB26: 22 | AC26: Faribault | AI26: SPWEC440 | AJ26: I= PG 64E-34 (MSCR)
B27: ='Street Report'!C26 -> 0 | C27: ='Street Report'!E26 -> 0 | D27: ='Street Report'!F26 -> 0 | E27: ='Street Report'!H26 -> 0 | F27: ='Street Report'!I26 -> 0 | G27: ='Street Report'!J26 -> 0 | H27: ='Street Report'!K26 -> 0 | I27: ='Street Report'!L26 -> 0 | J27: ='Street Report'!M26 -> 0+00 | K27: ='Street Report'!N26 -> 0+00 | L27: ='Street Report'!O26 ->  | M27: ='Street Report'!P26 -> 0.00 | O27: ='Data sheet'!C8 -> 0 | P27: ='Street Report'!K63 -> 0.00 | Q27: ='Street Report'!L63 -> 0.00 | R27: ='Street Report'!M63 -> 0.00 | AB27: 23 | AC27: Fillmore | AI27: SPWEC530
B28: ='Street Report'!C27 -> 0 | C28: ='Street Report'!E27 -> 0 | D28: ='Street Report'!F27 -> 0 | E28: ='Street Report'!H27 -> 0 | F28: ='Street Report'!I27 -> 0 | G28: ='Street Report'!J27 -> 0 | H28: ='Street Report'!K27 -> 0 | I28: ='Street Report'!L27 -> 0 | J28: ='Street Report'!M27 -> 0+00 | K28: ='Street Report'!N27 -> 0+00 | L28: ='Street Report'!O27 ->  | M28: ='Street Report'!P27 -> 0.00 | O28: ='Data sheet'!C9 -> 0 | P28: ='Street Report'!K64 -> 0.00 | Q28: ='Street Report'!L64 -> 0.00 | R28: ='Street Report'!M64 -> 0.00 | AB28: 24 | AC28: Freeborn | AI28: SPWEC540
B29: ='Street Report'!C28 -> 0 | C29: ='Street Report'!E28 -> 0 | D29: ='Street Report'!F28 -> 0 | E29: ='Street Report'!H28 -> 0 | F29: ='Street Report'!I28 -> 0 | G29: ='Street Report'!J28 -> 0 | H29: ='Street Report'!K28 -> 0 | I29: ='Street Report'!L28 -> 0 | J29: ='Street Report'!M28 -> 0+00 | K29: ='Street Report'!N28 -> 0+00 | L29: ='Street Report'!O28 ->  | M29: ='Street Report'!P28 -> 0.00 | O29: ='Data sheet'!C10 -> 0 | P29: ='Street Report'!K65 -> 0.00 | Q29: ='Street Report'!L65 -> 0.00 | R29: ='Street Report'!M65 -> 0.00 | AB29: 25 | AC29: Goodhue | AI29: SPWED230
B30: ='Street Report'!C29 -> 0 | C30: ='Street Report'!E29 -> 0 | D30: ='Street Report'!F29 -> 0 | E30: ='Street Report'!H29 -> 0 | F30: ='Street Report'!I29 -> 0 | G30: ='Street Report'!J29 -> 0 | H30: ='Street Report'!K29 -> 0 | I30: ='Street Report'!L29 -> 0 | J30: ='Street Report'!M29 -> 0+00 | K30: ='Street Report'!N29 -> 0+00 | L30: ='Street Report'!O29 ->  | M30: ='Street Report'!P29 -> 0.00 | O30: ='Data sheet'!C11 -> 0 | P30: ='Street Report'!K66 -> 0.00 | Q30: ='Street Report'!L66 -> 0.00 | R30: ='Street Report'!M66 -> 0.00 | AB30: 26 | AC30: Grant | AI30: SPWED240
B31: ='Street Report'!C30 -> 0 | C31: ='Street Report'!E30 -> 0 | D31: ='Street Report'!F30 -> 0 | E31: ='Street Report'!H30 -> 0 | F31: ='Street Report'!I30 -> 0 | G31: ='Street Report'!J30 -> 0 | H31: ='Street Report'!K30 -> 0 | I31: ='Street Report'!L30 -> 0 | J31: ='Street Report'!M30 -> 0+00 | K31: ='Street Report'!N30 -> 0+00 | L31: ='Street Report'!O30 ->  | M31: ='Street Report'!P30 -> 0.00 | O31: ='Data sheet'!C12 -> 0 | P31: ='Street Report'!K67 -> 0.00 | Q31: ='Street Report'!L67 -> 0.00 | R31: ='Street Report'!M67 -> 0.00 | AB31: 27 | AC31: Hennepin | AI31: SPWED330
B32: ='Street Report'!C31 -> 0 | C32: ='Street Report'!E31 -> 0 | D32: ='Street Report'!F31 -> 0 | E32: ='Street Report'!H31 -> 0 | F32: ='Street Report'!I31 -> 0 | G32: ='Street Report'!J31 -> 0 | H32: ='Street Report'!K31 -> 0 | I32: ='Street Report'!L31 -> 0 | J32: ='Street Report'!M31 -> 0+00 | K32: ='Street Report'!N31 -> 0+00 | L32: ='Street Report'!O31 ->  | M32: ='Street Report'!P31 -> 0.00 | O32: ='Data sheet'!C13 -> 0 | P32: ='Street Report'!K68 -> 0.00 | Q32: ='Street Report'!L68 -> 0.00 | R32: ='Street Report'!M68 -> 0.00 | AB32: 28 | AC32: Houston | AI32: SPWED340
B33: ='Street Report'!C32 -> 0 | C33: ='Street Report'!E32 -> 0 | D33: ='Street Report'!F32 -> 0 | E33: ='Street Report'!H32 -> 0 | F33: ='Street Report'!I32 -> 0 | G33: ='Street Report'!J32 -> 0 | H33: ='Street Report'!K32 -> 0 | I33: ='Street Report'!L32 -> 0 | J33: ='Street Report'!M32 -> 0+00 | K33: ='Street Report'!N32 -> 0+00 | L33: ='Street Report'!O32 ->  | M33: ='Street Report'!P32 -> 0.00 | O33: ='Data sheet'!C14 -> 0 | P33: ='Street Report'!K69 -> 0.00 | Q33: ='Street Report'!L69 -> 0.00 | R33: ='Street Report'!M69 -> 0.00 | AB33: 29 | AC33: Hubbard | AI33: SPWED430
B34: ='Street Report'!C33 -> 0 | C34: ='Street Report'!E33 -> 0 | D34: ='Street Report'!F33 -> 0 | E34: ='Street Report'!H33 -> 0 | F34: ='Street Report'!I33 -> 0 | G34: ='Street Report'!J33 -> 0 | H34: ='Street Report'!K33 -> 0 | I34: ='Street Report'!L33 -> 0 | J34: ='Street Report'!M33 -> 0+00 | K34: ='Street Report'!N33 -> 0+00 | L34: ='Street Report'!O33 ->  | M34: ='Street Report'!P33 -> 0.00 | P34: TOTAL TONS PRODUCED | R34: ='Tape '!L4 -> 1910.00 | AB34: 30 | AC34: Isanti | AI34: SPWED440
B35: ='Street Report'!C34 -> 0 | C35: ='Street Report'!E34 -> 0 | D35: ='Street Report'!F34 -> 0 | E35: ='Street Report'!H34 -> 0 | F35: ='Street Report'!I34 -> 0 | G35: ='Street Report'!J34 -> 0 | H35: ='Street Report'!K34 -> 0 | I35: ='Street Report'!L34 -> 0 | J35: ='Street Report'!M34 -> 0+00 | K35: ='Street Report'!N34 -> 0+00 | L35: ='Street Report'!O34 ->  | M35: ='Street Report'!P34 -> 0.00 | P35: WASTE/OVERLOAD | R35: ='Tape '!P5 -> 0.00 | AB35: 31 | AC35: Itasca | AI35: SPWED530
B36: ='Street Report'!C35 -> 0 | C36: ='Street Report'!E35 -> 0 | D36: ='Street Report'!F35 -> 0 | E36: ='Street Report'!H35 -> 0 | F36: ='Street Report'!I35 -> 0 | G36: ='Street Report'!J35 -> 0 | H36: ='Street Report'!K35 -> 0 | I36: ='Street Report'!L35 -> 0 | J36: ='Street Report'!M35 -> 0+00 | K36: ='Street Report'!N35 -> 0+00 | L36: ='Street Report'!O35 ->  | M36: ='Street Report'!P35 -> 0.00 | P36: PATCHING | R36: ='Street Report'!T65 -> 0.00 | AB36: 32 | AC36: Jackson | AI36: SPWED540
B37: ='Street Report'!C36 -> 0 | C37: ='Street Report'!E36 -> 0 | D37: ='Street Report'!F36 -> 0 | E37: ='Street Report'!H36 -> 0 | F37: ='Street Report'!I36 -> 0 | G37: ='Street Report'!J36 -> 0 | H37: ='Street Report'!K36 -> 0 | I37: ='Street Report'!L36 -> 0 | J37: ='Street Report'!M36 -> 0+00 | K37: ='Street Report'!N36 -> 0+00 | L37: ='Street Report'!O36 ->  | M37: ='Street Report'!P36 -> 0.00 | P37: TOTAL TONS PAID FOR | R37: =R34-R35-R36 -> 1910.00 | AB37: 33 | AC37: Kanabec | AI37: SPNWA230
H38: Calculated | I38: Actual Mat | AB38: 34 | AC38: Kanndiyohi | AI38: SPNWA240
C39: Mat | G39: Alignment | H39: Mat | I39: Core Station (If | J39: Mat | K39: Mat | L39: Mat | M39: Test | N39: LJD | O39: =IF($R$8="Yes","LJD","") -> LJD | P39: =IF($R$8="Yes","LJD","") -> LJD | Q39: LJD | R39: =IF($R$8="Yes","LJD","") -> LJD | S39: =IF($R$8="Yes","LJD","") -> LJD | AB39: 35 | AC39: Kittson | AI39: SPNWA330
C40: Core | F40: Name | G40: Name | H40: Core | I40: different from | J40: Station | K40: Offset | L40: Offset | M40: Companion | N40: Joint | O40: =IF($R$8="Yes","Core","") -> Core | P40: =IF($R$8="Yes","Offset","") -> Offset | Q40: Joint | R40: =IF($R$8="Yes","Core","") -> Core | S40: =IF($R$8="Yes","Offset","") -> Offset | AB40: 36 | AC40: Koochiching | AI40: SPNWA340
B41: Lot | C41: ID | H41: Station | I41: Calculated Sta.) | J41: Random # | K41: (ft.) | L41: Random # | M41: Core | N41: Type | O41: =IF($R$8="Yes","ID","") -> ID | P41: =IF($R$8="Yes","(ft.)","") -> (ft.) | Q41: Type | R41: =IF($R$8="Yes","ID","") -> ID | S41: =IF($R$8="Yes","(ft.)","") -> (ft.) | AB41: 37 | AC41: Lac qui Parle | AI41: SPNWA430
B42: 1 | C42: =IF(B42="","",B42+0.1) -> 1.1 | D42: =IF($Q$13>=1,$G$144,"") ->  | G42: =IF($Q$13>=1,$G$145,"") ->  | H42: =IF($Q$13>=1, $G$143,"") ->  | J42: =IF(C42="","",$G$134) -> 0.41 | K42: =$R242 ->  | L42: =IF(C42="","",I220) -> 0.41 | M42: =IF(ISNUMBER($B42),(IF($P$19="All","Y",IF(AND($P$19="1 per Lot",$H157="Y"),$H157,""))),"") ->  | O42: =U220 -> 1.3 | R42: =W220 -> 1.4 | AB42: 38 | AC42: Lake | AI42: SPNWA440
C43: =IF(B42="","",B42+0.2) -> 1.2 | D43: =IF($Q$13>=1,$H$144,"") ->  | G43: =IF($Q$13>=1,$H$145,"") ->  | H43: =IF($Q$13>=1, $H$143,"") ->  | J43: =IF(C43="","",$H$134) -> 0.81 | K43: =$R243 ->  | L43: 0.76 | M43: =IF(ISNUMBER($B42),(IF($P$19="All","Y",IF(AND($P$19="1 per Lot",$H158="Y"),$H158,""))),"") -> Y | P43: =V221 ->  | AB43: 39 | AC43: Lake of the Woods | AI43: SPNWA530
B44: =IF($Q$13>=2,B42+1,"") ->  | C44: =IF(B44="","",B44+0.1) ->  | D44: =IF($Q$13>=2,$I$144,"") ->  | G44: =IF($Q$13>=2,$I$145,"") ->  | H44: =IF($Q$13>=2, $I$143,"") ->  | J44: =IF(C44="","",$I$134) ->  | M44: =IF(ISNUMBER($B44),(IF($P$19="All","Y",IF(AND($P$19="1 per Lot",$H159="Y"),$H159,""))),"") ->  | AB44: 40 | AC44: Le Sueur | AI44: SPNWA540
C45: =IF(B44="","",B44+0.2) ->  | D45: =IF($Q$13>=2,$J$144,"") ->  | G45: =IF($Q$13>=2,$J$145,"") ->  | H45: =IF($Q$13>=2, $J$143,"") ->  | J45: =IF(C45="","",$J$134) ->  | M45: =IF(ISNUMBER($B44),(IF($P$19="All","Y",IF(AND($P$19="1 per Lot",$H160="Y"),$H160,""))),"") ->  | AB45: 41 | AC45: Lincoln | AI45: SPNWB230
B46: =IF($Q$13>=3,B44+1,"") ->  | C46: =IF(B46="","",B46+0.1) ->  | D46: =IF($Q$13>=3,$K$144,"") ->  | G46: =IF($Q$13>=3,$K$145,"") ->  | H46: =IF($Q$13>=3, $K$143,"") ->  | J46: =IF(C46="","",$K$134) ->  | M46: =IF(ISNUMBER($B46),(IF($P$19="All","Y",IF(AND($P$19="1 per Lot",$H161="Y"),$H161,""))),"") ->  | AB46: 42 | AC46: Lyon | AI46: SPNWB240
C47: =IF(B46="","",B46+0.2) ->  | D47: =IF($Q$13>=3,$L$144,"") ->  | G47: =IF($Q$13>=3,$L$145,"") ->  | H47: =IF($Q$13>=3, $L$143,"") ->  | J47: =IF(C47="","",$L$134) ->  | M47: =IF(ISNUMBER($B46),(IF($P$19="All","Y",IF(AND($P$19="1 per Lot",$H162="Y"),$H162,""))),"") ->  | P47: =V225 ->  | AB47: 43 | AC47: Mahnomen | AI47: SPNWB330
B48: =IF($Q$13>=4,B46+1,"") ->  | C48: =IF(B48="","",B48+0.1) ->  | D48: =IF($Q$13>=4,$M$144,"") ->  | G48: =IF($Q$13>=4,$M$145,"") ->  | H48: =IF($Q$13>=4, $M$143,"") ->  | J48: =IF(C48="","",$M$134) ->  | M48: =IF(ISNUMBER($B48),(IF($P$19="All","Y",IF(AND($P$19="1 per Lot",$H163="Y"),$H163,""))),"") ->  | AB48: 44 | AC48: Marshall | AI48: SPNWB340
C49: =IF(B48="","",B48+0.2) ->  | D49: =IF($Q$13>=4,$N$144,"") ->  | G49: =IF($Q$13>=4,$N$145,"") ->  | H49: =IF($Q$13>=4, $N$143,"") ->  | J49: =IF(C49="","",$N$134) ->  | M49: =IF(ISNUMBER($B48),(IF($P$19="All","Y",IF(AND($P$19="1 per Lot",$H164="Y"),$H164,""))),"") ->  | AB49: 45 | AC49: Martin | AI49: SPNWB430
B50: =IF($Q$13>=5,B48+1,"") ->  | C50: =IF(B50="","",B50+0.1) ->  | D50: =IF($Q$13>=5,$O$144,"") ->  | G50: =IF($Q$13>=5,$O$145,"") ->  | H50: =IF($Q$13>=5, $O$143,"") ->  | J50: =IF(C50="","",$O$134) ->  | M50: =IF(ISNUMBER($B50),(IF($P$19="All","Y",IF(AND($P$19="1 per Lot",$H165="Y"),$H165,""))),"") ->  | AB50: 46 | AC50: McLeod | AI50: SPNWB440
C51: =IF(B50="","",B50+0.2) ->  | D51: =IF($Q$13>=5,$P$144,"") ->  | G51: =IF($Q$13>=5,$P$145,"") ->  | H51: =IF($Q$13>=5, $P$143,"") ->  | J51: =IF(C51="","",$P$134) ->  | M51: =IF(ISNUMBER($B50),(IF($P$19="All","Y",IF(AND($P$19="1 per Lot",$H166="Y"),$H166,""))),"") ->  | AB51: 47 | AC51: Meeker | AI51: SPNWB530
B52: =IF($Q$13>=6,B50+1,"") ->  | C52: =IF(B52="","",B52+0.1) ->  | D52: =IF($Q$13>=6,$Q$144,"") ->  | G52: =IF($Q$13>=6,$Q$145,"") ->  | H52: =IF($Q$13>=6, $Q$143,"") ->  | J52: =IF(C52="","",$Q$134) ->  | M52: =IF(ISNUMBER($B52),(IF($P$19="All","Y",IF(AND($P$19="1 per Lot",$H167="Y"),$H167,""))),"") ->  | AB52: 48 | AC52: Mille Lacs | AI52: SPNWB540
C53: =IF(B52="","",B52+0.2) ->  | D53: =IF($Q$13>=6,$R$144,"") ->  | G53: =IF($Q$13>=6,$R$145,"") ->  | H53: =IF($Q$13>=6, $R$143,"") ->  | J53: =IF(C53="","",$R$134) ->  | M53: =IF(ISNUMBER($B52),(IF($P$19="All","Y",IF(AND($P$19="1 per Lot",$H168="Y"),$H168,""))),"") ->  | AB53: 49 | AC53: Morrison | AI53: SPNWC230
B54: =IF($Q$13>=7,B52+1,"") ->  | C54: =IF(B54="","",B54+0.1) ->  | D54: =IF($Q$13>=7,$S$144,"") ->  | G54: =IF($Q$13>=7,$S$145,"") ->  | H54: =IF($Q$13>=7, $S$143,"") ->  | J54: =IF(C54="","",$S$134) ->  | M54: =IF(ISNUMBER($B54),(IF($P$19="All","Y",IF(AND($P$19="1 per Lot",$H169="Y"),$H169,""))),"") ->  | AB54: 50 | AC54: Mower | AI54: SPNWC240
C55: =IF(B54="","",B54+0.2) ->  | D55: =IF($Q$13>=7,$T$144,"") ->  | G55: =IF($Q$13>=7,$T$145,"") ->  | H55: =IF($Q$13>=7, $T$143,"") ->  | J55: =IF(C55="","",$T$134) ->  | M55: =IF(ISNUMBER($B54),(IF($P$19="All","Y",IF(AND($P$19="1 per Lot",$H170="Y"),$H170,""))),"") ->  | AB55: 51 | AC55: Murray | AI55: SPNWC330
B56: =IF($Q$13>=8,B54+1,"") ->  | C56: =IF(B56="","",B56+0.1) ->  | D56: =IF($Q$13>=8,$U$144,"") ->  | G56: =IF($Q$13>=8,$U$145,"") ->  | H56: =IF($Q$13>=8, $U$143,"") ->  | J56: =IF(C56="","",$U$134) ->  | M56: =IF(ISNUMBER($B56),(IF($P$19="All","Y",IF(AND($P$19="1 per Lot",$H171="Y"),$H171,""))),"") ->  | AB56: 52 | AC56: Nicollet | AI56: SPNWC340
C57: =IF(B56="","",B56+0.2) ->  | D57: =IF($Q$13>=8,$V$144,"") ->  | G57: =IF($Q$13>=8,$V$145,"") ->  | H57: =IF($Q$13>=8, $V$143,"") ->  | J57: =IF(C57="","",$V$134) ->  | M57: =IF(ISNUMBER($B56),(IF($P$19="All","Y",IF(AND($P$19="1 per Lot",$H172="Y"),$H172,""))),"") ->  | AB57: 53 | AC57: Nobles | AI57: SPNWC430
B58: =IF($Q$13>=9,B56+1,"") ->  | E58: =IF(B58="","",B58+0.1) ->  | F58: =IF($Q$13>=9,$Q$144,"") ->  | G58: =IF($Q$13>=9,$W$143,"") ->  | H58: =IF(E58="","",$W$134) ->  | I58: =$R$236 ->  | J58: =IF(E58="","",I236) ->  | K58: =IF(ISNUMBER($B58),(IF($P$19="All","Y",IF(AND($P$19="1 per Lot",$H173="Y"),$H173,""))),"") ->  | M58: =U236 ->  | P58: =W236 ->  | AB58: 54 | AC58: Norman | AI58: SPNWC440
E59: =IF(B58="","",B58+0.2) ->  | F59: =IF($Q$13>=9,$R$144,"") ->  | G59: =IF($Q$13>=9,$X$143,"") ->  | H59: =IF(E59="","",$X$134) ->  | I59: =$R$237 ->  | J59: =IF(E59="","",I237) ->  | K59: =IF(ISNUMBER($B58),(IF($P$19="All","Y",IF(AND($P$19="1 per Lot",$H174="Y"),$H174,""))),"") ->  | AB59: 55 | AC59: Olmsted | AI59: SPNWC530
B60: =IF($Q$13>=10,B58+1,"") ->  | E60: =IF(B60="","",B60+0.1) ->  | F60: =IF($Q$13>=10,$Q$144,"") ->  | G60: =IF($Q$13>=10,$Y$143,"") ->  | H60: =IF(E60="","",$Y$134) ->  | I60: =$R$238 ->  | J60: =IF(E60="","",I238) ->  | K60: =IF(ISNUMBER($B60),(IF($P$19="All","Y",IF(AND($P$19="1 per Lot",$H175="Y"),$H175,""))),"") ->  | AB60: 56 | AC60: Otter Tail | AI60: SPNWC540
E61: =IF(B60="","",B60+0.2) ->  | F61: =IF($Q$13>=10,$R$144,"") ->  | G61: =IF($Q$13>=10,$Z$143,"") ->  | H61: =IF(E61="","",$Z$134) ->  | I61: =$R$239 ->  | J61: =IF(E61="","",I239) ->  | K61: =IF(ISNUMBER($B60),(IF($P$19="All","Y",IF(AND($P$19="1 per Lot",$H176="Y"),$H176,""))),"") ->  | AB61: 57 | AC61: Pennington
AB62: 58 | AC62: Pine | AI62: SPNWC440
B63: Daily Production | E63: Remarks | AB63: 59 | AC63: Pipestone | AI63: SPNWC530
B64: English Tons | D64: Lot | AB64: 60 | AC64: Polk | AI64: SPNWD230
B65: 0-600 | D65: 1 | AB65: 61 | AC65: Pope | AI65: SPNWD330
B66: 601-1000 | D66: 2 | AB66: 62 | AC66: Ramsey | AI66: SPNWD430
B67: 1001-1600 | D67: 3 | AB67: 63 | AC67: Red Lake | AI67: SPNWD530
B68: 1601-2600 | D68: 4 | E68: Street Inspector | G68: ='Street Report'!Q69 -> 0 | AB68: 64 | AC68: Redwood
B69: 2601-4600 | D69: 5 | AB69: 65 | AC69: Renville | AI69: SPWEA250
B70: >4601* | D70: 6 | K70: VERIFY CORRECT STARTING LOT NUMBER | P70: VERIFY ALL INFORMATION IS CORRECT BEFORE LOCKING CORE LOCATIONS | AB70: 66 | AC70: Rice | AI70: SPWEA350
B71: * Add one additional lot each additional 900 tons | AB71: 67 | AC71: Rock | AI71: SPWEA450
AB72: 68 | AC72: Roseau | AI72: SPWEA550
J73: *If core locations have been locked, the user can make edits to the Street Report wtihout affecting the core locaitons. ** Unlock core locations by selecting the "UNLOCK CORE LOCATIONS button. ***User must unlock core locations before reseting random core locations if core locations are locked. | AB73: 69 | AC73: Scott | AI73: SPWEB250
AB74: 70 | AC74: Sherburne | AI74: SPWEB350
AB75: 71 | AC75: Sibley | AI75: SPWEB450
AB76: 72 | AC76: St. Louis | AI76: SPWEB550
AB77: 73 | AC77: Stearns | AI77: SPWEC250
AB78: 74 | AC78: Steele | AI78: SPWEC350
AB79: 75 | AC79: Stevens | AI79: SPWEC450
AB80: 76 | AC80: Swift | AI80: SPWEC550
AB81: 77 | AC81: Todd | AI81: SPWED250
AB82: 78 | AC82: Traverse | AI82: SPWED350
AB83: 79 | AC83: Wabasha | AI83: SPWED450
AB84: 80 | AC84: Wadena | AI84: SPWED550
AB85: 81 | AC85: Waseca | AI85: SPNWA250
AB86: 82 | AC86: Washington | AI86: SPNWA350
AB87: 83 | AC87: Watonwan | AI87: SPNWA450
AB88: 84 | AC88: Wilkin | AI88: SPNWA550
AB89: 85 | AC89: Winona | AI89: SPNWB250
AB90: 86 | AC90: Wright | AI90: SPNWB350
AB91: 87 | AC91: Yellow Medicine | AI91: SPNWB450
AI92: SPNWB550
AI93: SPNWC250
E94: Given information from User: | AI94: SPNWC350
P95: Sum | AI95: SPNWC450
K96: Lane | L96: Lane | N96: Area | P96: Lane | AI96: SPNWC550
K97: Length | L97: Area | M97: Station | N97: to test | O97: Direction | P97: Area | AI97: SPNWD250
F98: Lane Name | G98: Lane Letter for Calcs. | H98: Begin Station | I98: End Station | J98: Lane Width | K98: (ft) | L98: (ft2) | M98: Random # | N98: (ft2) | P98: (ft2) | Q98: Lane Name | R98: Lane Name | S98: Alignment Name | T98: Add to Offset | AI98: SPNWD350
F99: =CONCATENATE($F10,", ",$B10," Lift",", ",$E10) -> 0, 0 Lift, 0 | G99: A | H99: =J10 -> +.00 | I99: +.00 | J99: =IF(M10>0.1,M10,IF(ISNUMBER(L10),L10,0)) -> +.00 | K99: =ABS(I99-H99) -> 0.00 | L99: =K99*J99 -> 0 | M99: ='random numbers'!B200 -> 0.6393 | N99: =L99*M99 -> 0 | O99: =IF(J10<K10,1,IF(J10=K10,0,IF(J10>K10,-1,"NOT"))) -> 0 | P99: 0.0 | Q99: =G99 -> A | R99: =IF(M10<0.1,CONCATENATE(B10,", Lift ",C10,",",D10,",",F10,",",E10),CONCATENATE(B10,", Lift ",C10,",",D10,",",G10,"-",H10,",",E10)) -> 0, Lift 0,0,0,0 | S99: =IF(ISBLANK(I10)," ",I10) -> 0 | T99: =IFERROR(IF(M10>0.1, $N242,INDEX('Drop Downs'!$F$4:$F$28, MATCH('Core Stationing'!$F10, 'Drop Downs'!$D$4:$D$28, 0))),"") ->  | AI99: SPNWD450
F100: 0, 0 Lift, 0 | G100: B | H100: +.00 | I100: +.00 | J100: =IF(M11>0.1,M11,IF(ISNUMBER(L11),L11,0)) -> +.00 | K100: 0.00 | L100: =K100*J100 -> 0 | M100: ='random numbers'!B201 -> 0.4791 | N100: =L100*M100 -> 0 | O100: 0 | P100: =L99 -> 0.0 | Q100: B | R100: =IF(M11<0.1,CONCATENATE(B11,", Lift ",C11,",",D11,",",F11,",",E11),CONCATENATE(B11,", Lift ",C11,",",D11,",",G11,"-",H11,",",E11)) -> 0, Lift 0,0,0,0 | S100: 0 | T100: =IFERROR(IF(M11>0.1, $N243,INDEX('Drop Downs'!$F$4:$F$28, MATCH('Core Stationing'!$F11, 'Drop Downs'!$D$4:$D$28, 0))),"") ->  | AI100: SPNWD550
F101: 0, 0 Lift, 0 | G101: C | H101: +.00 | I101: +.00 | J101: +.00 | K101: 0.00 | L101: 0 | M101: ='random numbers'!B202 -> 0.9597 | N101: 0 | O101: 0 | P101: =SUM($L$99:L100) -> 0.0 | Q101: C | R101: 0, Lift 0,0,0,0 | S101: 0 | T101: =IFERROR(IF(M12>0.1, $N244,INDEX('Drop Downs'!$F$4:$F$28, MATCH('Core Stationing'!$F12, 'Drop Downs'!$D$4:$D$28, 0))),"") -> 
F102: 0, 0 Lift, 0 | G102: D | H102: +.00 | I102: +.00 | J102: +.00 | K102: 0.00 | L102: 0 | M102: ='random numbers'!B203 -> 0.7373 | N102: 0 | O102: 0 | P102: =SUM($L$99:L101) -> 0.0 | Q102: D | R102: 0, Lift 0,0,0,0 | S102: 0 | T102: =IFERROR(IF(M13>0.1, $N245,INDEX('Drop Downs'!$F$4:$F$28, MATCH('Core Stationing'!$F13, 'Drop Downs'!$D$4:$D$28, 0))),"") -> 
F103: 0, 0 Lift, 0 | G103: E | H103: +.00 | I103: +.00 | J103: +.00 | K103: 0.00 | L103: 0 | M103: ='random numbers'!B204 -> 0.5944 | N103: 0 | O103: 0 | P103: =SUM($L$99:L102) -> 0.0 | Q103: E | R103: 0, Lift 0,0,0,0 | S103: 0 | T103: =IFERROR(IF(M14>0.1, $N246,INDEX('Drop Downs'!$F$4:$F$28, MATCH('Core Stationing'!$F14, 'Drop Downs'!$D$4:$D$28, 0))),"") -> 
F104: 0, 0 Lift, 0 | G104: F | H104: +.00 | I104: +.00 | J104: +.00 | K104: 0.00 | L104: 0 | M104: ='random numbers'!B205 -> 0.2887 | N104: 0 | O104: 0 | P104: =SUM($L$99:L103) -> 0.0 | Q104: F | R104: 0, Lift 0,0,0,0 | S104: 0 | T104: =IFERROR(IF(M15>0.1, $N247,INDEX('Drop Downs'!$F$4:$F$28, MATCH('Core Stationing'!$F15, 'Drop Downs'!$D$4:$D$28, 0))),"") -> 
F105: 0, 0 Lift, 0 | G105: G | H105: +.00 | I105: +.00 | J105: +.00 | K105: 0.00 | L105: 0 | M105: ='random numbers'!B206 -> 0.9403 | N105: 0 | O105: 0 | P105: =SUM($L$99:L104) -> 0.0 | Q105: G | R105: 0, Lift 0,0,0,0 | S105: 0 | T105: =IFERROR(IF(M16>0.1, $N248,INDEX('Drop Downs'!$F$4:$F$28, MATCH('Core Stationing'!$F16, 'Drop Downs'!$D$4:$D$28, 0))),"") -> 
F106: 0, 0 Lift, 0 | G106: H | H106: +.00 | I106: +.00 | J106: +.00 | K106: 0.00 | L106: 0 | M106: ='random numbers'!B207 -> 0.7200 | N106: 0 | O106: 0 | P106: =SUM($L$99:L105) -> 0.0 | Q106: H | R106: 0, Lift 0,0,0,0 | S106: 0 | T106: =IFERROR(IF(M17>0.1, $N249,INDEX('Drop Downs'!$F$4:$F$28, MATCH('Core Stationing'!$F17, 'Drop Downs'!$D$4:$D$28, 0))),"") -> 
F107: 0, 0 Lift, 0 | G107: I | H107: +.00 | I107: +.00 | J107: +.00 | K107: 0.00 | L107: 0 | M107: ='random numbers'!B208 -> 0.1152 | N107: 0 | O107: 0 | P107: =SUM($L$99:L106) -> 0.0 | Q107: I | R107: 0, Lift 0,0,0,0 | S107: 0 | T107: =IFERROR(IF(M18>0.1, $N250,INDEX('Drop Downs'!$F$4:$F$28, MATCH('Core Stationing'!$F18, 'Drop Downs'!$D$4:$D$28, 0))),"") -> 
F108: 0, 0 Lift, 0 | G108: J | H108: +.00 | I108: +.00 | J108: +.00 | K108: 0.00 | L108: 0 | M108: ='random numbers'!B209 -> 0.6640 | N108: 0 | O108: 0 | P108: =SUM($L$99:L107) -> 0.0 | Q108: J | R108: 0, Lift 0,0,0,0 | S108: 0 | T108: =IFERROR(IF(M19>0.1, $N251,INDEX('Drop Downs'!$F$4:$F$28, MATCH('Core Stationing'!$F19, 'Drop Downs'!$D$4:$D$28, 0))),"") -> 
F109: 0, 0 Lift, 0 | G109: K | H109: +.00 | I109: +.00 | J109: +.00 | K109: 0.00 | L109: 0 | M109: ='random numbers'!B210 -> 0.7521 | N109: 0 | O109: 0 | P109: =SUM($L$99:L108) -> 0.0 | Q109: K | R109: 0, Lift 0,0,0,0 | S109: 0 | T109: =IFERROR(IF(M20>0.1, $N252,INDEX('Drop Downs'!$F$4:$F$28, MATCH('Core Stationing'!$F20, 'Drop Downs'!$D$4:$D$28, 0))),"") -> 
F110: 0, 0 Lift, 0 | G110: L | H110: +.00 | I110: +.00 | J110: +.00 | K110: 0.00 | L110: 0 | M110: ='random numbers'!B211 -> 0.0191 | N110: 0 | O110: 0 | P110: =SUM($L$99:L109) -> 0.0 | Q110: L | R110: 0, Lift 0,0,0,0 | S110: 0 | T110: =IFERROR(IF(M21>0.1, $N253,INDEX('Drop Downs'!$F$4:$F$28, MATCH('Core Stationing'!$F21, 'Drop Downs'!$D$4:$D$28, 0))),"") -> 
F111: 0, 0 Lift, 0 | G111: M | H111: +.00 | I111: +.00 | J111: +.00 | K111: 0.00 | L111: 0 | M111: ='random numbers'!B212 -> 0.2180 | N111: 0 | O111: 0 | P111: =SUM($L$99:L110) -> 0.0 | Q111: M | R111: 0, Lift 0,0,0,0 | S111: 0 | T111: =IFERROR(IF(M22>0.1, $N254,INDEX('Drop Downs'!$F$4:$F$28, MATCH('Core Stationing'!$F22, 'Drop Downs'!$D$4:$D$28, 0))),"") -> 
F112: 0, 0 Lift, 0 | G112: N | H112: +.00 | I112: +.00 | J112: +.00 | K112: 0.00 | L112: 0 | M112: ='random numbers'!B213 -> 0.6213 | N112: 0 | O112: 0 | P112: =SUM($L$99:L111) -> 0.0 | Q112: N | R112: 0, Lift 0,0,0,0 | S112: 0 | T112: =IFERROR(IF(M23>0.1, $N255,INDEX('Drop Downs'!$F$4:$F$28, MATCH('Core Stationing'!$F23, 'Drop Downs'!$D$4:$D$28, 0))),"") -> 
F113: 0, 0 Lift, 0 | G113: O | H113: +.00 | I113: +.00 | J113: +.00 | K113: 0.00 | L113: 0 | M113: ='random numbers'!B214 -> 0.8802 | N113: 0 | O113: 0 | P113: =SUM($L$99:L112) -> 0.0 | Q113: O | R113: 0, Lift 0,0,0,0 | S113: 0 | T113: =IFERROR(IF(M24>0.1, $N256,INDEX('Drop Downs'!$F$4:$F$28, MATCH('Core Stationing'!$F24, 'Drop Downs'!$D$4:$D$28, 0))),"") -> 
F114: 0, 0 Lift, 0 | G114: P | H114: +.00 | I114: +.00 | J114: +.00 | K114: 0.00 | L114: 0 | M114: ='random numbers'!B215 -> 0.6346 | N114: 0 | O114: 0 | P114: =SUM($L$99:L113) -> 0.0 | Q114: P | R114: 0, Lift 0,0,0,0 | S114: 0 | T114: =IFERROR(IF(M25>0.1, $N257,INDEX('Drop Downs'!$F$4:$F$28, MATCH('Core Stationing'!$F25, 'Drop Downs'!$D$4:$D$28, 0))),"") -> 
F115: 0, 0 Lift, 0 | G115: Q | H115: =J26 -> +.00 | I115: +.00 | J115: +.00 | K115: 0.00 | L115: 0 | M115: ='random numbers'!B216 -> 0.3716 | N115: 0 | O115: 0 | P115: =SUM($L$99:L114) -> 0.0 | Q115: Q | R115: 0, Lift 0,0,0,0 | S115: 0 | T115: =IFERROR(IF(M26>0.1, $N258,INDEX('Drop Downs'!$F$4:$F$28, MATCH('Core Stationing'!$F26, 'Drop Downs'!$D$4:$D$28, 0))),"") -> 
F116: 0, 0 Lift, 0 | G116: R | H116: +.00 | I116: +.00 | J116: +.00 | K116: 0.00 | L116: 0 | M116: ='random numbers'!B217 -> 0.6294 | N116: 0 | O116: 0 | P116: =SUM($L$99:L115) -> 0.0 | Q116: R | R116: 0, Lift 0,0,0,0 | S116: 0 | T116: =IFERROR(IF(M27>0.1, $N259,INDEX('Drop Downs'!$F$4:$F$28, MATCH('Core Stationing'!$F27, 'Drop Downs'!$D$4:$D$28, 0))),"") -> 
F117: 0, 0 Lift, 0 | G117: S | H117: +.00 | I117: +.00 | J117: +.00 | K117: 0.00 | L117: 0 | M117: ='random numbers'!B218 -> 0.0592 | N117: 0 | O117: 0 | P117: =SUM($L$99:L116) -> 0.0 | Q117: S | R117: 0, Lift 0,0,0,0 | S117: 0 | T117: =IFERROR(IF(M28>0.1, $N260,INDEX('Drop Downs'!$F$4:$F$28, MATCH('Core Stationing'!$F28, 'Drop Downs'!$D$4:$D$28, 0))),"") -> 
F118: 0, 0 Lift, 0 | G118: T | H118: +.00 | I118: +.00 | J118: +.00 | K118: 0.00 | L118: 0 | M118: ='random numbers'!B219 -> 0.0353 | N118: 0 | O118: 0 | P118: =SUM($L$99:L117) -> 0.0 | Q118: T | R118: 0, Lift 0,0,0,0 | S118: 0 | T118: =IFERROR(IF(M29>0.1, $N261,INDEX('Drop Downs'!$F$4:$F$28, MATCH('Core Stationing'!$F29, 'Drop Downs'!$D$4:$D$28, 0))),"") -> 
F119: 0, 0 Lift, 0 | G119: U | H119: +.00 | I119: +.00 | J119: +.00 | K119: 0.00 | L119: 0 | M119: ='random numbers'!B220 -> 0.5760 | N119: 0 | O119: 0 | P119: =SUM($L$99:L118) -> 0.0 | Q119: U | R119: 0, Lift 0,0,0,0 | S119: 0 | T119: =IFERROR(IF(M30>0.1, $N262,INDEX('Drop Downs'!$F$4:$F$28, MATCH('Core Stationing'!$F30, 'Drop Downs'!$D$4:$D$28, 0))),"") -> 
F120: 0, 0 Lift, 0 | G120: V | H120: +.00 | I120: +.00 | J120: +.00 | K120: 0.00 | L120: 0 | M120: ='random numbers'!B221 -> 0.0000 | N120: 0 | O120: 0 | P120: =SUM($L$99:L119) -> 0.0 | Q120: V | R120: 0, Lift 0,0,0,0 | S120: 0 | T120: =IFERROR(IF(M31>0.1, $N263,INDEX('Drop Downs'!$F$4:$F$28, MATCH('Core Stationing'!$F31, 'Drop Downs'!$D$4:$D$28, 0))),"") -> 
F121: 0, 0 Lift, 0 | G121: W | H121: +.00 | I121: +.00 | J121: +.00 | K121: 0.00 | L121: 0 | M121: ='random numbers'!B222 -> 0.0000 | N121: 0 | O121: 0 | P121: =SUM($L$99:L120) -> 0.0 | Q121: W | R121: 0, Lift 0,0,0,0 | S121: 0 | T121: =IFERROR(IF(M32>0.1, $N264,INDEX('Drop Downs'!$F$4:$F$28, MATCH('Core Stationing'!$F32, 'Drop Downs'!$D$4:$D$28, 0))),"") -> 
F122: 0, 0 Lift, 0 | G122: X | H122: +.00 | I122: +.00 | J122: +.00 | K122: 0.00 | L122: 0 | M122: ='random numbers'!B223 -> 0.0000 | N122: 0 | O122: 0 | P122: =SUM($L$99:L121) -> 0.0 | Q122: X | R122: 0, Lift 0,0,0,0 | S122: 0 | T122: =IFERROR(IF(M33>0.1, $N265,INDEX('Drop Downs'!$F$4:$F$28, MATCH('Core Stationing'!$F33, 'Drop Downs'!$D$4:$D$28, 0))),"") -> 
F123: 0, 0 Lift, 0 | G123: Y | H123: +.00 | I123: +.00 | J123: +.00 | K123: 0.00 | L123: 0 | M123: ='random numbers'!B224 -> 0.0000 | N123: 0 | O123: 0 | P123: =SUM($L$99:L122) -> 0.0 | Q123: Y | R123: 0, Lift 0,0,0,0 | S123: 0 | T123: =IFERROR(IF(M34>0.1, $N266,INDEX('Drop Downs'!$F$4:$F$28, MATCH('Core Stationing'!$F34, 'Drop Downs'!$D$4:$D$28, 0))),"") -> 
F124: 0, 0 Lift, 0 | G124: Z | H124: +.00 | I124: +.00 | J124: +.00 | K124: 0.00 | L124: 0 | M124: ='random numbers'!B225 -> 0.0000 | N124: 0 | O124: 0 | P124: =SUM($L$99:L123) -> 0.0 | Q124: Z | R124: 0, Lift 0,0,0,0 | S124: 0 | T124: =IFERROR(IF(M35>0.1, $N267,INDEX('Drop Downs'!$F$4:$F$28, MATCH('Core Stationing'!$F35, 'Drop Downs'!$D$4:$D$28, 0))),"") -> 
F125: 0, 0 Lift, 0 | G125: 1 | H125: +.00 | I125: +.00 | J125: +.00 | K125: 0.00 | L125: 0 | M125: ='random numbers'!B226 -> 0.0000 | N125: 0 | O125: 0 | P125: =SUM($L$99:L124) -> 0.0 | Q125: 1 | R125: 0, Lift 0,0,0,0 | S125: 0 | T125: =IFERROR(IF(M36>0.1, $N268,INDEX('Drop Downs'!$F$4:$F$28, MATCH('Core Stationing'!$F36, 'Drop Downs'!$D$4:$D$28, 0))),"") -> 
F126: 0, 0 Lift, 0 | G126: 2 | H126: +.00 | I126: +.00 | J126: +.00 | K126: 0.00 | L126: 0 | M126: ='random numbers'!B227 -> 0.0000 | N126: 0 | O126: 0 | P126: =SUM($L$99:L125) -> 0.0 | Q126: 2 | R126: 0, Lift 0,0,0,0 | S126: 0 | T126: =IFERROR(IF(M37>0.1, $N269,INDEX('Drop Downs'!$F$4:$F$28, MATCH('Core Stationing'!$F37, 'Drop Downs'!$D$4:$D$28, 0))),"") -> 
L128: Total Area | M128: # of Lots | N128: Area/Lot
L129: =SUM(L99:L126) -> 0 | M129: =IF(Q13="","",Q13) -> 0 | N129: =L129/M129 -> 
E131: Determination of Mat Core Stationing:
F132: Lot # | G132: =$B$42 -> 1 | H132: =$B$42 -> 1 | I132: =$B$42+1 -> 2 | J132: =$B$42+1 -> 2 | K132: =$B$42+2 -> 3 | L132: =$B$42+2 -> 3 | M132: =$B$42+3 -> 4 | N132: =$B$42+3 -> 4 | O132: =$B$42+4 -> 5 | P132: =$B$42+4 -> 5 | Q132: =$B$42+5 -> 6 | R132: =$B$42+5 -> 6 | S132: =$B$42+6 -> 7 | T132: =$B$42+6 -> 7 | U132: =$B$42+7 -> 8 | V132: =$B$42+7 -> 8 | W132: =$B$42+8 -> 9 | X132: =$B$42+8 -> 9 | Y132: =$B$42+9 -> 10 | Z132: =$B$42+9 -> 10
G133: 1st Core | H133: 2nd Core | I133: 1st Core | J133: 2nd Core | K133: 1st Core | L133: 2nd Core | M133: 1st Core | N133: 2nd Core | O133: 1st Core | P133: 2nd Core | Q133: 1st Core | R133: 2nd Core | S133: 2nd Core | T133: 2nd Core | U133: 2nd Core | V133: 2nd Core | W133: 2nd Core | X133: 2nd Core | Y133: 2nd Core | Z133: 2nd Core
F134: Lot Random # A | G134: =IF($G$148<$H$148, $G$148, $H$148) -> 0.4103 | H134: =IF($G$148<$H$148, $H$148, $G$148) -> 0.8055 | I134: =IF($I$148<$J$148, $I$148, $J$148) -> 0.3543 | J134: =IF($I$148<$J$148, $J$148, $I$148) -> 0.4424 | K134: =IF($K$148<$L$148, $K$148, $L$148) -> 0.6427 | L134: =IF($K$148<$L$148, $L$148, $K$148) -> 0.7094 | M134: =IF($M$148<$N$148, $M$148, $N$148) -> 0.3116 | N134: =IF($M$148<$N$148, $N$148, $M$148) -> 0.5705 | O134: =IF($O$148<$P$148, $O$148, $P$148) -> 0.7937 | P134: =IF($O$148<$P$148, $P$148, $O$148) -> 0.7963 | Q134: =IF($Q$148<$R$148, $Q$148, $R$148) -> 0.3197 | R134: =IF($Q$148<$R$148, $R$148, $Q$148) -> 0.4839 | S134: =IF($S$148<$T$148, $S$148, $T$148) -> 0.2663 | T134: =IF($S$148<$T$148, $T$148, $S$148) -> 0.7256 | U134: =IF($U$148<$V$148, $U$148, $V$148) -> 0.2449 | V134: =IF($U$148<$V$148, $V$148, $U$148) -> 0.6442 | W134: =IF($W$148<$X$148, $W$148, $X$148) -> 0.0526 | X134: =IF($W$148<$X$148, $X$148, $W$148) -> 0.7082 | Y134: =IF($Y$148<$Z$148, $Y$148, $Z$148) -> 0.0567 | Z134: =IF($Y$148<$Z$148, $Z$148, $Y$148) -> 0.5506
F135: Random Area | G135: =$N129*G134 ->  | H135: =$N129*H134 ->  | I135: =$N129+($N129*I134) ->  | J135: =$N129+($N129*J134) ->  | K135: =($N129*2)+($N129*K134) ->  | L135: =($N129*2)+($N129*L134) ->  | M135: =($N129*3)+($N129*M134) ->  | N135: =($N129*3)+($N129*N134) ->  | O135: =($N129*4)+($N129*O134) ->  | P135: =($N129*4)+($N129*P134) ->  | Q135: =($N129*5)+($N129*Q134) ->  | R135: =($N129*5)+($N129*R134) ->  | S135: =($N129*6)+($N129*S134) ->  | T135: =($N129*6)+($N129*T134) ->  | U135: =($N129*7)+($N129*U134) ->  | V135: =($N129*7)+($N129*V134) ->  | W135: =($N129*8)+($N129*W134) ->  | X135: =($N129*8)+($N129*X134) ->  | Y135: =($N129*9)+($N129*Y134) ->  | Z135: =($N129*9)+($N129*Z134) -> 
F136: Lane Letter to take core | G136: =VLOOKUP(G135,$P$99:$Q$126,2) ->  | H136: =VLOOKUP(H135,$P$99:$Q$126,2) -> 
F137: Total Lane Area | G137: =VLOOKUP(G136,$G99:$L126,6,FALSE) ->  | H137: =VLOOKUP(H136,$G99:$L126,6,FALSE) -> 
F138: Sum Lane Area | G138: =(VLOOKUP(G136,$G99:$P126,10,FALSE))+G137 ->  | H138: =(VLOOKUP(H136,$G99:$P126,10,FALSE))+H137 ->  | I138: =(VLOOKUP(I136,$G99:$P126,10,FALSE))+I137 -> 
F139: Lane Width | G139: =VLOOKUP(G136,$G99:$J126,4,FALSE) ->  | H139: =VLOOKUP(H136,$G99:$J126,4,FALSE) -> 
F140: Lane End Station | G140: =VLOOKUP(G136,$G99:$I126,3,FALSE) -> 
F141: Direction | G141: =VLOOKUP(G136,$G$99:$O$126,9,FALSE) ->  | H141: =VLOOKUP(H136,$G$99:$O$126,9,FALSE) -> 
F142: Distance from end of Station to core | G142: =(G138-G135)/G139 ->  | H142: =(H138-H135)/H139 -> 
F143: Lane Station to Core | G143: =IFERROR(G140-(G141*(G142)),"") ->  | H143: =IFERROR(H140-(H141*(H142)),"") -> 
F144: Lane Name | G144: =IFERROR(VLOOKUP(G136,$Q99:$R126,2),"") ->  | H144: =IFERROR(VLOOKUP(H136,$Q99:$R126,2),"") -> 
F145: Alignment Name | G145: =IFERROR(VLOOKUP(G136,$Q99:$S126,3),"") ->  | H145: =IFERROR(VLOOKUP(H136,$Q99:$S126,3)," ") ->  | I145: =IFERROR(VLOOKUP(I136,$Q99:$S126,3),"") -> 
E146: Determine Random Numbers
G147: 1A | H147: 1B | I147: 2A | J147: 2B | K147: 3A | L147: 3B | M147: 4A | N147: 4B | O147: 5A | P147: 5B | Q147: 6A | R147: 6B | S147: 7A | T147: 7B | U147: 8A | V147: 8B | W147: 9A | X147: 9B | Y147: 10A | Z147: 10B
G148: ='random numbers'!$B$15 -> 0.4103 | H148: ='random numbers'!$B$16 -> 0.8055 | I148: ='random numbers'!$B$17 -> 0.3543 | J148: ='random numbers'!$B$18 -> 0.4424 | K148: ='random numbers'!$B$19 -> 0.7094 | L148: ='random numbers'!$B$20 -> 0.6427 | M148: ='random numbers'!$B$21 -> 0.3116 | N148: ='random numbers'!$B$22 -> 0.5705 | O148: ='random numbers'!$B$23 -> 0.7937 | P148: ='random numbers'!$B$24 -> 0.7963 | Q148: ='random numbers'!$B$25 -> 0.3197 | R148: ='random numbers'!$B$26 -> 0.4839 | S148: ='random numbers'!$B$27 -> 0.7256 | T148: ='random numbers'!$B$28 -> 0.2663 | U148: ='random numbers'!$B$29 -> 0.6442 | V148: ='random numbers'!$B$30 -> 0.2449 | W148: ='random numbers'!$B$31 -> 0.7082 | X148: ='random numbers'!$B$32 -> 0.0526 | Y148: ='random numbers'!$B$33 -> 0.5506 | Z148: ='random numbers'!$B$34 -> 0.0567
E151: Determination of which core the agency will test:
G153: Test | H153: Which
F154: =C39 -> Mat | G154: Companion | H154: Core to
F155: Core | G155: Random # | H155: Test
E156: =B41 -> Lot | F156: ID
E157: =B42 -> 1 | F157: 1.1 | G157: ='random numbers'!$B$150 -> 0.6098405123 | H157: =IF(G157<0.5,"Y","N") -> N
F158: 1.2 | H158: =IF(G157>0.5,"Y","N") -> Y
E159: =B44 ->  | G159: ='random numbers'!$B$151 -> 0.3641698956 | H159: =IF(G159<0.5,"Y","N") -> Y
H160: =IF(G159>0.5,"Y","N") -> N
E161: =B46 ->  | G161: ='random numbers'!$B$152 -> 0.1011817455 | H161: =IF(G161<0.5,"Y","N") -> Y
H162: =IF(G161>0.5,"Y","N") -> N
E163: =B48 ->  | G163: ='random numbers'!$B$153 -> 0.6245669723 | H163: =IF(G163<0.5,"Y","N") -> N
H164: =IF(G163>0.5,"Y","N") -> Y
E165: =B50 ->  | G165: ='random numbers'!$B$154 -> 0.05441129208 | H165: =IF(G165<0.5,"Y","N") -> Y
H166: =IF(G165>0.5,"Y","N") -> N
E167: =B52 ->  | G167: ='random numbers'!$B$155 -> 0.2960367799 | H167: =IF(G167<0.5,"Y","N") -> Y
H168: =IF(G167>0.5,"Y","N") -> N
E169: =B54 ->  | G169: ='random numbers'!$B$156 -> 0.5711603165 | H169: =IF(G169<0.5,"Y","N") -> N
H170: =IF(G169>0.5,"Y","N") -> Y
E171: =B56 ->  | G171: ='random numbers'!$B$157 -> 0.2146312594 | H171: =IF(G171<0.5,"Y","N") -> Y
H172: =IF(G171>0.5,"Y","N") -> N
E173: =B58 ->  | F173: =E58 ->  | G173: ='random numbers'!$B$158 -> 0.5497976542 | H173: =IF(G173<0.5,"Y","N") -> N
F174: =E59 ->  | H174: =IF(G173>0.5,"Y","N") -> Y
E175: =B60 ->  | F175: =E60 ->  | G175: ='random numbers'!$B$159 -> 0.2787192464 | H175: =IF(G175<0.5,"Y","N") -> Y
F176: =E61 ->  | H176: =IF(G175>0.5,"Y","N") -> N
E181: Determine LJD cores to Test: | O181: Determine 2nd LJD Core
E182: 1st LJD Core
F183: 1ST | G183: 1ST | O183: 2nd | P183: 2nd | Q183: overlap of values
F184: LJD | G184: LJD | H184: Is Mat | I184: (For | J184: Sub | K184: Decision Tree for | M184: Associated | O184: LJD | P184: LJD | Q184: and determine | R184: Sub | S184: Decision Tree for | U184: Associated
E185: Number of | F185: Lot | G185: Which | H185: Core | I185: Calculations) | J185: Core | K185: Mat Core ID | L185: =E217 -> Mat | M185: Mat | O185: Lot | P185: Which | Q185: which 2nd | R185: Core | S185: Mat Core ID | T185: =L185 -> Mat | U185: Mat
E186: LJD | F186: Random | G186: Core | H186: a Value ("v") | I186: Core | J186: Random | K186: that will be | L186: =E218 -> Core | M186: Core with | O186: Random | P186: Core | Q186: LJD core to | R186: Random | S186: that will be | T186: Core | U186: Core with
E187: Lots | F187: Number | G187: to Test | H187: or Blank ("l") | I187: # | J187: Numbers | K187: tested | L187: =E219 -> ID | M187: LJD Cores | O187: Number | P187: to Test | Q187: use | R187: Numbers | S187: tested | T187: ID | U187: LJD Cores
K188: (1=Yes, 2=No) | S188: (1=Yes, 2=No)
E189: =IF($Q$11<=5000,1,2) -> 1 | F189: ='random numbers'!$B$90 -> 0.2691749334 | G189: =ROUND((($Q$13)*F189),0) -> 0 | H189: =IF(E220="","l","v") -> v | I189: =IF(H189="v",1,"") -> 1 | J189: ='random numbers'!$B$160 -> 0.3575336933 | K189: =IF(AND(($G$194=$I189),(J189<0.5)),1,2) -> 1 | L189: =E220 -> 1.1 | M189: =VLOOKUP(1,K189:L208,2,FALSE) -> 1.1 | O189: ='random numbers'!$B$115 -> 0.356079638 | P189: =IF($E$189>1,ROUND((($Q$13)*O189),0),"") ->  | Q189: =IF(P189="","",IF(P199<>$G$194,P199,IF(P200<>$G$194,P200,P201))) ->  | R189: ='random numbers'!$B$166 -> 0.7553340197 | S189: =IF(AND(($Q$189=$I189),(R189<0.5)),1,2) -> 2 | T189: 1.1 | U189: =VLOOKUP(1,S189:T208,2,FALSE) -> 
F190: ='random numbers'!$B$91 -> 0.5108004212 | G190: =ROUND((($Q$13)*F190),0) -> 0 | H190: v | K190: =IF(AND(($G$194=$I$189),($J189>=0.5)),1,2) -> 2 | L190: 1.2 | S190: =IF(AND(($Q$189=$I$189),(R189>=0.5)),1,2) -> 2 | T190: 1.2
F191: ='random numbers'!$B$92 -> 0.05150318146 | G191: =ROUND((($Q$13)*F191),0) -> 0 | H191: l | I191: =IF(H191="v",2,"") ->  | J191: ='random numbers'!$B$161 -> 0.8555111289 | K191: =IF(AND(($G$194=$I191),(J191<0.5)),1,2) -> 2 | O191: ='random numbers'!$B$116 -> 0.9221901894 | P191: =IF($E$189>1,ROUND((($Q$13)*O191),0),"") ->  | R191: ='random numbers'!$B$167 -> 0.1932685971 | S191: =IF(AND(($Q$189=$I191),(R191<0.5)),1,2) -> 1
F192: ='random numbers'!$B$93 -> 0.4293949008 | G192: =ROUND((($Q$13)*F192),0) -> 0 | H192: l | K192: =IF(AND(($G$194=$I$191),($J191>=0.5)),1,2) -> 2 | S192: =IF(AND(($Q$189=$I$191),(R191>=0.5)),1,2) -> 2
H193: l | I193: =IF(H193="v",3,"") ->  | J193: ='random numbers'!$B$162 -> 0.6271580458 | K193: =IF(AND(($G$194=$I193),(J193<0.5)),1,2) -> 2 | O193: ='random numbers'!$B$117 -> 0.2238585353 | P193: =IF($E$189>1,ROUND((($Q$13)*O193),0),"") ->  | R193: ='random numbers'!$B$168 -> 0.6138856411 | S193: =IF(AND(($Q$189=$I193),(R193<0.5)),1,2) -> 2
G194: =IF(AND((G189>0),(G189<=$Q$13)),G189,IF(AND((G190>0),(G190<=$Q$13)),G190,IF(AND((G191>0),(G191<=$Q$13)),G191,IF(AND((G192>0),(G192<=$Q$13)),G192,1)))) -> 1 | H194: l | K194: =IF(AND(($G$194=$I$193),($J193>=0.5)),1,2) -> 2 | S194: =IF(AND(($Q$189=$I$193),(R193>=0.5)),1,2) -> 1
H195: l | I195: =IF(H195="v",4,"") ->  | J195: ='random numbers'!$B$163 -> 0.5777965188 | K195: =IF(AND(($G$194=$I195),(J195<0.5)),1,2) -> 2 | O195: ='random numbers'!$B$118 -> 0.8500119448 | P195: =IF($E$189>1,ROUND((($Q$13)*O195),0),"") ->  | R195: ='random numbers'!$B$169 -> 0.08645528555 | S195: =IF(AND(($Q$189=$I195),(R195<0.5)),1,2) -> 1
H196: l | K196: =IF(AND(($G$194=$I$195),($J195>=0.5)),1,2) -> 2 | S196: =IF(AND(($Q$189=$I$195),(R195>=0.5)),1,2) -> 2
H197: l | I197: =IF(H197="v",5,"") ->  | J197: ='random numbers'!$B$164 -> 0.4603018761 | K197: =IF(AND(($G$194=$I197),(J197<0.5)),1,2) -> 2 | O197: ='random numbers'!$B$119 -> 0.9715517163 | P197: =IF($E$189>1,ROUND((($Q$13)*O197),0),"") ->  | R197: ='random numbers'!$B$170 -> 0.9343255758 | S197: =IF(AND(($Q$189=$I197),(R197<0.5)),1,2) -> 2
H198: l | K198: =IF(AND(($G$194=$I$197),($J197>=0.5)),1,2) -> 2 | S198: =IF(AND(($Q$189=$I$197),(R197>=0.5)),1,2) -> 1
H199: l | I199: =IF(H199="v",6,"") ->  | J199: ='random numbers'!$B$165 -> 0.8127858043 | K199: =IF(AND(($G$194=$I199),(J199<0.5)),1,2) -> 2 | O199: 1st Choice | P199: =IF(AND(($P$189>0),($P$189<=$Q$13)),$P$189,IF(AND(($P$191>0),($P$191<=$Q$13)),$P$191,IF(AND(($P$193>0),($P$193<=$Q$13)),$P$193,1))) -> 1 | R199: ='random numbers'!$B$171 -> 0.8595562577 | S199: =IF(AND(($Q$189=$I199),(R199<0.5)),1,2) -> 2
H200: l | K200: =IF(AND(($G$194=$I$199),($J199>=0.5)),1,2) -> 2 | O200: 2nd Choice | P200: =IF(AND(($P$191>0),($P$191<=$Q$13)),$P$191,IF(AND(($P$193>0),($P$193<=$Q$13)),$P$193,1)) -> 1 | S200: =IF(AND(($Q$189=$I$199),(R199>=0.5)),1,2) -> 1
H201: l | I201: =IF(H201="v",7,"") ->  | J201: ='random numbers'!$B$166 -> 0.7553340197 | K201: =IF(AND(($G$194=$I201),(J201<0.5)),1,2) -> 2 | O201: 3rd Choice | P201: =IF(AND(($P$193>0),($P$193<=$Q$13)),$P$193,1) -> 1 | R201: ='random numbers'!$B$172 -> 0.08386421204 | S201: =IF(AND(($Q$189=$I201),(R201<0.5)),1,2) -> 1
H202: l | K202: =IF(AND(($G$194=$I$201),($J201>=0.5)),1,2) -> 2 | S202: =IF(AND(($Q$189=$I$201),(R201>=0.5)),1,2) -> 2
H203: l | I203: =IF(H203="v",8,"") ->  | J203: ='random numbers'!$B$167 -> 0.1932685971 | K203: =IF(AND(($G$194=$I203),(J203<0.5)),1,2) -> 2 | R203: ='random numbers'!$B$173 -> 0.1453611255 | S203: =IF(AND(($Q$189=$I203),(R203<0.5)),1,2) -> 1
H204: l | K204: =IF(AND(($G$194=$I$203),($J203>=0.5)),1,2) -> 2 | S204: =IF(AND(($Q$189=$I$203),(R203>=0.5)),1,2) -> 2
H205: l | I205: =IF(H205="v",9,"") ->  | J205: ='random numbers'!$B$168 -> 0.6138856411 | K205: =IF(AND(($G$194=$I205),(J205<0.5)),1,2) -> 2 | R205: ='random numbers'!$B$174 -> 0.4297119379 | S205: =IF(AND(($Q$189=$I205),(R205<0.5)),1,2) -> 1
H206: l | K206: =IF(AND(($G$194=$I$205),($J205>=0.5)),1,2) -> 2 | S206: =IF(AND(($Q$189=$I$205),(R205>=0.5)),1,2) -> 2
H207: l | I207: =IF(H207="v",10,"") ->  | J207: ='random numbers'!$B$169 -> 0.08645528555 | K207: =IF(AND(($G$194=$I207),(J207<0.5)),1,2) -> 2 | R207: ='random numbers'!$B$175 -> 0.8422387242 | S207: =IF(AND(($Q$189=$I207),(R207<0.5)),1,2) -> 2
H208: l | K208: =IF(AND(($G$194=$I$207),($J207>=0.5)),1,2) -> 2 | S208: =IF(AND(($Q$189=$I$207),(R207>=0.5)),1,2) -> 1
E212: Mat Core Offset Determination: | T212: LJD Cores | U212: LJD Core Labels:
... 58 more rows

Sheet random numbers (hidden)
A1: 0.912 | B1: 0.1579994559
A2: 0.846 | B2: 0.296856761
A3: 0.625 | B3: 0.8802848458
A4: 0.552 | B4: 0.1300005913
A5: 0.694 | B5: 0.1152741313
A6: 0.798 | B6: 0.4250327349
A7: 0.331 | B7: 0.4957569242
A8: 0.530 | B8: 0.5491635799
A9: 0.527 | B9: 0.3889436126
A10: 0.802 | B10: 0.8696035147
A11: 0.822 | B11: 0.1620445848
A12: 0.559 | B12: 0.01914215088
A13: 0.613 | B13: 0.7134286761
A14: 0.119 | B14: 0.3649898767
A15: 0.892 | B15: 0.4103062749
A16: 0.167 | B16: 0.8055155277
A17: 0.076 | B17: 0.3543085456
A18: 0.942 | B18: 0.4423502684
A19: 0.750 | B19: 0.7093835473
A20: 0.094 | B20: 0.6427044868
A21: 0.592 | B21: 0.311583221
A22: 0.895 | B22: 0.5705262423
A23: 0.924 | B23: 0.7936971784
A24: 0.338 | B24: 0.7962882519
A25: 0.690 | B25: 0.3196734786
A26: 0.898 | B26: 0.4839385748
A27: 0.618 | B27: 0.7255640626
A28: 0.367 | B28: 0.2662668228
A29: 0.839 | B29: 0.6441585422
A30: 0.484 | B30: 0.2449041605
A31: 0.428 | B31: 0.7082465291
A32: 0.981 | B32: 0.05264019966
A33: 0.573 | B33: 0.5506176353
A34: 0.874 | B34: 0.05668532848
A35: 0.286 | B35: 0.2729030252
A36: 0.846 | B36: 0.1554083824
A37: 0.355 | B37: 0.5078923106
A38: 0.827 | B38: 0.1848613024
A39: 0.726 | B39: 0.6227958798
A40: 0.558 | B40: 0.3089921474
A41: 0.188 | B41: 0.5159825683
A42: 0.548 | B42: 0.6294320822
A43: 0.217 | B43: 0.5546627641
A44: 0.853 | B44: 0.7789707184
A45: 0.274 | B45: 0.1060468554
A46: 0.072 | B46: 0.3903976679
A47: 0.756 | B47: 0.5373452306
A48: 0.195 | B48: 0.5653440952
A49: 0.737 | B49: 0.7469267249
A50: 0.705 | B50: 0.2021788359
A51: 0.880 | B51: 0.1020017266
A52: 0.122 | B52: 0.668112278
A53: 0.988 | B53: 0.7042014003
A54: 0.392 | B54: 0.3303548098
A55: 0.507 | B55: 0.4518945813
A56: 0.756 | B56: 0.821696043
A57: 0.820 | B57: 0.9778708816
A58: 0.661 | B58: 0.5093463659
A59: 0.997 | B59: 0.1181822419
A60: 0.051 | B60: 0.02609539032
A61: 0.969 | B61: 0.03677672148
A62: 0.981 | B62: 0.004732728004
A63: 0.274 | B63: 0.1008647084
A64: 0.396 | B64: 0.8124687672
A65: 0.364 | B65: 0.9432358146
A66: 0.015 | B66: 0.08209311962
A67: 0.388 | B67: 0.3999419808
A68: 0.315 | B68: 0.9152369499
A69: 0.864 | B69: 0.9005104899
A70: 0.968 | B70: 0.2102690935
A71: 0.563 | B71: 0.01541405916
A72: 0.293 | B72: 0.06882071495
A73: 0.696 | B73: 0.9086007476
A74: 0.971 | B74: 0.3892606497
A75: 0.257 | B75: 0.9472809434
A76: 0.994 | B76: 0.5387992859
A77: 0.845 | B77: 0.4986650348
A78: 0.557 | B78: 0.1502262354
A79: 0.799 | B79: 0.9299634099
A80: 0.339 | B80: 0.3251726627
A81: 0.514 | B81: 0.1395449042
A82: 0.925 | B82: 0.9620074034
A83: 0.654 | B83: 0.2290406823
A84: 0.998 | B84: 0.4279408455
A85: 0.027 | B85: 0.0968195796
A86: 0.533 | B86: 0.09018337727
A87: 0.828 | B87: 0.578933537
A88: 0.242 | B88: 0.5815246105
A89: 0.860 | B89: 0.1049098372
A90: 0.802 | B90: 0.2691749334
A91: 0.772 | B91: 0.5108004212
A92: 0.271 | B92: 0.05150318146
A93: 0.274 | B93: 0.4293949008
A94: 0.122 | B94: 0.03014051914
A95: 0.313 | B95: 0.4934828877
A96: 0.616 | B96: 0.8378765583
A97: 0.943 | B97: 0.07027477026
A98: 0.759 | B98: 0.5763424635
A99: 0.437 | B99: 0.5269809365
A100: 0.484 | B100: 0.4094862938
A101: 0.666 | B101: 0.761970222
A102: 0.449 | B102: 0.7045184374
A103: 0.880 | B103: 0.1424530149
A104: 0.462 | B104: 0.8286492825
A105: 0.498 | B105: 0.03563970327
A106: 0.452 | B106: 0.1490892172
A107: 0.371 | B107: 0.07431989908
A108: 0.475 | B108: 0.2986278534
A109: 0.647 | B109: 0.6257039905
A110: 0.976 | B110: 0.6444755793
B111: 0.05700236559
B112: 0.08500123024
B113: 0.2665838599
B114: 0.7218359709
B115: 0.356079638
B116: 0.9221901894
B117: 0.2238585353
B118: 0.8500119448
B119: 0.9715517163
B120: 0.341353178
B121: 0.4975280166
B122: 0.2945827246
B123: 0.9034186006
B124: 0.811331749
B125: 0.8220130801
B126: 0.7899690866
B127: 0.8861010671
B128: 0.5977051258
B129: 0.4628929496
B130: 0.6017502546
B131: 0.1851783395
B132: 0.7004733086
B133: 0.420167625
B134: 0.4643470049
B135: 0.5350711942
B136: 0.58847785
B137: 0.4282578826
B138: 0.9089177847
B139: 0.4669380784
B140: 0.0584564209
B141: 0.7527429461
B142: 0.6698833704
B143: 0.4496205449
B144: 0.8448297977
B145: 0.6592020392
B146: 0.4816645384
B147: 0.7486978173
B148: 0.9475979805
B149: 0.6164767146
B150: 0.6098405123
B151: 0.3641698956
B152: 0.1011817455
B153: 0.6245669723
B154: 0.05441129208
B155: 0.2960367799
B156: 0.5711603165
B157: 0.2146312594
B158: 0.5497976542
B159: 0.2787192464
B160: 0.3575336933
B161: 0.8555111289
B162: 0.6271580458
B163: 0.5777965188
B164: 0.4603018761
B165: 0.8127858043
B166: 0.7553340197
B167: 0.1932685971
B168: 0.6138856411
B169: 0.08645528555
B170: 0.9343255758
B171: 0.8595562577
B172: 0.08386421204
B173: 0.1453611255
B174: 0.4297119379
B175: 0.8422387242
B176: 0.8702375889
B177: 0.05182021856
B178: 0.2414931059
B179: 0.1413159966
B180: 0.707426548
B181: 0.009094893932
B182: 0.3696690798
B183: 0.756788075
B184: 0.1265895367
B185: 0.01718515158
B186: 0.8142398596
B187: 0.4230757356
B188: 0.5965681076
B189: 0.6072494388
B190: 0.5752054453
B191: 0.6713374257
B192: 0.3829414845
B193: 0.2481293082
B194: 0.3869866133
B195: 0.9704146981
B196: 0.2201304436
B197: 0.2054039836
B198: 0.5151625872
B199: 0.5858867764
B200: 0.6392934322
... 20 more rows

Sheet Core Wksht (hidden)
A1: TIME IN: | D1: TIME OUT: | G1: CORE WORKSHEET
A2: ='Core Stationing'!$F$5 -> SP | C2: ='Core Stationing'!$G$5 -> 0 | G2: MDR/Rec.# | I2: ='Core Stationing'!$T$12 -> 0 | L2: LJD Mat Core
A3: ='Core Stationing'!$J$5 -> TH | C3: ='Core Stationing'!$L$5 -> 0 | G3: Mix Type | I3: ='Core Stationing'!$T$18 ->  | L3: Total Tons
A4: Engineer | C4: ='Core Stationing'!$O$5 -> 0 | G4: Date Paved | I4: ='Core Stationing'!$T$8 -> 00:00:00 | L4: Density Tons
A5: Contractor | C5: ='Core Stationing'!$G$6 -> 0 | G5: Date Cored | I5: ='Core Stationing'!$T$10 -> 00:00:00 | L5: Misc. Tons
C6: Thickness | D6: AIR DRY | E6: CORE/PAN | K6: % WATER | M6: AVE. | N6: MAX. | O6: FINAL DENSITY
A7: LOT | B7: CORE # | C7: (mm)/in | D7: CORE | E7: (or dry wt.) | F7: PAN ID. | G7: PAN WT. | H7: DRY WT. | I7: SSD WT. | J7: IMM. WT. | K7: ABSORBED | L7: Sp GRAV. | M7: Sp GRAV. | N7: GRAVITY | O7: % 0F MAXIMUM
A8: ='Core Stationing'!$B$42 -> 1 | B8: ='Core Stationing'!$C$42 -> 1.1
B9: ='Core Stationing'!$C$43 -> 1.2
A10: COMP | B10: =B8 -> 1.1C
A11: COMP | B11: =B9 -> 1.2C
A13: ='Core Stationing'!$B$44 ->  | B13: ='Core Stationing'!$C$44 -> 
B14: ='Core Stationing'!$C$45 -> 
A15: COMP | B15: =B13 -> 
A16: COMP | B16: =B14 -> 
A18: ='Core Stationing'!$B$46 ->  | B18: ='Core Stationing'!$C$46 -> 
B19: ='Core Stationing'!$C$47 -> 
A20: COMP | B20: =B18 -> 
A21: COMP | B21: =B19 -> 
A23: ='Core Stationing'!$B$48 ->  | B23: ='Core Stationing'!$C$48 -> 
B24: ='Core Stationing'!$C$49 -> 
A25: COMP | B25: =B23 -> 
A26: COMP | B26: =B24 -> 
A28: ='Core Stationing'!$B$50 ->  | B28: ='Core Stationing'!$C$50 -> 
B29: ='Core Stationing'!$C$51 -> 
A30: COMP | B30: =B28 -> 
A31: COMP | B31: =B29 -> 
A33: ='Core Stationing'!$B$52 ->  | B33: ='Core Stationing'!$C$52 -> 
B34: ='Core Stationing'!$C$53 -> 
A35: COMP | B35: =B33 -> 
A36: COMP | B36: =B34 -> 
A38: COMPANION CORE, TESTED BY Mn/DOT, CHECK .030 TOLERANCE. | F38: QC | K38: QA

Sheet Blank Core Wksht (hidden)
A1: TIME IN: | D1: TIME OUT: | G1: CORE WORKSHEET
A2: ='Core Stationing'!$F$5 -> SP | G2: MDR/Rec.# | L2: LJD Mat Core
A3: ='Core Stationing'!$J$5 -> TH | G3: Mix Type | L3: Total Tons
A4: Engineer | G4: Date Paved | L4: Density Tons
A5: Contractor | G5: Date Cored | L5: Misc. Tons
C6: Thickness | D6: AIR DRY | E6: CORE/PAN | K6: % WATER | M6: AVE. | N6: MAX. | O6: FINAL DENSITY
A7: LOT | B7: CORE # | C7: (mm)/in | D7: CORE | E7: (or dry wt.) | F7: PAN ID. | G7: PAN WT. | H7: DRY WT. | I7: SSD WT. | J7: IMM. WT. | K7: ABSORBED | L7: Sp GRAV. | M7: Sp GRAV. | N7: GRAVITY | O7: % 0F MAXIMUM
A10: COMP
A11: COMP
A15: COMP
A16: COMP
A20: COMP
A21: COMP
A25: COMP
A26: COMP
A30: COMP
A31: COMP
A35: COMP
A36: COMP
A38: COMPANION CORE, TESTED BY Mn/DOT, CHECK .030 TOLERANCE. | F38: QC | K38: QA

Sheet Core Stationing Blank (hidden)
F1: Bituminous Core Stationing | AH1: Asphalt
F2: =IF(L8="Yes","with Longitudinal Joint Density","") ->  | W2: Drop Down Box Lists | Z2: County | AE2: Show | AF2: Type | AG2: Mix | AH2: Binder | AL2: Density
D3: 2013-04-11 | W3: Project | X3: Road Type | Y3: LJD? | Z3: Number | AA3: County | AB3: Tons | AC3: Lots | AD3: Direction | AE3: Companion Cores? | AF3: of | AG3: Type | AH3: Grade | AI3: Lift | AJ3: Direction | AK3: Lane | AL3: Determination
W4: SP | X4: TH | Y4: Yes | AB4: 0.1 | AC4: 0 | AD4: =IF(E10<F10,1,IF(E10=F10,0,IF(E10>F10,-1,"NOT"))) -> 0 | AE4: All | AF4: Joint | AI4: 1st
D5: SP/SAP/CR | H5: TH / CSAH / CR | L5: Engineer | W5: SAP | X5: CSAH | Y5: No | Z5: 1 | AA5: Aitkin | AB5: 1 | AC5: 1 | AD5: 0 | AE5: 1 per Lot | AG5: SPWEA230 | AH5: B= PG 58-28 | AI5: 2nd | AJ5: NB | AK5: Mainline | AL5: No
D6: Contractor | H6: Plant | W6: CP | X6: CR | Z6: 2 | AA6: Anoka | AB6: 601 | AC6: 2 | AD6: 0 | AE6: No | AF6: Confined | AG6: SPWEA240 | AH6: C= PG 58-34 | AI6: 3rd | AJ6: SB | AK6: Left | AL6: Yes
Z7: 3 | AA7: Becker | AB7: 1001 | AC7: 3 | AD7: 0 | AF7: Unconfined | AG7: SPWEA330 | AH7: E= PG 64-28 | AI7: 4th | AJ7: EB | AK7: Right
B8: Lift | C8: Direction | D8: Lane | E8: Begin Station | F8: End Station | G8: Lane Width | I8: Longitudinal Joint Density Project? | M8: Date Paved | Z8: 4 | AA8: Beltrami | AB8: 1601 | AC8: 4 | AD8: 0 | AG8: SPWEA340 | AH8: F= PG 64-34 | AI8: 5th | AJ8: WB | AK8: Left Center
E9: (ft) | F9: (ft) | G9: (ft) | I9: 1% Density Reduction? | M9: Day # | Z9: 5 | AA9: Benton | AB9: 3601 | AC9: 5 | AD9: 0 | AG9: SPWEA430 | AH9: L= PG 64-22 | AI9: 6th | AK9: Right Center
M10: Date Cored | Z10: 6 | AA10: Big Stone | AB10: 5001 | AC10: 6 | AD10: 0 | AG10: SPWEA440 | AH10: A= PG 52-34 | AI10: 7th | AK10: Center
I11: Total Density Tons Paved | Z11: 7 | AA11: Blue Earth | AD11: 0 | AG11: SPWEA530 | AH11: H= PG 70-28 | AK11: Left Shldr
I12: Tons Per Lot | M12: MDR/Rec# | Z12: 8 | AA12: Brown | AD12: 0 | AG12: SPWEA540 | AK12: Right Shldr
I13: Lots Used for Calcuations | M13: Bid Price/Ton | Z13: 9 | AA13: Carlton | AD13: 0 | AG13: SPWEB230 | AK13: Rt. Turn Lane
I14: Lots Required | Z14: 10 | AA14: Carver | AG14: SPWEB240 | AK14: Lt. Turn Lane
I15: Over-ride # Lots | Z15: 11 | AA15: Cass | AG15: SPWEB330 | AK15: Ramp
Z16: 12 | AA16: Chippewa | AG16: SPWEB340 | AK16: Loop
L17: Mix Spec | N17: 2360 | Z17: 13 | AA17: Chisago | AG17: SPWEB430
H18: Test Companion | L18: Mix Type | Z18: 14 | AA18: Clay | AG18: SPWEB440
H19: Cores Shown? | L19: Asphalt Binder Grade | Z19: 15 | AA19: Clearwater | AG19: SPWEB530
L20: Total Area Paved (yd2) | Z20: 16 | AA20: Cook | AG20: SPWEB540
Z23: 17 | AA23: Cottonwood | AG23: SPWEC230
J24: Left | K24: Left | L24: Left | M24: Right | N24: Right | O24: Right | Z24: 18 | AA24: Crow Wing | AG24: SPWEC240
C25: Mat | E25: Mat | F25: Mat | G25: Mat | H25: Mat | I25: Test | J25: LJD | K25: LJD | L25: LJD | M25: LJD | N25: LJD | O25: LJD | Z25: 19 | AA25: Dakota | AG25: SPWEC330
C26: Core | D26: Name | E26: Core | F26: Station | G26: Offset | H26: Offset | I26: Companion | J26: Joint | K26: Core | L26: Offset | M26: Joint | N26: Core | O26: Offset | Z26: 20 | AA26: Dodge | AG26: SPWEC340
B27: Lot | C27: ID | E27: Station | F27: Random # | G27: (ft.) | H27: Random # | I27: Core | J27: Type | K27: ID | L27: (ft.) | M27: Type | N27: ID | O27: (ft.) | Z27: 21 | AA27: Douglas | AG27: SPWEC430
Z28: 22 | AA28: Faribault | AG28: SPWEC440
Z29: 23 | AA29: Fillmore | AG29: SPWEC530
Z30: 24 | AA30: Freeborn | AG30: SPWEC540
Z31: 25 | AA31: Goodhue | AG31: SPNWA230
Z32: 26 | AA32: Grant | AG32: SPNWA240
Z33: 27 | AA33: Hennepin | AG33: SPNWA330
Z34: 28 | AA34: Houston | AG34: SPNWA340
Z35: 29 | AA35: Hubbard | AG35: SPNWA430
Z36: 30 | AA36: Isanti | AG36: SPNWA440
Z37: 31 | AA37: Itasca | AG37: SPNWA530
Z38: 32 | AA38: Jackson | AG38: SPNWA540
Z39: 33 | AA39: Kanabec | AG39: SPNWB230
Z40: 34 | AA40: Kanndiyohi | AG40: SPNWB240
Z41: 35 | AA41: Kittson | AG41: SPNWB330
Z42: 36 | AA42: Koochiching | AG42: SPNWB340
Z43: 37 | AA43: Lac qui Parle | AG43: SPNWB430
Z44: 38 | AA44: Lake | AG44: SPNWB440
Z45: 39 | AA45: Lake of the Woods | AG45: SPNWB530
Z46: 40 | AA46: Le Sueur | AG46: SPNWB540
Z47: 41 | AA47: Lincoln | AG47: SPNWC230
Z48: 42 | AA48: Lyon | AG48: SPNWC240
Z49: 43 | AA49: Mahnomen | AG49: SPNWC330
C50: Daily Production | G50: Remarks | Z50: 44 | AA50: Marshall | AG50: SPNWC340
C51: English Tons | E51: Lot | Z51: 45 | AA51: Martin | AG51: SPNWC430
C52: 0-600 | E52: 1 | Z52: 46 | AA52: McLeod | AG52: SPNWC440
C53: 601-1000 | E53: 2 | Z53: 47 | AA53: Meeker | AG53: SPNWC530
C54: 1001-1600 | E54: 3 | Z54: 48 | AA54: Mille Lacs | AG54: SPNWC540
C55: 1601-2600 | E55: 4 | Z55: 49 | AA55: Morrison
C56: 2601-4600 | E56: 5 | Z56: 50 | AA56: Mower
C57: > 4600* | E57: 6 | G57: Street Inspector | Z57: 51 | AA57: Murray
Z58: 52 | AA58: Nicollet
C59: * Add one additional lot each additional 900 tons | Z59: 53 | AA59: Nobles
Z60: 54 | AA60: Norman
Z61: 55 | AA61: Olmsted
Z62: 56 | AA62: Otter Tail
Z63: 57 | AA63: Pennington
Z64: 58 | AA64: Pine
Z65: 59 | AA65: Pipestone
Z66: 60 | AA66: Polk
Z67: 61 | AA67: Pope
Z68: 62 | AA68: Ramsey
Z69: 63 | AA69: Red Lake

Sheet Notes
B2: 2009-05-05 | D2: Problem: Inspectors would like to have the option to hard code in the number of lots for the day
D3: Changed language in Core Stationing cell I15 from "# of Additional Over-ride Lots" to "Over-ride # Lots"
D4: Modified logic in Core Stationing cell k13
D5: from =IF(K15>0,(VLOOKUP(K11,AB5:AC10,2)+K15),(VLOOKUP(K11,AB5:AC10,2)))
D6: to = if(((isnumber(k15))=true,k15,(vlookup(k11,AB5:AC10,2)))
B8: 2009-05-13 | D8: Problem: If the same lane name is used in mutiple rows with gaps in the stationing, the spreadsheet may
E9: choose a core stationing in exception areas that are in the lanes specified.
D10: Solution: | E10: Created a row a unique letter to identify the lane names for calculation purposes. These were inserted
E11: in "Core Stationing" E83:E92. Then the formulas were adjusted in the subsiquent cells to included the column E.
E12: Row 110 was added so the unique letter names are changed back to the user inputed names.
D14: Problem: | E14: Would like three choices for if companion cores are tested. (All, 1 per Lot, No)
D15: Solution: | E15: Modified "Core Stationing" J19 to have the choices (All, 1 per Lot, No) instead of (Yes, No)
E16: Modified equation for cells I26:I37
E17: from =if($k$14>=1,(if(and($j$19="Yes",$F123="Y"),$F123,""),"")
E18: to =if($k$14>=1,(if($J$19="All","Y",if(and($J$19="1 per Lot",$F123="Y"),$F123,""))),"")
B20: 2009-05-27 | D20: Problem: | E20: The drop down boxes are limiting for inputting data for inspectors (Lift, Direction, Lane)
D21: Solution: | E21: Remove drop down boxes so description can be manually chosen.
E22: Removed drop down (B10:B19)
E23: I have not determined a way in Excel to have a drop down box that can be manually overwritten.
B25: 2009-06-04 | D25: Problem: | E25: Cores were being randomly selected for mat cores from only the mat width -2 feet
D26: Solution: | E26: Recoded equations so the entire mat can be randomly selected.
D27: Changed equation in cells I168:I179
B29: 2009-06-04 | D29: Problem: | E29: XX.2 cores were not being offset by if LJD core was in that lot.
D30: Solution: | E30: Inserted missing equations.
D31: Copied equations into XX.2 missing cells in J168:L179
B33: 2009-06-09 | D33: Problem: | E33: Non LJD projects were coded so that the cores were no closer than 1 foot from the edge of the mat (confiined or unconfined)
D34: Solution: | E34: Reduced type of joint column to one, and recoded sheet so that unconfined and confined edges would have different calculations.
E35: Reduced type of joint column to one (I26:I37)
E36: Coded Non LJD core logic by inserted columns J168:L179
E37: Recoded logic in columnP168:P179 to search for non LJD cores in column L instead of I
B39: 2009-07-10 | D39: Problem: | E39: Needed a blank cores stationing sheet
D40: Solution: | E40: Created tab "Core Stationing Blank" with all cell cleared
B42: 2010-01-29 | D42: Problem: | E42: Type of joint pick list is only available once. It is needed for both edge cores.
D43: Solution: | E43: Copied pick list a second time are reformatted to put next to right and left edge cores.
B45: 2010-03-01 | D45: Problem: | E45: Field personnel would like cell N19 to display yd^2 instead of ft^2
D46: Solution: | E46: Made change to display yd^2
B48: 2011-06-27 | D48: Problem: | E48: Number of LJD core lots was not calculating correctly
D49: Solution: | E49: Fixed formula in C155. Instead of going off the number of lots, it will using the number of tons
D51: Problem: | E51: Extra LJD cores lots were being show when they did not exist
D52: Solution: | E52: Fixed formula in cells S198:V205. Incorrect cell references were being used
B54: 2012-04-23 | D54: Updated dates for 2012 and fixed formatting
B56: 2012-08-13 | D56: Reformatted Comments text box
B58: 2012-04-11 | D58: Added four input rows for paving locations
D59: Output will only display 8 to 10 density lots
B62: 2013-05-02 | D62: Split Remarks box into individual lines
B64: 2013-06-18 | D64: Random Number generator was using same seed value, Inserted Randomize function to randomize the seed value for the Rnd function.
B66: 2013-06-21 | D66: Unprotected Worksheet
B68: 2013-12-26 | D68: Modified formula in F161:F180 to make I-Pad compatible.
B70: 2015-04-03 | D70: Added PMB binders to AC binder list
B72: 2016-03-28 | D72: Added MSCR binders to AC binder list (AH4:AH24)
B74: 2017-04-11 | D74: Added PG 64E-34 MSCR binder AC binder list (AH4:AH25)
B76: 2019-08-01 | D76: Changed functionality to have uniform naming conventions for lanes and lifts. Automatically calculates lane width. Option for custom offsets and lane widths.
B78: 2019-08-07 | D78: Added "Alignment Name" Field
B80: 2019-08-15 | D80: Changed longitudinal joint core offsets from a relative 0.5 ft offset to actual calculated offsets
B82: 2019-09-20 | D82: Added 14 more input rows, reordered naming output, added alignment field to output
A83: Bitiminous Street Work book updates below
B84: 2021-09-30 | D84: Added a lock button for Core Locations
D85: Fixed the logic in Cell H138, G139:G144 to include the entire table for vlookup functionality Core Locations
D86: Fixed table in “Drop Downs” to have correct “Add to Offset” value for 12R-20R (8’ R SHLD). Value was 20, changed to 12
D87: Updated Mix Type drop down list on Data sheet to include all mix types included in Core Stationing v.7/22/2021

Sheet Drop Downs (hidden)
B2: Lift | C2: Direction | D2: Centerline Offset | E2: Lane Width | F2: Add to Offset
B4: 1 | C4: NB | D4: 12L-CL | E4: 12 | F4: -12
B5: 2 | C5: SB | D5: CL-12R | E5: 12 | F5: 0
B6: 3 | C6: EB | D6: 18L-CL | E6: 18 | F6: -18
B7: 4 | C7: WB | D7: CL-18R | E7: 18 | F7: 0
B8: 5 | D8: 18L-6L | E8: 12 | F8: -18
B9: 6 | D9: 6R-18R | E9: 12 | F9: 6
D10: 24L-12L | E10: 12 | F10: -24
D11: 12R-24R | E11: 12 | F11: 12
D12: 36L-24L | E12: 12 | F12: -36
D13: 24R-36R | E13: 12 | F13: 24
D14: 48L-36L | E14: 12 | F14: -48
D15: 36R-48R | E15: 12 | F15: 36
D16: 6L-6R | E16: 12 | F16: -6
D17: 20L-12L (8' L SHLD) | E17: 8 | F17: -20
D18: 22L-12L (10' L SHLD) | E18: 10 | F18: -22
D19: 12R-20R (8' R SHLD) | E19: 8 | F19: 12
D20: 12R-22R (10' R SHLD) | E20: 10 | F20: 12
D21: 32L-24L (8' L SHLD) | E21: 8 | F21: -32
D22: 34L-24L (10' L SHLD) | E22: 10 | F22: -34
D23: 24R-32R (8' R SHLD) | E23: 8 | F23: 24
D24: 24R-34R (10' R SHLD) | E24: 10 | F24: 24
D25: 44L-34R (8' L SHLD) | E25: 8 | F25: -44
D26: 46L-36L (10' L SHLD) | E26: 10 | F26: -46
D27: 36R-44R (8' R SHLD) | E27: 8 | F27: 36
D28: 36R-46R (10' R SHLD) | E28: 10 | F28: 36
